Workbook

Sheet Grafika (hidden)

Sheet Nastavení
C1: Název projektu | D1: Pořízení mobilní věže ŘLP
C2: Vydání specifikace příslušným organizačním celkem | D2: 2021-09-01 | E2: specifikace
C3: Zahájení projektu dle SdP (rok) | D3: 2023
C4: Předpokládaný termín pořízení projektu - podpis smlouvy (měsíc.rok) | D4: 2023-06-01 | E4: smlouva
C5: Provedení vojskových zkoušek / zkrácených vojskových zkoušek | D5: 2023-11-01 | E5: VZ
C6: Dosažení počátečních operačních schopností (IOC) | D6: 2024-04-01 | E6: IOC
C7: Dosažení plných operačních schopností (FOC) | D7: 2024-12-01 | E7: FOC
C8: Ukončení projektu dle SdP (rok) | D8: 2024

Sheet Data
B2: Etapa
B3: před akvizicí | C3: akvizice | D3: po akvizici | E3: Oblast | F3: Činnost | G3: Úkol | H3: FO | I3: Legislativa | J3: Do kdy provést | K3: Platnost | L3: Vybráno/ Vyplněno
B4: x | E4: Doktríny | F4: Provedení aktualizace Doktrín | G4: Navrhnout systémové a organizační změny tvorby doktrín. | I4: RMO 61/2017 Koncepční dokumenty MO; Koncepce Koncepční materiály | J4: -40 | K4: D | L4: xx
B5: x | E5: Doktríny | F5: Provedení aktualizace Doktrín | G5: Provést analýzu doktríny AČR a případně navrhnout její změnu. | I5: RMO 61/2017 Koncepční dokumenty MO; Koncepce Koncepční materiály | J5: -50 | K5: D | L5: xx
B6: x | E6: Doktríny | F6: Provedení aktualizace Doktrín | G6: Provést analýzu doktríny druhu vojska (služby) a případně navrhnout její změnu. | I6: RMO 61/2017 Koncepční dokumenty MO; Koncepce Koncepční materiály | J6: -40 | K6: D
B7: x | E7: Doktríny | F7: Provedení aktualizace Plánu vydávání (novelizací, revizí) vojenských předpisů a publikací | G7: Aktualizovat Plány tvorby voj. předpisů a publikací, stanovit priority. | I7: RMO 1/2017 O přípravě návrhů, posuzování a schvalování vnitřních předpisů a Věstníku MO | J7: -24 | K7: D | L7: xx
C8: x | E8: Doktríny | F8: Provedení aktualizace Plánu vydávání (novelizací, revizí) vojenských předpisů a publikací | G8: Aktualizovat nebo vydat nový předpis "Popis a provoz" | H8: M | I8: ČOS 051632 Průvodní a provozní dokumentace pro vojenskou techniku a materiál; Zákon č. 219/1999 Sb. Zákon o ozbrojených silách ČR | J8: 12 | K8: D
B9: x | E9: Doktríny | F9: Provedení aktualizace Plánu vydávání (novelizací, revizí) vojenských předpisů a publikací | G9: Zapracovat požadavek na zpracování výcvikové dokumentace do specifikace | H9: T | I9: ČOS 051632 Průvodní a provozní dokumentace pro vojenskou techniku a materiál; Pub Vojenské publikace pro výcvik (obecně); Vševojsk-4-2 Osnovy střeleb z ručních zbraní a zbraní bojových vozidel | J9: -24 | K9: D
C10: x | E10: Doktríny | F10: Provedení aktualizace Plánu vydávání (novelizací, revizí) vojenských předpisů a publikací | G10: Aktualizovat nebo vydat nový předpis pro výcvik s technikou. | H10: T | I10: ČOS 051633 Učební pomůcky pro pozemní vojenskou techniku; Pub Vojenské publikace pro výcvik (obecně); Vševojsk-4-2 Osnovy střeleb z ručních zbraní a zbraní bojových vozidel; Zákon č. 219/1999 Sb. Zákon o ozbrojených silách ČR | J10: 12 | K10: D
C11: x | E11: Doktríny | F11: Provedení aktualizace Plánu vydávání (novelizací, revizí) vojenských předpisů a publikací | G11: Aktualizovat nebo vydat nový předpis pro výcvik s využitím STT. | H11: T | I11: Pub Vojenské publikace pro výcvik (obecně); Vševojsk-4-2 Osnovy střeleb z ručních zbraní a zbraní bojových vozidel | J11: 12 | K11: D
B12: x | E12: Doktríny | F12: Provedení aktualizace Plánu vydávání (novelizací, revizí) vojenských předpisů a publikací | G12: Zapracovat požadavek na zpracování průvodní a provozní dokumentace dle ČOS 051632 do specifikace. | H12: M | J12: 12 | K12: D
C13: x | E13: Doktríny | F13: Provedení aktualizace Plánu vydávání (novelizací, revizí) vojenských předpisů a publikací | G13: Aktualizovat nebo vydat nový předpis pro logistickou podporu (tzv. průvodní dokumentace dle ČOS). | H13: M | I13: ČOS 051632 Průvodní a provozní dokumentace pro vojenskou techniku a materiál; NVMO 2/2018 Provozování pozemní vojenské techniky; MO 15835/2019-3416 Odborné pokyny majetkového hospodáře pro provozování pozemní techniky v rezortu MO.; STANAG AEP STANAG AEP ; Vševojsk-10-1 Pravidla vedení provozní dokumentace výzbroje a ostatní techniky; Vyhláška 100/2018 Sb. Vyhláška o technické způsobilosti a pravidelných technických prohlídkách vojenských vozidel; Vyhláška 154/2011 Sb. Vyhláška o vojenské letecké technice; Vyhláška 273/1999 Sb. Vyhláška vojenské technické zařízení; Vyhláška 275/1999 Sb. Vyhláška kategorie vojenských plavidel, technická způsobilost | J13: 12 | K13: D
C14: x | E14: Doktríny | F14: Provedení aktualizace Plánu vydávání (novelizací, revizí) vojenských předpisů a publikací | G14: Aktualizovat nebo vydat předpisy KIS. | H14: M | I14: RMO 1/2017 O přípravě návrhů, posuzování a schvalování vnitřních předpisů a Věstníku MO | J14: 12 | K14: D
D15: x | E15: Doktríny | F15: Provedení aktualizace Plánu vydávání (novelizací, revizí) vojenských předpisů a publikací | G15: Aktualizovat nebo vydat Stálé operační postupy. | I15: Zákon č. 219/1999 Sb. Zákon o ozbrojených silách ČR; Koncepce Koncepční materiály | J15: 12 | K15: D
B16: x | E16: Doktríny | F16: Provedení aktualizace Plánu vydávání (novelizací, revizí) vojenských předpisů a publikací | G16: Definovat požadavky na splnění OUI a následné zapracování do specifikace. | I16: NVMO 60/2017 O jednotném postupu při úplatném nybývání majetku, služeb a stavebních prací vv rezoru MO; RMO 14/2013 Ochrana utajovaných informací v rezortu MO | J16: -24 | K16: D
B17: x | E17: Doktríny | F17: Provedení aktualizace Plánu vydávání (novelizací, revizí) vojenských předpisů a publikací | G17: Definovat požadavky na stanovené (vyžadované) certifikace a následné zapracování požadavků do specifikace. | I17: NVMO 60/2017 O jednotném postupu při úplatném nybývání majetku, služeb a stavebních prací vv rezoru MO; Pub Vojenské publikace pro výcvik (obecně); Vyhláška 154/2011 Sb. Vyhláška o vojenské letecké technice; Let-1-1 Předpis pro létání; Let-1-4 Inženýrská letecká služba; Let-1-11 Letecký zkušební provoz; RMO 21/2018 O zajištění kybernetické bezpečnosti v rezortu MO; NVMO 111/2013 Kryptografická ochrana utajovaných informací v rezortu MO; NVMO 85/2013 Bezpečnost informačních a komunikačních systémů a elektronických zařízení nakládajících s utajovanými informacemi v rezortu MO; NVMO 20/2013 Bezpečnost informačních a komunikačních systémů a elektronických zařízení, které nakládají s určenými neutajovanými informacemi v rezortu MO | J17: -24 | K17: D | L17: xx
B18: x | E18: Doktríny | F18: Provedení aktualizace Plánu vydávání (novelizací, revizí) vojenských předpisů a publikací | G18: Zapracovat požadavek na stanovení tatkticko-technických parametrů výcvikových prostorů do specifikace. | H18: T | I18: Děl-1-20 Ohrožené prostory.; NVMO 41/2010 Vzdělávací a výcvikové aktivity v rezortu MO; NVMO 5/2013 Výcviková a školící zařízení organizačních celků rezortu MO; NVMO 60/2017 O jednotném postupu při úplatném nybývání majetku, služeb a stavebních prací vv rezoru MO; Vševojsk-10-6 Učební a výcviková základna | J18: -24 | K18: D
C19: x | E19: Doktríny | F19: Provedení aktualizace Plánu vydávání (novelizací, revizí) vojenských předpisů a publikací | G19: Aktualizovat stanovenou dokumentaci učebně výcvikových zařízení (ohrožené prostory, normy cvičišť,…) | H19: T | I19: Děl-1-20 Ohrožené prostory.; NVMO 41/2010 Vzdělávací a výcvikové aktivity v rezortu MO; NVMO 5/2013 Výcviková a školící zařízení organizačních celků rezortu MO; Vševojsk-10-6 Učební a výcviková základna | J19: 12 | K19: D
C20: x | E20: Doktríny | F20: Provedení aktualizace Plánu vydávání (novelizací, revizí) vojenských předpisů a publikací | G20: Na základě výběru rozvojového projektu provést analýzu Organizace (jednotky, útvaru, …) a navrhnout její změny. | H20: O | I20: RMO Organizační řád MO vydaný jako služební předpis Státního tajemníka v Ministerstvu obrany | J20: -48 | K20: D
C21: x | E21: Doktríny | F21: Provedení aktualizace Plánu vydávání (novelizací, revizí) vojenských předpisů a publikací | G21: Na základě vybrané výzbroje (techniky) provést analýzu funkčních náplní a navrhnout jejich aktualizaci. | H21: O | I21: RMO 1/2017 O přípravě návrhů, posuzování a schvalování vnitřních předpisů a Věstníku MO | J21: -24 | K21: D
C22: x | E22: Doktríny | F22: Provedení aktualizace jiných právních předpisů (zákony, vyhlášky, ČSN, ČOS, STANAG,…) | G22: Na základě výsledků technického vývoje provést analýzu Zákona o majetku státu a majetku ozbrojených sil a navrhnout jejich novelizace | H22: M | I22: Zákon č. 219/2000 Sb. Zákon o majetku ČR a jejím vystupovánmím v právních vztazích; Zákon č. 219/1999 Sb. Zákon o ozbrojených silách ČR | J22: -12 | K22: D
C23: X | E23: Doktríny | F23: Provedení aktualizace jiných právních předpisů (zákony, vyhlášky, ČSN, ČOS, STANAG,…) | G23: Na základě výsledků technického vývoje provést analýzu Vyhlášek v gesci MO ČR a případně navrhnout jejich novelizaci | H23: M | I23: Vyhláška 100/2018 Sb. Vyhláška o technické způsobilosti a pravidelných technických prohlídkách vojenských vozidel; Vyhláška 154/2011 Sb. Vyhláška o vojenské letecké technice; Vyhláška 273/1999 Sb. Vyhláška vojenské technické zařízení; Vyhláška 275/1999 Sb. Vyhláška kategorie vojenských plavidel, technická způsobilost | J23: -12 | K23: D
C24: X | E24: Doktríny | F24: Provedení aktualizace jiných právních předpisů (zákony, vyhlášky, ČSN, ČOS, STANAG,…) | G24: Na základě výsledků technického vývoje provést analýzu ČOS, STANAG a případně navrhnout jejich novelizaci. | I24: ČOS 051616 Termionologie pro bezporuchovost a udržovatelnost; ČOS 051632 Průvodní a provozní dokumentace pro vojenskou techniku a materiál; ČOS 051633 Učební pomůcky pro pozemní vojenskou techniku; ČOS 051655 Etapy a procesy životního cyklu systémů NATO; ČOS 051659 Pokyny NATO pro analýzu nákladů životního cyklu; ČOS 051662 Příručka pro postupné plánování vyzbrojování; Zákon č. 309/2000 Sb. Zákon o obranné standardizaci, katagolizaci a státního ověřování jakosti … | J24: -12 | K24: D | L24: xx
C25: x | E25: Organizace | F25: Organizační změny v závislosti na nově pořizovanou techniku | G25: Na základě výběru rozvojového projektu provést analýzu organizačních struktur základního stupně (družstvo, četa, rota) a případně navrhnout jejich změny. | I25: RMO 2/2019 Zásady tvorby systémizovaných míst | J25: -12 | K25: D
C26: x | E26: Organizace | F26: Organizační změny v závislosti na nově pořizovanou techniku | G26: Provést analýzu organizační struktury příslušného útvaru nebo příslušných útvarů AČR a případně navrhnout jeho nebo jejich změny. | I26: RMO 2/2019 Zásady tvorby systémizovaných míst | J26: -12 | K26: D
C27: x | E27: Organizace | F27: Organizační změny v závislosti na nově pořizovanou techniku | G27: Provést analýzu organizačních struktur AČR a případně navrhnout jejich změny. | I27: RMO 2/2019 Zásady tvorby systémizovaných míst | J27: -12 | K27: D
C28: x | E28: Organizace | F28: Organizační změny v závislosti na nově pořizovanou techniku | G28: Provést analýzu organizačních struktur jednotek pro výcvik a případně navrhnout jejich změny. | I28: NVMO 41/2010 Vzdělávací a výcvikové aktivity v rezortu MO; NVMO 5/2013 Výcviková a školící zařízení organizačních celků rezortu MO; RMO 2/2019 Zásady tvorby systémizovaných míst | J28: -12 | K28: D
C29: x | E29: Organizace | F29: Organizační změny v závislosti na nově pořizovanou techniku | G29: Provést analýzu organizačních struktur jednotek pro školení SW a případně navrhnout jejich změny. | I29: NVMO 41/2010 Vzdělávací a výcvikové aktivity v rezortu MO; NVMO 5/2013 Výcviková a školící zařízení organizačních celků rezortu MO; RMO 2/2019 Zásady tvorby systémizovaných míst | J29: -12 | K29: D | L29: xx
C30: x | E30: Organizace | F30: Organizační změny v závislosti na nově pořizovanou techniku | G30: Provést analýzu organizačních struktur jednotek včetně bojového zabezpečení a bojové podpory a případně navrhnout jejich změny. | H30: M | I30: ČOS 051655 Etapy a procesy životního cyklu systémů NATO; ČOS 051662 Příručka pro postupné plánování vyzbrojování; Log-2-4 Vojskové opravy pozemní vojenské techniky.; NVMO 41/2010 Vzdělávací a výcvikové aktivity v rezortu MO; NVMO 5/2013 Výcviková a školící zařízení organizačních celků rezortu MO; RMO 2/2019 Zásady tvorby systémizovaných míst | J30: -12 | K30: D
C31: x | E31: Organizace | F31: Organizační změny v závislosti na nově pořizovanou techniku | G31: Navrhnout organizační změny za účelem podpory koncepčního rozvoje, výzkumu, vývoje a inovací. | I31: RMO 2/2019 Zásady tvorby systémizovaných míst; Koncepce Koncepční materiály | J31: -12 | K31: D
C32: x | E32: Organizace | F32: Organizační změny v závislosti na nově pořizovanou techniku | G32: Realizovat organizační změny vydáním OMDZ. | I32: RMO 2/2019 Zásady tvorby systémizovaných míst; Koncepce Koncepční materiály | J32: -12 | K32: D
C33: x | E33: Organizace | F33: Organizační změny v závislosti na nově pořizovanou techniku | G33: Navrhnout a provést aktualizace odpovědností v Organizačním řádu velitelství/jednotek. | H33: D | I33: RMO Organizační řád MO vydaný jako služební předpis Státního tajemníka v Ministerstvu obrany | J33: -12 | K33: D
B34: x | E34: Výcvik | F34: Modernizace nebo výstavba učební a výcvikové základny | G34: Plánovat údržbu a rozvoj posádkového cvičiště a následné zapracování do projektové dokumentace (specifikace). | I34: MP Metodické pokyny pro tvorbu SdP; RMO 66/2012 Plánování činnosti a rozvoje vojsk v rezortu MO; Vševojsk-17-2 Plánování a hodnocení přípravy vojsk AČR | J34: -24 | K34: D
B35: x | E35: Výcvik | F35: Modernizace nebo výstavba učební a výcvikové základny | G35: Plánovat údržbu a rozvoj VA-VeV a následné zapracování do projektové dokumentace (specifikace). | I35: MP Metodické pokyny pro tvorbu SdP; RMO 66/2012 Plánování činnosti a rozvoje vojsk v rezortu MO; Vševojsk-17-2 Plánování a hodnocení přípravy vojsk AČR | J35: -24 | K35: D
B36: x | E36: Výcvik | F36: Modernizace nebo výstavba učební a výcvikové základny | G36: Plánovat údržbu a rozvoj SOVZ a následné zapracování do projektové dokumentace (specifikace). | I36: MP Metodické pokyny pro tvorbu SdP; NVMO 41/2010 Vzdělávací a výcvikové aktivity v rezortu MO; NVMO 5/2013 Výcviková a školící zařízení organizačních celků rezortu MO; RMO 66/2012 Plánování činnosti a rozvoje vojsk v rezortu MO; Vševojsk-17-2 Plánování a hodnocení přípravy vojsk AČR | J36: -24 | K36: D
B37: x | E37: Výcvik | F37: Modernizace nebo výstavba učební a výcvikové základny | G37: Plánovat údržbu a rozvoj školících zařízení KIS - školení SW a následné zapracování do projektové dokumentace (specifikace). | I37: MP Metodické pokyny pro tvorbu SdP; NVMO 41/2010 Vzdělávací a výcvikové aktivity v rezortu MO; NVMO 5/2013 Výcviková a školící zařízení organizačních celků rezortu MO; NVMO 60/2017 O jednotném postupu při úplatném nybývání majetku, služeb a stavebních prací vv rezoru MO; RMO 66/2012 Plánování činnosti a rozvoje vojsk v rezortu MO; Vševojsk-17-2 Plánování a hodnocení přípravy vojsk AČR | J37: -24 | K37: D
B38: x | E38: Výcvik | F38: Modernizace nebo výstavba učební a výcvikové základny | G38: Plánovat údržbu a rozvoj CSTT a následné zapracování do projektové dokumentace (specifikace). | I38: MP Metodické pokyny pro tvorbu SdP; NVMO 41/2010 Vzdělávací a výcvikové aktivity v rezortu MO; NVMO 5/2013 Výcviková a školící zařízení organizačních celků rezortu MO; NVMO 60/2017 O jednotném postupu při úplatném nybývání majetku, služeb a stavebních prací vv rezoru MO; RMO 66/2012 Plánování činnosti a rozvoje vojsk v rezortu MO; Vševojsk-17-2 Plánování a hodnocení přípravy vojsk AČR | J38: -24 | K38: D
B39: x | E39: Výcvik | F39: Dokumentace výcviku | G39: Aktualizovat nebo vydat novou dokumentaci pro školení řidičů, osádek, technického personálu. | I39: ČOS 051633 Učební pomůcky pro pozemní vojenskou techniku; MP Metodické pokyny pro tvorbu SdP; NVMO 2/2018 Provozování pozemní vojenské techniky; NVMO 41/2010 Vzdělávací a výcvikové aktivity v rezortu MO; RMO 1/2017 O přípravě návrhů, posuzování a schvalování vnitřních předpisů a Věstníku MO; RMO 66/2012 Plánování činnosti a rozvoje vojsk v rezortu MO; Zákon č. 258/2000 Sb. Zákon o ochraně veřejného zdraví; Zákon č. 309/2000 Sb. Zákon o obranné standardizaci, katagolizaci a státního ověřování jakosti …; Zákon č. 309/2006 Sb. Zákon o zajištění dalších podmínek bezpečnosti a ochrany zdraví při práci; Zákon č. 361/2000 Sb. Zákon o provozu na pozemních komunikacích | J39: 12 | K39: D
B40: x | E40: Výcvik | F40: Úvodní školení s dodávkou prvního kusu | G40: Zapracovat požadavek na školení instruktorů výcviku osádek a technického personálu do specifikace. | I40: ČOS 051633 Učební pomůcky pro pozemní vojenskou techniku; NVMO 2/2018 Provozování pozemní vojenské techniky; NVMO 41/2010 Vzdělávací a výcvikové aktivity v rezortu MO; RMO 1/2017 O přípravě návrhů, posuzování a schvalování vnitřních předpisů a Věstníku MO; RMO 66/2012 Plánování činnosti a rozvoje vojsk v rezortu MO; Zákon č. 258/2000 Sb. Zákon o ochraně veřejného zdraví; Zákon č. 309/2000 Sb. Zákon o obranné standardizaci, katagolizaci a státního ověřování jakosti …; Zákon č. 309/2006 Sb. Zákon o zajištění dalších podmínek bezpečnosti a ochrany zdraví při práci | J40: -24 | K40: D
B41: x | E41: Výcvik | F41: Úvodní školení s dodávkou prvního kusu | G41: Zapracovat požadavek na školení a výcvik prvních osádek a prvního technického personálu do specifikace. | I41: ČOS 051633 Učební pomůcky pro pozemní vojenskou techniku; NVMO 2/2018 Provozování pozemní vojenské techniky; NVMO 41/2010 Vzdělávací a výcvikové aktivity v rezortu MO; RMO 1/2017 O přípravě návrhů, posuzování a schvalování vnitřních předpisů a Věstníku MO; RMO 66/2012 Plánování činnosti a rozvoje vojsk v rezortu MO; Zákon č. 258/2000 Sb. Zákon o ochraně veřejného zdraví; Zákon č. 309/2000 Sb. Zákon o obranné standardizaci, katagolizaci a státního ověřování jakosti …; Zákon č. 309/2006 Sb. Zákon o zajištění dalších podmínek bezpečnosti a ochrany zdraví při práci | J41: -24 | K41: D
B42: x | E42: Výcvik | F42: Předpokládaný záměr rozsahu používání | G42: Stanovit roční proběh v km (lehký/střední/těžký terén), případně jiný faktor dle daného rozvojového projektu. | H42: M | I42: ČOS 051659 Pokyny NATO pro analýzu nákladů životního cyklu; NVMO 2/2018 Provozování pozemní vojenské techniky; NVMO 41/2010 Vzdělávací a výcvikové aktivity v rezortu MO; RMO 66/2012 Plánování činnosti a rozvoje vojsk v rezortu MO; Pub Vojenské publikace pro výcvik (obecně) | J42: -24 | K42: D
B43: x | E43: Výcvik | F43: Předpokládaný záměr rozsahu používání | G43: Stanovit roční počet výstřelů po druzích a typech. | H43: M | I43: ČOS 051659 Pokyny NATO pro analýzu nákladů životního cyklu; NVMO 2/2018 Provozování pozemní vojenské techniky; NVMO 41/2010 Vzdělávací a výcvikové aktivity v rezortu MO; RMO 66/2012 Plánování činnosti a rozvoje vojsk v rezortu MO; Pub Vojenské publikace pro výcvik (obecně) | J43: -24 | K43: D
B44: x | E44: Výcvik | F44: Předpokládaný záměr rozsahu používání | G44: Definovat další provozní ukazatele (nabíjecí cyklus, provozní hodiny, motohodiny,…). | H44: M | I44: ČOS 051659 Pokyny NATO pro analýzu nákladů životního cyklu; NVMO 2/2018 Provozování pozemní vojenské techniky; RMO 66/2012 Plánování činnosti a rozvoje vojsk v rezortu MO; Pub Vojenské publikace pro výcvik (obecně) | J44: -24 | K44: D
C45: x | E45: Výcvik | F45: Aktualizace dokumentace pro hodnocení bojové připravenosti jednotek | G45: Aktualizovat dokumentaci pro hodnocení bojové připravenosti jednotek systémem CREVAL. | H45: D | I45: Pub Vojenské publikace pro výcvik (obecně); Koncepce Koncepční materiály | J45: -12 | K45: D | L45: xx
C46: x | E46: Výcvik | F46: Aktualizace dokumentace pro hodnocení bojové připravenosti jednotek | G46: Aktualizovat dokumentaci pro hodnocení bojové připravenosti jednotek systémem TACEVAL. | H46: D | I46: Pub Vojenské publikace pro výcvik (obecně); Koncepce Koncepční materiály | J46: -12 | K46: D
C47: xi | E47: Výcvik | F47: Aktualizace dokumentace pro hodnocení bojové připravenosti jednotek | G47: Aktualizovat dokumentaci pro zajištění požadovaných certifikací (ODVL SŘO MO, NÚKIB,...) | H47: D | I47: Pub Vojenské publikace pro výcvik (obecně); Koncepce Koncepční materiály | J47: 6 | K47: D
C48: x | E48: Výcvik | F48: Systém přípravy a výcviku jednotek | G48: Navrhovat úpravy systému přípravy a výcviku jednotek a úpravy výcvikových cyklů k dosažení (udržení) operačních schopností. | I48: NVMO 41/2010 Vzdělávací a výcvikové aktivity v rezortu MO | J48: -12 | K48: D
C49: x | E49: Výcvik | F49: Systém přípravy a výcviku jednotek | G49: Navrhovat úpravu systému přípravy a výcviku jednotek a úpravy výcvikových cyklů při přípravě do operace, pro plnění stanoveného úkolu. | I49: NVMO 41/2010 Vzdělávací a výcvikové aktivity v rezortu MO | J49: -12 | K49: D
C50: x | E50: Výcvik | F50: Systém přípravy a výcviku jednotek | G50: Aktualizovat výcvikovou dokumentaci s využitím simulace, zavádění nového typu výcviku na základě nových technologií. | H50: D | I50: ČOS 051633 Učební pomůcky pro pozemní vojenskou techniku; NVMO 41/2010 Vzdělávací a výcvikové aktivity v rezortu MO; Pub Vojenské publikace pro výcvik (obecně) | J50: -12 | K50: D
C51: x | E51: Materiál | F51: Udržitelnost | G51: Na základě analýzy opravárenských schopností navrhnout změny pro jejich dostatečnost - organizační změny. | H51: O | I51: ČOS 051616 Termionologie pro bezporuchovost a udržovatelnost; ČOS 051655 Etapy a procesy životního cyklu systémů NATO; Log-2-4 Vojskové opravy pozemní vojenské techniky.; RMO 66/2012 Plánování činnosti a rozvoje vojsk v rezortu MO; Koncepce Koncepční materiály | J51: -12 | K51: D
C52: x | E52: Materiál | F52: Udržitelnost | G52: Na základě analýzy opravárenských schopností navrhnout změny pro jejich dostatečnost - nákup služby. | I52: ČOS 051616 Termionologie pro bezporuchovost a udržovatelnost; ČOS 051655 Etapy a procesy životního cyklu systémů NATO; Log-2-4 Vojskové opravy pozemní vojenské techniky.; RMO 66/2012 Plánování činnosti a rozvoje vojsk v rezortu MO; Koncepce Koncepční materiály | J52: -12 | K52: D
B53: x | E53: Materiál | F53: Udržitelnost | G53: Do specifikace zapracovat požadavek na vytvoření Normy náhradních dílů a na pořízení jedné takovéto soupravy. | I53: ČOS 051616 Termionologie pro bezporuchovost a udržovatelnost; Log-2-4 Vojskové opravy pozemní vojenské techniky.; NVMO 16/2017 Rezervy majetku v působnosti MO; RMO 66/2012 Plánování činnosti a rozvoje vojsk v rezortu MO; Koncepce Koncepční materiály | J53: -24 | K53: D
C54: x | E54: Materiál | F54: Udržitelnost | G54: Do SdP zapracovat požadavek na tvorbu zásob nové výzbroje a techniky po celý životní cyklus. | I54: ČOS 051616 Termionologie pro bezporuchovost a udržovatelnost; ČOS 051655 Etapy a procesy životního cyklu systémů NATO; NVMO 16/2017 Rezervy majetku v působnosti MO; RMO 66/2012 Plánování činnosti a rozvoje vojsk v rezortu MO; Koncepce Koncepční materiály | J54: -24 | K54: D
D55: x | E55: Materiál | F55: Udržitelnost | G55: V SdP aktualizovat požadavek na tvorbu zásob nové výzbroje a techniky po celý životní cyklus. | I55: ČOS 051616 Termionologie pro bezporuchovost a udržovatelnost; ČOS 051655 Etapy a procesy životního cyklu systémů NATO; NVMO 16/2017 Rezervy majetku v působnosti MO; RMO 66/2012 Plánování činnosti a rozvoje vojsk v rezortu MO; Koncepce Koncepční materiály | J55: 6 | K55: D | L55: xx
C56: x | E56: Materiál | F56: Udržení schopnosti | G56: Do SdP zapracovat požadavek na údržbu a doplňování zásob nové výzbroje a techniky po celý její životní cyklus. | I56: ČOS 051616 Termionologie pro bezporuchovost a udržovatelnost; ČOS 051632 Průvodní a provozní dokumentace pro vojenskou techniku a materiál; ČOS 051655 Etapy a procesy životního cyklu systémů NATO; Log-2-4 Vojskové opravy pozemní vojenské techniky.; NVMO 16/2017 Rezervy majetku v působnosti MO; RMO 66/2012 Plánování činnosti a rozvoje vojsk v rezortu MO; Koncepce Koncepční materiály | J56: -24 | K56: D
D57: x | E57: Materiál | F57: Udržení schopnosti | G57: V SdP aktualizovat požadavek na údržbu a doplňování zásob nové výzbroje a techniky po celý její životní cyklus. | I57: ČOS 051616 Termionologie pro bezporuchovost a udržovatelnost; ČOS 051632 Průvodní a provozní dokumentace pro vojenskou techniku a materiál; ČOS 051655 Etapy a procesy životního cyklu systémů NATO; Log-2-4 Vojskové opravy pozemní vojenské techniky.; NVMO 16/2017 Rezervy majetku v působnosti MO; RMO 66/2012 Plánování činnosti a rozvoje vojsk v rezortu MO; Koncepce Koncepční materiály | J57: 6 | K57: D
C58: x | E58: Materiál | F58: Udržení schopnosti | G58: Do specifikace zapracovat požadavek na pořízení mechanizačních dílenských prostředků (MDP). | I58: ČOS 051616 Termionologie pro bezporuchovost a udržovatelnost; ČOS 051632 Průvodní a provozní dokumentace pro vojenskou techniku a materiál; ČOS 051655 Etapy a procesy životního cyklu systémů NATO; Log-2-4 Vojskové opravy pozemní vojenské techniky.; RMO 66/2012 Plánování činnosti a rozvoje vojsk v rezortu MO; Vševojsk-16-3 Systemizace technologických zařízení pracovišť, dílen a opraven pro údržbu pozemní vojenské techniky; Koncepce Koncepční materiály | J58: -12 | K58: D
C59: x | E59: Materiál | F59: Udržení schopnosti | G59: Do specifikace zapracovat požadavek na pořízení nebo modernizaci evakuačních, vyprošťovacích a mobilních dílenských prostředků. | I59: ČOS 051616 Termionologie pro bezporuchovost a udržovatelnost; ČOS 051632 Průvodní a provozní dokumentace pro vojenskou techniku a materiál; ČOS 051655 Etapy a procesy životního cyklu systémů NATO; Log-2-4 Vojskové opravy pozemní vojenské techniky.; NVMO 38/2014 Normy vojenského materiálu pro předepisování do tabulek počtů; RMO 66/2012 Plánování činnosti a rozvoje vojsk v rezortu MO; Koncepce Koncepční materiály | J59: -12 | K59: D
C60: x | E60: Materiál | F60: Udržení schopnosti | G60: Do SdP zapracovat požadavky na údržbu a obměnu vojenské výzbroje a vojenské techniky (naplnění životního cyklu). | I60: ČOS 051616 Termionologie pro bezporuchovost a udržovatelnost; ČOS 051632 Průvodní a provozní dokumentace pro vojenskou techniku a materiál; RMO 66/2012 Plánování činnosti a rozvoje vojsk v rezortu MO; Koncepce Koncepční materiály | J60: -12 | K60: D
D61: x | E61: Materiál | F61: Udržení schopnosti | G61: V SdP aktualizovat požadavky na údržbu a obměnu vojenské výzbroje a vojenské techniky (naplnění životního cyklu). | I61: ČOS 051616 Termionologie pro bezporuchovost a udržovatelnost; ČOS 051632 Průvodní a provozní dokumentace pro vojenskou techniku a materiál; RMO 66/2012 Plánování činnosti a rozvoje vojsk v rezortu MO; Koncepce Koncepční materiály | J61: 6 | K61: D
C62: x | E62: Materiál | F62: Udržení schopnosti | G62: Do SdP zapracovat požadavky na údržbu a obměnu zařízení a techniky UVZ a STT (naplnění životního cyklu). | H62: T | I62: ČOS 051616 Termionologie pro bezporuchovost a udržovatelnost; ČOS 051632 Průvodní a provozní dokumentace pro vojenskou techniku a materiál; RMO 66/2012 Plánování činnosti a rozvoje vojsk v rezortu MO; Koncepce Koncepční materiály | J62: -12 | K62: D
D63: x | E63: Materiál | F63: Udržení schopnosti | G63: V SdP aktualizovat požadavky na údržbu a obměnu zařízení a techniky UVZ a STT (naplnění životního cyklu). | H63: T | I63: ČOS 051616 Termionologie pro bezporuchovost a udržovatelnost; ČOS 051632 Průvodní a provozní dokumentace pro vojenskou techniku a materiál; RMO 66/2012 Plánování činnosti a rozvoje vojsk v rezortu MO; Koncepce Koncepční materiály | J63: 6 | K63: D
D64: x | E64: Materiál | F64: Rozvoj schopnosti | G64: Vyčlenit finanční prostředky pro zabezpečení životního cyklu nové výzbroje a techniky (pořízení MDP, ND, školení personálu, údržby a oprav). | I64: ČOS 051616 Termionologie pro bezporuchovost a udržovatelnost; ČOS 051632 Průvodní a provozní dokumentace pro vojenskou techniku a materiál; RMO 66/2012 Plánování činnosti a rozvoje vojsk v rezortu MO; Koncepce Koncepční materiály | J64: 24 | K64: D
C65: x | E65: Materiál | F65: Rozvoj schopnosti | G65: Plánovat (rozpočtovat) finanční prostředky pro zabezpečení nákladů na vojskové zkoušky a certifikaci (NUKIB, ODVL SŘO MO, …) | I65: ČOS 051616 Termionologie pro bezporuchovost a udržovatelnost; ČOS 051632 Průvodní a provozní dokumentace pro vojenskou techniku a materiál; ČOS 051655 Etapy a procesy životního cyklu systémů NATO; RMO 66/2012 Plánování činnosti a rozvoje vojsk v rezortu MO; Koncepce Koncepční materiály; Let-1-1 Předpis pro létání; Let-1-4 Inženýrská letecká služba; Let-1-11 Letecký zkušební provoz; RMO 21/2018 O zajištění kybernetické bezpečnosti v rezortu MO; NVMO 111/2013 Kryptografická ochrana utajovaných informací v rezortu MO; NVMO 85/2013 Bezpečnost informačních a komunikačních systémů a elektronických zařízení nakládajících s utajovanými informacemi v rezortu MO; NVMO 20/2013 Bezpečnost informačních a komunikačních systémů a elektronických zařízení, které nakládají s určenými neutajovanými informacemi v rezortu MO | J65: -12 | K65: D
D66: x | E66: Materiál | F66: Rozvoj schopnosti | G66: Vyčlenit finanční prostředky pro zabezpečení nákladů na vojskové zkoušky a certifikaci | I66: ČOS 051616 Termionologie pro bezporuchovost a udržovatelnost; ČOS 051632 Průvodní a provozní dokumentace pro vojenskou techniku a materiál; ČOS 051655 Etapy a procesy životního cyklu systémů NATO; RMO 66/2012 Plánování činnosti a rozvoje vojsk v rezortu MO; Koncepce Koncepční materiály | J66: 6 | K66: D | L66: xx
D67: x | E67: Materiál | F67: Rozvoj schopnosti | G67: Aktualizovat Koncepci rozvoje materiálního zabezpečení (logistiky, KIS, zdr.). | H67: D | I67: ČOS 051616 Termionologie pro bezporuchovost a udržovatelnost; ČOS 051632 Průvodní a provozní dokumentace pro vojenskou techniku a materiál; ČOS 051655 Etapy a procesy životního cyklu systémů NATO; RMO 61/2017 Koncepční dokumenty MO; RMO 66/2012 Plánování činnosti a rozvoje vojsk v rezortu MO; Koncepce Koncepční materiály | J67: 12 | K67: D
C68: x | E68: Materiál | F68: Rozvoj schopnosti | G68: Aktualizovat předpisy, pomůcky a postupy pro materiální zabezpečení. | H68: D | I68: ČOS 051616 Termionologie pro bezporuchovost a udržovatelnost; ČOS 051632 Průvodní a provozní dokumentace pro vojenskou techniku a materiál; ČOS 051655 Etapy a procesy životního cyklu systémů NATO; RMO 66/2012 Plánování činnosti a rozvoje vojsk v rezortu MO; Koncepce Koncepční materiály; Let-1-1 Předpis pro létání; Let-1-4 Inženýrská letecká služba; Let-1-11 Letecký zkušební provoz; RMO 21/2018 O zajištění kybernetické bezpečnosti v rezortu MO; NVMO 111/2013 Kryptografická ochrana utajovaných informací v rezortu MO; NVMO 85/2013 Bezpečnost informačních a komunikačních systémů a elektronických zařízení nakládajících s utajovanými informacemi v rezortu MO; NVMO 20/2013 Bezpečnost informačních a komunikačních systémů a elektronických zařízení, které nakládají s určenými neutajovanými informacemi v rezortu MO | J68: -12 | K68: D
D69: x | E69: Materiál | F69: Rozvoj schopnosti | G69: Zpracovat předpisy, pomůcky a postupy pro materiální zabezpečení. | H69: D | I69: ČOS 051616 Termionologie pro bezporuchovost a udržovatelnost; ČOS 051632 Průvodní a provozní dokumentace pro vojenskou techniku a materiál; ČOS 051655 Etapy a procesy životního cyklu systémů NATO; RMO 66/2012 Plánování činnosti a rozvoje vojsk v rezortu MO; Koncepce Koncepční materiály | J69: 18 | K69: D
B70: x | E70: Leadership | F70: Udržení a rozvoj schopnosti | G70: Do specifikace zapracovat požadavek na implementaci/integraci stávajících prostředků SVŘ nebo na přizpůsobení stávajícího SW. | H70: M | I70: ČOS 051616 Termionologie pro bezporuchovost a udržovatelnost; ČOS 051632 Průvodní a provozní dokumentace pro vojenskou techniku a materiál; ČOS 051655 Etapy a procesy životního cyklu systémů NATO; NVMO 60/2017 O jednotném postupu při úplatném nybývání majetku, služeb a stavebních prací vv rezoru MO; RMO 66/2012 Plánování činnosti a rozvoje vojsk v rezortu MO; Koncepce Koncepční materiály | J70: -24 | K70: D
C71: x | E71: Leadership | F71: Udržení a rozvoj schopnosti | G71: Při pořizování nové výzbroje a techniky zabezpečit implementaci do stávajícího SVŘ. | H71: M | I71: Koncepce Koncepční materiály | J71: -12 | K71: D
C72: x | E72: Leadership | F72: Udržení a rozvoj schopnosti | G72: Zabezpečit rozvoj prostředků systému velení a řízení včetně implementace do zavedené vojenské výzbroje a techniky. | H72: M | I72: Koncepce Koncepční materiály | J72: -12 | K72: D
B73: x | E73: Interoperabilita | F73: Udržení a rozvoj schopnosti | G73: Zabezpečit interoperabilitu se systémy NATO. | H73: M | I73: Koncepce Koncepční materiály | J73: -24 | K73: D
C74: x | E74: Výcvik | F74: Udržení a rozvoj schopnosti | G74: Plánovat přípravu personálu v oblasti velení a řízení. | H74: T, P | I74: N NGŠ N NGŠ k pplánování a provádění PVPŠ; NVMO 41/2010 Vzdělávací a výcvikové aktivity v rezortu MO; NVMO 5/2013 Výcviková a školící zařízení organizačních celků rezortu MO; RMO 1/2017 O přípravě návrhů, posuzování a schvalování vnitřních předpisů a Věstníku MO; Pub Vojenské publikace pro výcvik (obecně) | J74: -12 | K74: D
D75: x | E75: Výcvik | F75: Udržení a rozvoj schopnosti | G75: Zajistit přípravu personálu v oblasti velení a řízení. | H75: T, P | I75: N NGŠ N NGŠ k pplánování a provádění PVPŠ; NVMO 41/2010 Vzdělávací a výcvikové aktivity v rezortu MO; NVMO 5/2013 Výcviková a školící zařízení organizačních celků rezortu MO; RMO 1/2017 O přípravě návrhů, posuzování a schvalování vnitřních předpisů a Věstníku MO; Pub Vojenské publikace pro výcvik (obecně) | J75: 12 | K75: D | L75: xx
C76: x | E76: Materiál | F76: Udržení schopnosti | G76: Plánovat informační podporu plánování, provedení a vyhodnocování využívání vzdušného prostoru UVZ (SVOZ) | I76: MP Metodické pokyny pro tvorbu SdP; NVMO 41/2010 Vzdělávací a výcvikové aktivity v rezortu MO; NVMO 5/2013 Výcviková a školící zařízení organizačních celků rezortu MO | J76: -12 | K76: D
D77: x | E77: Materiál | F77: Udržení schopnosti | G77: Zabezpečit informační podporu plánování, provedení a vyhodnocování využívání vzdušného prostoru UVZ (SVOZ) | I77: MP Metodické pokyny pro tvorbu SdP; NVMO 41/2010 Vzdělávací a výcvikové aktivity v rezortu MO; NVMO 5/2013 Výcviková a školící zařízení organizačních celků rezortu MO | J77: 12 | K77: D
C78: x | E78: Leadership | F78: Udržení a rozvoj schopnosti | G78: Plánovat informační podporu plánování, provedení a vyhodnocování UVZ. | H78: M | I78: ČOS 051633 Učební pomůcky pro pozemní vojenskou techniku; Vševojsk-10-1 Pravidla vedení provozní dokumentace výzbroje a ostatní techniky; Vševojsk-10-6 Učební a výcviková základna | J78: -12 | K78: D
D79: x | E79: Leadership | F79: Udržení a rozvoj schopnosti | G79: Zabezpečit informační podporu plánování, provedení a vyhodnocování UVZ. | H79: M | I79: ČOS 051633 Učební pomůcky pro pozemní vojenskou techniku; Vševojsk-10-1 Pravidla vedení provozní dokumentace výzbroje a ostatní techniky; Vševojsk-10-6 Učební a výcviková základna | J79: 12 | K79: D
C80: x | E80: Výcvik | F80: Udržení a rozvoj schopnosti | G80: Aktualizovat pomůcky, předpisy a směrnice pro přípravu velitelů a štábů. | H80: D | I80: ČOS 051633 Učební pomůcky pro pozemní vojenskou techniku; RMO 1/2017 O přípravě návrhů, posuzování a schvalování vnitřních předpisů a Věstníku MO | J80: -12 | K80: D
D81: x | E81: Výcvik | F81: Udržení a rozvoj schopnosti | G81: Zpracovat pomůcky, předpisy a směrnice pro přípravu velitelů a štábů. | H81: D | I81: ČOS 051633 Učební pomůcky pro pozemní vojenskou techniku; RMO 1/2017 O přípravě návrhů, posuzování a schvalování vnitřních předpisů a Věstníku MO | J81: 18 | K81: D
B82: x | E82: Leadership | F82: Udržení a rozvoj schopnosti | G82: Aktualizovat Koncepci výstavby systému velení a řízení AČR. | H82: D | I82: RMO 61/2017 Koncepční dokumenty MO; Koncepce Koncepční materiály | J82: -36 | K82: D
D83: x | E83: Personál | F83: Udržení a rozvoj schopnosti | G83: Zpracovat nebo aktualizovat popis jednotlivých systemizovaných míst. | H83: O | I83: RMO Organizační řád MO vydaný jako služební předpis Státního tajemníka v Ministerstvu obrany; RMO 2/2019 Zásady tvorby systémizovaných míst; Vševojsk-1-1 Povinnosti funkcionářů a jednotek pozemního vojska Čs. armády | J83: 18 | K83: D
B84: x | E84: Personál | F84: Udržení a rozvoj schopnosti | G84: Do specifikace zapracovat požadavek na prvotní vyškolení personálu (osádek a instruktorů). | H84: T, M | I84: ČOS 051655 Etapy a procesy životního cyklu systémů NATO; NVMO 60/2017 O jednotném postupu při úplatném nybývání majetku, služeb a stavebních prací vv rezoru MO; Vševojsk-10-6 Učební a výcviková základna; Vševojsk-1-1 Povinnosti funkcionářů a jednotek pozemního vojska Čs. armády; Vševojsk-17-2 Plánování a hodnocení přípravy vojsk AČR; Vševojsk-4-2 Osnovy střeleb z ručních zbraní a zbraní bojových vozidel | J84: -24 | K84: D
C85: x | E85: Personál | F85: Udržení a rozvoj schopnosti | G85: Plánovat přípravu instruktorů. | H85: T | I85: Vševojsk-10-6 Učební a výcviková základna; Vševojsk-1-1 Povinnosti funkcionářů a jednotek pozemního vojska Čs. armády; Vševojsk-17-2 Plánování a hodnocení přípravy vojsk AČR; Vševojsk-4-2 Osnovy střeleb z ručních zbraní a zbraní bojových vozidel | J85: -12 | K85: D
D86: x | E86: Personál | F86: Udržení a rozvoj schopnosti | G86: Zabezpečit přípravu instruktorů. | H86: T | I86: Vševojsk-10-6 Učební a výcviková základna; Vševojsk-1-1 Povinnosti funkcionářů a jednotek pozemního vojska Čs. armády; Vševojsk-17-2 Plánování a hodnocení přípravy vojsk AČR; Vševojsk-4-2 Osnovy střeleb z ručních zbraní a zbraní bojových vozidel | J86: 12 | K86: D
C87: x | E87: Personál | F87: Udržení a rozvoj schopnosti | G87: Plánovat přípravu pedagogického sboru vojenského školství a školících zařízení. | H87: T | I87: ČOS 051633 Učební pomůcky pro pozemní vojenskou techniku; Vševojsk-10-6 Učební a výcviková základna; Vševojsk-1-1 Povinnosti funkcionářů a jednotek pozemního vojska Čs. armády; Vševojsk-17-2 Plánování a hodnocení přípravy vojsk AČR | J87: -12 | K87: D
D88: x | E88: Personál | F88: Udržení a rozvoj schopnosti | G88: Připravit pedagogický sbor vojenského školství a školících zařízení. | H88: T | I88: ČOS 051633 Učební pomůcky pro pozemní vojenskou techniku; Vševojsk-10-6 Učební a výcviková základna; Vševojsk-1-1 Povinnosti funkcionářů a jednotek pozemního vojska Čs. armády; Vševojsk-17-2 Plánování a hodnocení přípravy vojsk AČR | J88: 12 | K88: D
C89: x | E89: Personál | F89: Udržení a rozvoj schopnosti | G89: Plánovat zavedení nových metod přípravy personálu na základě nových technologií. | H89: T | I89: ČOS 051633 Učební pomůcky pro pozemní vojenskou techniku; Vševojsk-10-6 Učební a výcviková základna; Vševojsk-1-1 Povinnosti funkcionářů a jednotek pozemního vojska Čs. armády; Vševojsk-17-2 Plánování a hodnocení přípravy vojsk AČR | J89: -12 | K89: D
D90: x | E90: Personál | F90: Udržení a rozvoj schopnosti | G90: Zavést nové metody přípravy personálu na základě nových technologií. | H90: T | I90: ČOS 051633 Učební pomůcky pro pozemní vojenskou techniku; Vševojsk-10-6 Učební a výcviková základna; Vševojsk-1-1 Povinnosti funkcionářů a jednotek pozemního vojska Čs. armády; Vševojsk-17-2 Plánování a hodnocení přípravy vojsk AČR | J90: 18 | K90: D
C91: x | E91: Personál | F91: Udržení a rozvoj schopnosti | G91: Aktualizovat popis jednotlivých systemizovaných míst. | H91: O, D | I91: RMO 2/2019 Zásady tvorby systémizovaných míst | J91: -12 | K91: D
D92: x | E92: Personál | F92: Udržení a rozvoj schopnosti | G92: Zpracovat popis jednotlivých systemizovaných míst. | H92: O, D | I92: RMO 2/2019 Zásady tvorby systémizovaných míst | J92: 12 | K92: D
D93: x | E93: Personál | F93: Udržení a rozvoj schopnosti | G93: Provést nábor personálu při zavádění nové výzbroje a techniky. | H93: O | I93: N NGŠ N NGŠ k pplánování a provádění PVPŠ; NVMO 41/2010 Vzdělávací a výcvikové aktivity v rezortu MO | J93: 18 | K93: D
C94: x | E94: Infrastruktura | F94: Služební a pobytové zóny | G94: Plánovat zabezpečení dostatečné kapacity služebních a pobytových zón. | H94: O | I94: N NGŠ N NGŠ k pplánování a provádění PVPŠ; NVMO 41/2010 Vzdělávací a výcvikové aktivity v rezortu MO | J94: -12 | K94: D
D95: x | E95: Infrastruktura | F95: Služební a pobytové zóny | G95: Zabezpečit dostatečné kapacity služebních a pobytových zón. | H95: O | I95: N NGŠ N NGŠ k pplánování a provádění PVPŠ; NVMO 41/2010 Vzdělávací a výcvikové aktivity v rezortu MO | J95: 12 | K95: D
D96: x | E96: Infrastruktura | F96: Služební a pobytové zóny | G96: Provést údržbu stávajících prostorů služebních a pobytových zón. | I96: ČOS 051655 Etapy a procesy životního cyklu systémů NATO; Log-2-4 Vojskové opravy pozemní vojenské techniky.; Zákon č. 219/2000 Sb. Zákon o majetku ČR a jejím vystupovánmím v právních vztazích | J96: 12 | K96: D
C97: x | E97: Infrastruktura | F97: Služební a pobytové zóny | G97: Plánovat modernizaci stávajících prostor na zaváděné nové technologie. | H97: M | I97: ČOS 051655 Etapy a procesy životního cyklu systémů NATO; Zákon č. 219/2000 Sb. Zákon o majetku ČR a jejím vystupovánmím v právních vztazích | J97: -12 | K97: D
D98: x | E98: Infrastruktura | F98: Služební a pobytové zóny | G98: Modernizovat stávající prostory na zaváděné nové technologie. | H98: M | I98: ČOS 051655 Etapy a procesy životního cyklu systémů NATO; Zákon č. 219/2000 Sb. Zákon o majetku ČR a jejím vystupovánmím v právních vztazích | J98: 18 | K98: D
C99: x | E99: Infrastruktura | F99: Zabezpečení vojenského majetku | G99: Plánovat údržbu garážových stání. | H99: M | I99: ČOS 051655 Etapy a procesy životního cyklu systémů NATO; RMO 66/2012 Plánování činnosti a rozvoje vojsk v rezortu MO; Všeob-P-5 Parky vojenské techniky v působnosti MO a provoz v nich; Zákon č. 219/2000 Sb. Zákon o majetku ČR a jejím vystupovánmím v právních vztazích | J99: -12 | K99: D
D100: x | E100: Infrastruktura | F100: Zabezpečení vojenského majetku | G100: Provést údržbu garážových stání. | H100: M | I100: ČOS 051655 Etapy a procesy životního cyklu systémů NATO; RMO 66/2012 Plánování činnosti a rozvoje vojsk v rezortu MO; Všeob-P-5 Parky vojenské techniky v působnosti MO a provoz v nich; Zákon č. 219/2000 Sb. Zákon o majetku ČR a jejím vystupovánmím v právních vztazích | J100: 18 | K100: D
C101: x | E101: Infrastruktura | F101: Zabezpečení vojenského majetku | G101: Plánovat údržbu skladových prostorů. | H101: M | I101: ČOS 051655 Etapy a procesy životního cyklu systémů NATO; RMO 66/2012 Plánování činnosti a rozvoje vojsk v rezortu MO; Všeob-P-5 Parky vojenské techniky v působnosti MO a provoz v nich; Zákon č. 219/2000 Sb. Zákon o majetku ČR a jejím vystupovánmím v právních vztazích | J101: -12 | K101: D
D102: x | E102: Infrastruktura | F102: Zabezpečení vojenského majetku | G102: Provést údržbu skladových prostorů. | H102: M | I102: ČOS 051655 Etapy a procesy životního cyklu systémů NATO; RMO 66/2012 Plánování činnosti a rozvoje vojsk v rezortu MO; Všeob-P-5 Parky vojenské techniky v působnosti MO a provoz v nich; Zákon č. 219/2000 Sb. Zákon o majetku ČR a jejím vystupovánmím v právních vztazích | J102: 18 | K102: D
C103: x | E103: Infrastruktura | F103: Zabezpečení vojenského majetku | G103: Plánovat údržbu prostorů pro ošetřování, údržbu a opravy vojenského majetku. | H103: M | I103: ČOS 051655 Etapy a procesy životního cyklu systémů NATO; RMO 66/2012 Plánování činnosti a rozvoje vojsk v rezortu MO; Všeob-P-5 Parky vojenské techniky v působnosti MO a provoz v nich; Zákon č. 219/2000 Sb. Zákon o majetku ČR a jejím vystupovánmím v právních vztazích | J103: -12 | K103: D
D104: x | E104: Infrastruktura | F104: Zabezpečení vojenského majetku | G104: Provést údržbu prostorů pro ošetřování, údržbu a opravy vojenského majetku. | H104: M | I104: ČOS 051655 Etapy a procesy životního cyklu systémů NATO; RMO 66/2012 Plánování činnosti a rozvoje vojsk v rezortu MO; Všeob-P-5 Parky vojenské techniky v působnosti MO a provoz v nich; Zákon č. 219/2000 Sb. Zákon o majetku ČR a jejím vystupovánmím v právních vztazích | J104: 18 | K104: D
B105: x | E105: Infrastruktura | F105: Zabezpečení vojenského majetku | G105: Zapracovat požadavky do specifikace pro AHNM na rekonstrukci nebo výstavbu potřebné infrastruktury pro nově pořizovaný vojenský majetek. | H105: M | I105: ČOS 051655 Etapy a procesy životního cyklu systémů NATO; RMO 66/2012 Plánování činnosti a rozvoje vojsk v rezortu MO; Všeob-P-5 Parky vojenské techniky v působnosti MO a provoz v nich; Zákon č. 219/2000 Sb. Zákon o majetku ČR a jejím vystupovánmím v právních vztazích | J105: -48 | K105: D
C106: x | E106: Infrastruktura | F106: Učebně výcviková zařízení, SOVZ, STT | G106: Vyčlenit finanční prostředky na zabezpečení údržby a rozvoje prostorů pro výcvik. | H106: T | I106: RMO 66/2012 Plánování činnosti a rozvoje vojsk v rezortu MO; Zákon č. 219/2000 Sb. Zákon o majetku ČR a jejím vystupovánmím v právních vztazích | J106: -12 | K106: D
D107: x | E107: Infrastruktura | F107: Učebně výcviková zařízení, SOVZ, STT | G107: Realizovat údržbu a rozvoj prostorů pro výcvik. | H107: T | I107: RMO 66/2012 Plánování činnosti a rozvoje vojsk v rezortu MO; Zákon č. 219/2000 Sb. Zákon o majetku ČR a jejím vystupovánmím v právních vztazích | J107: 24 | K107: D
C108: x | E108: Infrastruktura | F108: Učebně výcviková zařízení, SOVZ, STT | G108: Plánovat modernizaci prostorů pro výcvik na moderní systémy simulace. | H108: T | I108: RMO 66/2012 Plánování činnosti a rozvoje vojsk v rezortu MO; Zákon č. 219/2000 Sb. Zákon o majetku ČR a jejím vystupovánmím v právních vztazích; Koncepce Koncepční materiály | J108: -12 | K108: D
D109: x | E109: Infrastruktura | F109: Učebně výcviková zařízení, SOVZ, STT | G109: Zabezpečit modernizaci prostorů pro výcvik na moderní systémy simulace. | H109: T | I109: RMO 66/2012 Plánování činnosti a rozvoje vojsk v rezortu MO; Zákon č. 219/2000 Sb. Zákon o majetku ČR a jejím vystupovánmím v právních vztazích; Koncepce Koncepční materiály | J109: 24 | K109: D
C110: x | E110: Infrastruktura | F110: Učebně výcviková zařízení, SOVZ, STT | G110: Plánovat údržbu a rozvoj ubytovacích kapacit ve VÚ. | H110: T | I110: ČOS 051655 Etapy a procesy životního cyklu systémů NATO; RMO 66/2012 Plánování činnosti a rozvoje vojsk v rezortu MO; Zákon č. 219/2000 Sb. Zákon o majetku ČR a jejím vystupovánmím v právních vztazích; Koncepce Koncepční materiály | J110: -12 | K110: D
D111: x | E111: Infrastruktura | F111: Učebně výcviková zařízení, SOVZ, STT | G111: Provést údržbu a rozvoj ubytovacích kapacit ve VÚ. | H111: T | I111: ČOS 051655 Etapy a procesy životního cyklu systémů NATO; RMO 66/2012 Plánování činnosti a rozvoje vojsk v rezortu MO; Zákon č. 219/2000 Sb. Zákon o majetku ČR a jejím vystupovánmím v právních vztazích; Koncepce Koncepční materiály | J111: 18 | K111: D
C112: x | E112: Infrastruktura | F112: Učebně výcviková zařízení, SOVZ, STT | G112: Plánovat údržbu a rozvoj technického zázemí pro výcvik ve vojenských újezdech a na posádkových cvičištích. | I112: ČOS 051655 Etapy a procesy životního cyklu systémů NATO; RMO 66/2012 Plánování činnosti a rozvoje vojsk v rezortu MO; Zákon č. 219/2000 Sb. Zákon o majetku ČR a jejím vystupovánmím v právních vztazích | J112: -12 | K112: D
D113: x | E113: Infrastruktura | F113: Učebně výcviková zařízení, SOVZ, STT | G113: Provést údržbu a rozvoj technického zázemí pro výcvik ve vojenských újezdech a na posádkových cvičištích. | I113: ČOS 051655 Etapy a procesy životního cyklu systémů NATO; RMO 66/2012 Plánování činnosti a rozvoje vojsk v rezortu MO; Zákon č. 219/2000 Sb. Zákon o majetku ČR a jejím vystupovánmím v právních vztazích | J113: 18 | K113: D
C114: x | E114: Infrastruktura | F114: Učebně výcviková zařízení, SOVZ, STT | G114: Plánovat údržbu a rozvoj objektů vojenského školství. | H114: T | I114: ČOS 051655 Etapy a procesy životního cyklu systémů NATO; RMO 66/2012 Plánování činnosti a rozvoje vojsk v rezortu MO; Zákon č. 219/2000 Sb. Zákon o majetku ČR a jejím vystupovánmím v právních vztazích | J114: -12 | K114: D
D115: x | E115: Infrastruktura | F115: Učebně výcviková zařízení, SOVZ, STT | G115: Provést údržbu a rozvoj objektů vojenského školství. | H115: T | I115: ČOS 051655 Etapy a procesy životního cyklu systémů NATO; RMO 66/2012 Plánování činnosti a rozvoje vojsk v rezortu MO; Zákon č. 219/2000 Sb. Zákon o majetku ČR a jejím vystupovánmím v právních vztazích | J115: 18 | K115: D
C116: x | E116: Infrastruktura | F116: Učebně výcviková zařízení, SOVZ, STT | G116: Plánovat údržbu a rozvoj vojenských školících zařízení. | I116: ČOS 051655 Etapy a procesy životního cyklu systémů NATO; RMO 66/2012 Plánování činnosti a rozvoje vojsk v rezortu MO; Zákon č. 219/2000 Sb. Zákon o majetku ČR a jejím vystupovánmím v právních vztazích | J116: -12 | K116: D
D117: x | E117: Infrastruktura | F117: Učebně výcviková zařízení, SOVZ, STT | G117: Provést údržbu a rozvoj vojenských školících zařízení. | I117: ČOS 051655 Etapy a procesy životního cyklu systémů NATO; RMO 66/2012 Plánování činnosti a rozvoje vojsk v rezortu MO; Zákon č. 219/2000 Sb. Zákon o majetku ČR a jejím vystupovánmím v právních vztazích | J117: 24 | K117: D
B118: x | E118: Interoperabilita | F118: Systém velení a řízení | G118: Do specifikace zapracovat požadavek na zabezpečení interoperability prostředků SVŘ v rámci jednotlivých druhů vojsk. | I118: ČOS 051662 Příručka pro postupné plánování vyzbrojování | J118: -24 | K118: D
C119: x | E119: Interoperabilita | F119: Systém velení a řízení | G119: Kontrolovat zabezpečení interoperability prostředků SVŘ v rámci jednotlivých druhů vojsk. | I119: ČOS 051662 Příručka pro postupné plánování vyzbrojování | J119: -24 | K119: D
D120: x | E120: Interoperabilita | F120: Systém velení a řízení | G120: Zabezpečit interoperabilitu prostředků SVŘ v rámci jednotlivých druhů vojsk. | I120: ČOS 051662 Příručka pro postupné plánování vyzbrojování | J120: 18 | K120: D
B121: x | E121: Interoperabilita | F121: Systém velení a řízení | G121: Do specifikace zapracovat požadavek na interoperabilitu prostředků SVŘ mezi jednotlivými druhy vojsk. | I121: ČOS 051662 Příručka pro postupné plánování vyzbrojování | J121: -24 | K121: D
C122: x | E122: Interoperabilita | F122: Systém velení a řízení | G122: Kontrolovat zabezpečení interoperability prostředků SVŘ mezi jednotlivými druhy vojsk. | I122: ČOS 051662 Příručka pro postupné plánování vyzbrojování | J122: -12 | K122: D
D123: x | E123: Interoperabilita | F123: Systém velení a řízení | G123: Zabezpečit interoperabilitu prostředků SVŘ mezi jednotlivými druhy vojsk. | I123: ČOS 051662 Příručka pro postupné plánování vyzbrojování | J123: 18 | K123: D
B124: x | E124: Interoperabilita | F124: Systém velení a řízení | G124: Do specifikace zapracovat požadavek na interoperabilitu prostředků SVŘ v rámci NATO. | I124: ČOS 051662 Příručka pro postupné plánování vyzbrojování | J124: -24 | K124: D
C125: x | E125: Interoperabilita | F125: Systém velení a řízení | G125: Kontrolovat zabezpečení interoperability prostředků SVŘ v rámci NATO. | I125: ČOS 051662 Příručka pro postupné plánování vyzbrojování | J125: 12 | K125: D
D126: x | E126: Interoperabilita | F126: Systém velení a řízení | G126: Zabezpečit interoperabilitu prostředků SVŘ v rámci NATO. | I126: ČOS 051662 Příručka pro postupné plánování vyzbrojování | J126: 18 | K126: D
B127: x | E127: Interoperabilita | F127: Výzbroj a technika | G127: Zapracovat požadavky do specifikace na zabezpečení provozování nové VTM na jednotné palivo NATO. | H127: M | I127: ČOS 051662 Příručka pro postupné plánování vyzbrojování | J127: -24 | K127: D
B128: x | E128: Interoperabilita | F128: Výzbroj a technika | G128: Zapracovat požadavky do specifikace na vyprošťovací prvky dle příslušných STANAGů a ČOSů. | H128: M | I128: ČOS 051662 Příručka pro postupné plánování vyzbrojování | J128: -24 | K128: D
B129: x | E129: Interoperabilita | F129: Výzbroj a technika | G129: Zapracovat požadavky do specifikace na používání unifikované munice NATO. | H129: M | I129: ČOS 051662 Příručka pro postupné plánování vyzbrojování | J129: -24 | K129: D
B130: x | E130: Interoperabilita | F130: Výzbroj a technika | G130: Zapracovat požadavek do specifikace na zabezpečení jednotné podvozkové platformy a jednotné logistiky s již zavedeným vojenským materiálem. | H130: M | I130: ČOS 051662 Příručka pro postupné plánování vyzbrojování | J130: -24 | K130: D
D131: x | E131: Interoperabilita | F131: Doktríny | G131: Aktualizovat a implementovat STANAGy do národních předpisů. | H131: D | I131: ČOS 051662 Příručka pro postupné plánování vyzbrojování | J131: 24 | K131: D
D132: x | E132: Interoperabilita | F132: UVZ, VVP, STT | G132: Aplikovat alianční předpisy a postupy do národních předpisů a postupů. | H132: T, D | I132: ČOS 051662 Příručka pro postupné plánování vyzbrojování | J132: 24 | K132: D
B133: x | E133: Interoperabilita | F133: Udržení a rozvoj schopnosti | G133: Do specifikace zapracovat požadavek na interoperabilitu se systémy NATO. | H133: M, T, D | I133: ČOS 051662 Příručka pro postupné plánování vyzbrojování | J133: -24 | K133: D
C134: x | E134: Interoperabilita | F134: Udržení a rozvoj schopnosti | G134: Kontrolovat zabezpečení interoperability se systémy NATO. | H134: M, T, D | I134: ČOS 051662 Příručka pro postupné plánování vyzbrojování | J134: 18 | K134: D
D135: x | E135: Interoperabilita | F135: Udržení a rozvoj schopnosti | G135: Zabezpečit interoperabilitu se systémy NATO. | H135: M, T, D | I135: ČOS 051662 Příručka pro postupné plánování vyzbrojování | J135: 12 | K135: D
D136: x | E136: Materiál | F136: Udržitelnost | G136: Zabezpečení životního cyklu majetku | H136: T, D | I136: ČOS 051662 Příručka pro postupné plánování vyzbrojování | J136: 96 | K136: D

Sheet Kontrolní list
B1: MOŽNÝ VZOR GIP
M2: Příloha 1
B3: =Nastavení!D1 -> Pořízení mobilní věže ŘLP
B4: Předpokládaný termín pořízení projektu (měsíc.rok) | G4: =DATE(Nastavení!D3,1,1) -> 2023-01-01
G6: Termín | H6: Kdo odpovídá | J6: Splnění daného opatření
A7: O | B7: Etapa | C7: FO | D7: Úkol | E7: Poznámka | F7: Lhůta | G7: provedení | H7: Složka / odbor / oddělení | I7: Jméno | J7: Datum | K7: Výstup | L7: Místo uložení | M7: Kdo provedl | N7: Platnost
A8: 11 | B8: Předakviziční | C8: D | D8: Navrhnout systémové a organizační změny tvorby doktrín. | F8: -40 | G8: =DATE(YEAR(G4),MONTH(G4)+F8,DAY(G4)) -> 2019-09-01 | N8: D
A9: 11 | B9: Předakviziční | C9: D | D9: Provést analýzu doktríny AČR a případně navrhnout její změnu. | F9: -50 | G9: =DATE(YEAR(G4),MONTH(G4)+F9,DAY(G4)) -> 2018-11-01 | N9: D
A10: 11 | B10: Předakviziční | C10: D | D10: Aktualizovat Plány tvorby voj. předpisů a publikací, stanovit priority. | F10: -24 | G10: =DATE(YEAR(G4),MONTH(G4)+F10,DAY(G4)) -> 2021-01-01 | N10: D
A11: 11 | B11: Předakviziční | C11: D | D11: Definovat požadavky na stanovené (vyžadované) certifikace a následné zapracování požadavků do specifikace. | F11: -24 | G11: =DATE(YEAR(G4),MONTH(G4)+F11,DAY(G4)) -> 2021-01-01 | N11: D
A12: 21 | B12: Akviziční | C12: D | D12: Na základě výsledků technického vývoje provést analýzu ČOS, STANAG a případně navrhnout jejich novelizaci. | F12: -12 | G12: =DATE(YEAR(G4),MONTH(G4)+F12,DAY(G4)) -> 2022-01-01 | N12: D
A13: 22 | B13: Akviziční | C13: O | D13: Provést analýzu organizačních struktur jednotek pro školení SW a případně navrhnout jejich změny. | F13: -12 | G13: =DATE(YEAR(G4),MONTH(G4)+F13,DAY(G4)) -> 2022-01-01 | N13: D
A14: 23 | B14: Akviziční | C14: T | D14: Aktualizovat dokumentaci pro hodnocení bojové připravenosti jednotek systémem CREVAL. | F14: -12 | G14: =DATE(YEAR(G4),MONTH(G4)+F14,DAY(G4)) -> 2022-01-01 | N14: D
A15: 33 | B15: Poakviziční | C15: T | D15: Zajistit přípravu personálu v oblasti velení a řízení. | F15: 12 | G15: =DATE(YEAR(G4),MONTH(G4)+F15,DAY(G4)) -> 2024-01-01 | N15: D
A16: 34 | B16: Poakviziční | C16: M | D16: V SdP aktualizovat požadavek na tvorbu zásob nové výzbroje a techniky po celý životní cyklus. | F16: 6 | G16: =DATE(YEAR(G4),MONTH(G4)+F16,DAY(G4)) -> 2023-07-01 | N16: D
A17: 34 | B17: Poakviziční | C17: M | D17: Vyčlenit finanční prostředky pro zabezpečení nákladů na vojskové zkoušky a certifikaci | F17: 6 | G17: =DATE(YEAR(G4),MONTH(G4)+F17,DAY(G4)) -> 2023-07-01 | N17: D

Sheet Kalendářní plán
HX2: Příloha 2
B6: Předpokládaný termín pořízení projektu - podpis smlouvy (měsíc.rok). | F6: =Nastavení!D4 -> 2023-06-01
B7: Provedení vojskových zkoušek / zkrácených vojskových zkoušek. | F7: =Nastavení!D5 -> 2023-11-01
B8: Předpokládaný termín ukončení projektu (dodávka posledního kusu). | F8: =DATE(Nastavení!D8,12,31) -> 2024-12-31
A9: Celková doba realizace projektu (od odeslání specifikace po ukončení dodávky) | I9: =DATE(Nastavení!D3,1,1) -> 2023-01-01 | J9: =DATE(Nastavení!D8,12,31) -> 2024-12-31 | M9: =IF(Nastavení!$D$2=M11,Nastavení!$E$2,IF(Nastavení!$D$4='Kalendářní plán'!M11,Nastavení!$E$4,IF(Nastavení!$D$5='Kalendářní plán'!M11,Nastavení!$E$5,IF(Nastavení!$D$6='Kalendářní plán'!M11,Nastavení!$E$6,IF(Nastavení!$D$7='Kalendářní plán'!M11,Nastavení!$E$7,IF(Nastavení!$D$2='Kalendářní plán'!N11,Nastavení!$E$2,IF(Nastavení!$D$4='Kalendářní plán'!N11,Nastavení!$E$4,IF(Nastavení!$D$5='Kalendářní plán'!N11,Nastavení!$E$5,IF(Nastavení!$D$6='Kalendářní plán'!N11,Nastavení!$E$6,IF(Nastavení!$D$7='Kalendářní plán'!N11,Nastavení!$E$7,IF(Nastavení!$D$2='Kalendářní plán'!O11,Nastavení!$E$2,IF(Nastavení!$D$4='Kalendářní plán'!O11,Nastavení!$E$4,IF(Nastavení!$D$5='Kalendářní plán'!O11,Nastavení!$E$5,IF(Nastavení!$D$6='Kalendářní plán'!O11,Nastavení!$E$6,IF(Nastavení!$D$7='Kalendářní plán'!O11,Nastavení!$E$7,""))))))))))))))) ->  | P9: =IF(Nastavení!$D$2='Kalendářní plán'!P11,Nastavení!$E$2,IF(Nastavení!$D$4='Kalendářní plán'!P11,Nastavení!$E$4,IF(Nastavení!$D$5='Kalendářní plán'!P11,Nastavení!$E$5,IF(Nastavení!$D$6='Kalendářní plán'!P11,Nastavení!$E$6,IF(Nastavení!$D$7='Kalendářní plán'!P11,Nastavení!$E$7,IF(Nastavení!$D$2='Kalendářní plán'!Q11,Nastavení!$E$2,IF(Nastavení!$D$4='Kalendářní plán'!Q11,Nastavení!$E$4,IF(Nastavení!$D$5='Kalendářní plán'!Q11,Nastavení!$E$5,IF(Nastavení!$D$6='Kalendářní plán'!Q11,Nastavení!$E$6,IF(Nastavení!$D$7='Kalendářní plán'!Q11,Nastavení!$E$7,IF(Nastavení!$D$2='Kalendářní plán'!R11,Nastavení!$E$2,IF(Nastavení!$D$4='Kalendářní plán'!R11,Nastavení!$E$4,IF(Nastavení!$D$5='Kalendářní plán'!R11,Nastavení!$E$5,IF(Nastavení!$D$6='Kalendářní plán'!R11,Nastavení!$E$6,IF(Nastavení!$D$7='Kalendářní plán'!R11,Nastavení!$E$7,""))))))))))))))) ->  | S9: =IF(Nastavení!$D$2='Kalendářní plán'!S11,Nastavení!$E$2,IF(Nastavení!$D$4='Kalendářní plán'!S11,Nastavení!$E$4,IF(Nastavení!$D$5='Kalendářní plán'!S11,Nastavení!$E$5,IF(Nastavení!$D$6='Kalendářní plán'!S11,Nastavení!$E$6,IF(Nastavení!$D$7='Kalendářní plán'!S11,Nastavení!$E$7,IF(Nastavení!$D$2='Kalendářní plán'!T11,Nastavení!$E$2,IF(Nastavení!$D$4='Kalendářní plán'!T11,Nastavení!$E$4,IF(Nastavení!$D$5='Kalendářní plán'!T11,Nastavení!$E$5,IF(Nastavení!$D$6='Kalendářní plán'!T11,Nastavení!$E$6,IF(Nastavení!$D$7='Kalendářní plán'!T11,Nastavení!$E$7,IF(Nastavení!$D$2='Kalendářní plán'!U11,Nastavení!$E$2,IF(Nastavení!$D$4='Kalendářní plán'!U11,Nastavení!$E$4,IF(Nastavení!$D$5='Kalendářní plán'!U11,Nastavení!$E$5,IF(Nastavení!$D$6='Kalendářní plán'!U11,Nastavení!$E$6,IF(Nastavení!$D$7='Kalendářní plán'!U11,Nastavení!$E$7,""))))))))))))))) -> specifikace | V9: =IF(Nastavení!$D$2='Kalendářní plán'!V11,Nastavení!$E$2,IF(Nastavení!$D$4='Kalendářní plán'!V11,Nastavení!$E$4,IF(Nastavení!$D$5='Kalendářní plán'!V11,Nastavení!$E$5,IF(Nastavení!$D$6='Kalendářní plán'!V11,Nastavení!$E$6,IF(Nastavení!$D$7='Kalendářní plán'!V11,Nastavení!$E$7,IF(Nastavení!$D$2='Kalendářní plán'!W11,Nastavení!$E$2,IF(Nastavení!$D$4='Kalendářní plán'!W11,Nastavení!$E$4,IF(Nastavení!$D$5='Kalendářní plán'!W11,Nastavení!$E$5,IF(Nastavení!$D$6='Kalendářní plán'!W11,Nastavení!$E$6,IF(Nastavení!$D$7='Kalendářní plán'!W11,Nastavení!$E$7,IF(Nastavení!$D$2='Kalendářní plán'!X11,Nastavení!$E$2,IF(Nastavení!$D$4='Kalendářní plán'!X11,Nastavení!$E$4,IF(Nastavení!$D$5='Kalendářní plán'!X11,Nastavení!$E$5,IF(Nastavení!$D$6='Kalendářní plán'!X11,Nastavení!$E$6,IF(Nastavení!$D$7='Kalendářní plán'!X11,Nastavení!$E$7,""))))))))))))))) ->  | Y9: =IF(Nastavení!$D$2='Kalendářní plán'!Y11,Nastavení!$E$2,IF(Nastavení!$D$4='Kalendářní plán'!Y11,Nastavení!$E$4,IF(Nastavení!$D$5='Kalendářní plán'!Y11,Nastavení!$E$5,IF(Nastavení!$D$6='Kalendářní plán'!Y11,Nastavení!$E$6,IF(Nastavení!$D$7='Kalendářní plán'!Y11,Nastavení!$E$7,IF(Nastavení!$D$2='Kalendářní plán'!Z11,Nastavení!$E$2,IF(Nastavení!$D$4='Kalendářní plán'!Z11,Nastavení!$E$4,IF(Nastavení!$D$5='Kalendářní plán'!Z11,Nastavení!$E$5,IF(Nastavení!$D$6='Kalendářní plán'!Z11,Nastavení!$E$6,IF(Nastavení!$D$7='Kalendářní plán'!Z11,Nastavení!$E$7,IF(Nastavení!$D$2='Kalendářní plán'!AA11,Nastavení!$E$2,IF(Nastavení!$D$4='Kalendářní plán'!AA11,Nastavení!$E$4,IF(Nastavení!$D$5='Kalendářní plán'!AA11,Nastavení!$E$5,IF(Nastavení!$D$6='Kalendářní plán'!AA11,Nastavení!$E$6,IF(Nastavení!$D$7='Kalendářní plán'!AA11,Nastavení!$E$7,""))))))))))))))) ->  | AB9: =IF(Nastavení!$D$2='Kalendářní plán'!AB11,Nastavení!$E$2,IF(Nastavení!$D$4='Kalendářní plán'!AB11,Nastavení!$E$4,IF(Nastavení!$D$5='Kalendářní plán'!AB11,Nastavení!$E$5,IF(Nastavení!$D$6='Kalendářní plán'!AB11,Nastavení!$E$6,IF(Nastavení!$D$7='Kalendářní plán'!AB11,Nastavení!$E$7,IF(Nastavení!$D$2='Kalendářní plán'!AC11,Nastavení!$E$2,IF(Nastavení!$D$4='Kalendářní plán'!AC11,Nastavení!$E$4,IF(Nastavení!$D$5='Kalendářní plán'!AC11,Nastavení!$E$5,IF(Nastavení!$D$6='Kalendářní plán'!AC11,Nastavení!$E$6,IF(Nastavení!$D$7='Kalendářní plán'!AC11,Nastavení!$E$7,IF(Nastavení!$D$2='Kalendářní plán'!AD11,Nastavení!$E$2,IF(Nastavení!$D$4='Kalendářní plán'!AD11,Nastavení!$E$4,IF(Nastavení!$D$5='Kalendářní plán'!AD11,Nastavení!$E$5,IF(Nastavení!$D$6='Kalendářní plán'!AD11,Nastavení!$E$6,IF(Nastavení!$D$7='Kalendářní plán'!AD11,Nastavení!$E$7,""))))))))))))))) ->  | AE9: =IF(Nastavení!$D$2='Kalendářní plán'!AE11,Nastavení!$E$2,IF(Nastavení!$D$4='Kalendářní plán'!AE11,Nastavení!$E$4,IF(Nastavení!$D$5='Kalendářní plán'!AE11,Nastavení!$E$5,IF(Nastavení!$D$6='Kalendářní plán'!AE11,Nastavení!$E$6,IF(Nastavení!$D$7='Kalendářní plán'!AE11,Nastavení!$E$7,IF(Nastavení!$D$2='Kalendářní plán'!AF11,Nastavení!$E$2,IF(Nastavení!$D$4='Kalendářní plán'!AF11,Nastavení!$E$4,IF(Nastavení!$D$5='Kalendářní plán'!AF11,Nastavení!$E$5,IF(Nastavení!$D$6='Kalendářní plán'!AF11,Nastavení!$E$6,IF(Nastavení!$D$7='Kalendářní plán'!AF11,Nastavení!$E$7,IF(Nastavení!$D$2='Kalendářní plán'!AG11,Nastavení!$E$2,IF(Nastavení!$D$4='Kalendářní plán'!AG11,Nastavení!$E$4,IF(Nastavení!$D$5='Kalendářní plán'!AG11,Nastavení!$E$5,IF(Nastavení!$D$6='Kalendářní plán'!AG11,Nastavení!$E$6,IF(Nastavení!$D$7='Kalendářní plán'!AG11,Nastavení!$E$7,""))))))))))))))) ->  | AH9: =IF(Nastavení!$D$2='Kalendářní plán'!AH11,Nastavení!$E$2,IF(Nastavení!$D$4='Kalendářní plán'!AH11,Nastavení!$E$4,IF(Nastavení!$D$5='Kalendářní plán'!AH11,Nastavení!$E$5,IF(Nastavení!$D$6='Kalendářní plán'!AH11,Nastavení!$E$6,IF(Nastavení!$D$7='Kalendářní plán'!AH11,Nastavení!$E$7,IF(Nastavení!$D$2='Kalendářní plán'!AI11,Nastavení!$E$2,IF(Nastavení!$D$4='Kalendářní plán'!AI11,Nastavení!$E$4,IF(Nastavení!$D$5='Kalendářní plán'!AI11,Nastavení!$E$5,IF(Nastavení!$D$6='Kalendářní plán'!AI11,Nastavení!$E$6,IF(Nastavení!$D$7='Kalendářní plán'!AI11,Nastavení!$E$7,IF(Nastavení!$D$2='Kalendářní plán'!AJ11,Nastavení!$E$2,IF(Nastavení!$D$4='Kalendářní plán'!AJ11,Nastavení!$E$4,IF(Nastavení!$D$5='Kalendářní plán'!AJ11,Nastavení!$E$5,IF(Nastavení!$D$6='Kalendářní plán'!AJ11,Nastavení!$E$6,IF(Nastavení!$D$7='Kalendářní plán'!AJ11,Nastavení!$E$7,""))))))))))))))) ->  | AK9: =IF(Nastavení!$D$2='Kalendářní plán'!AK11,Nastavení!$E$2,IF(Nastavení!$D$4='Kalendářní plán'!AK11,Nastavení!$E$4,IF(Nastavení!$D$5='Kalendářní plán'!AK11,Nastavení!$E$5,IF(Nastavení!$D$6='Kalendářní plán'!AK11,Nastavení!$E$6,IF(Nastavení!$D$7='Kalendářní plán'!AK11,Nastavení!$E$7,IF(Nastavení!$D$2='Kalendářní plán'!AL11,Nastavení!$E$2,IF(Nastavení!$D$4='Kalendářní plán'!AL11,Nastavení!$E$4,IF(Nastavení!$D$5='Kalendářní plán'!AL11,Nastavení!$E$5,IF(Nastavení!$D$6='Kalendářní plán'!AL11,Nastavení!$E$6,IF(Nastavení!$D$7='Kalendářní plán'!AL11,Nastavení!$E$7,IF(Nastavení!$D$2='Kalendářní plán'!AM11,Nastavení!$E$2,IF(Nastavení!$D$4='Kalendářní plán'!AM11,Nastavení!$E$4,IF(Nastavení!$D$5='Kalendářní plán'!AM11,Nastavení!$E$5,IF(Nastavení!$D$6='Kalendářní plán'!AM11,Nastavení!$E$6,IF(Nastavení!$D$7='Kalendářní plán'!AM11,Nastavení!$E$7,""))))))))))))))) ->  | AN9: =IF(Nastavení!$D$2='Kalendářní plán'!AN11,Nastavení!$E$2,IF(Nastavení!$D$4='Kalendářní plán'!AN11,Nastavení!$E$4,IF(Nastavení!$D$5='Kalendářní plán'!AN11,Nastavení!$E$5,IF(Nastavení!$D$6='Kalendářní plán'!AN11,Nastavení!$E$6,IF(Nastavení!$D$7='Kalendářní plán'!AN11,Nastavení!$E$7,IF(Nastavení!$D$2='Kalendářní plán'!AO11,Nastavení!$E$2,IF(Nastavení!$D$4='Kalendářní plán'!AO11,Nastavení!$E$4,IF(Nastavení!$D$5='Kalendářní plán'!AO11,Nastavení!$E$5,IF(Nastavení!$D$6='Kalendářní plán'!AO11,Nastavení!$E$6,IF(Nastavení!$D$7='Kalendářní plán'!AO11,Nastavení!$E$7,IF(Nastavení!$D$2='Kalendářní plán'!AP11,Nastavení!$E$2,IF(Nastavení!$D$4='Kalendářní plán'!AP11,Nastavení!$E$4,IF(Nastavení!$D$5='Kalendářní plán'!AP11,Nastavení!$E$5,IF(Nastavení!$D$6='Kalendářní plán'!AP11,Nastavení!$E$6,IF(Nastavení!$D$7='Kalendářní plán'!AP11,Nastavení!$E$7,""))))))))))))))) -> smlouva | AQ9: =IF(Nastavení!$D$2='Kalendářní plán'!AQ11,Nastavení!$E$2,IF(Nastavení!$D$4='Kalendářní plán'!AQ11,Nastavení!$E$4,IF(Nastavení!$D$5='Kalendářní plán'!AQ11,Nastavení!$E$5,IF(Nastavení!$D$6='Kalendářní plán'!AQ11,Nastavení!$E$6,IF(Nastavení!$D$7='Kalendářní plán'!AQ11,Nastavení!$E$7,IF(Nastavení!$D$2='Kalendářní plán'!AR11,Nastavení!$E$2,IF(Nastavení!$D$4='Kalendářní plán'!AR11,Nastavení!$E$4,IF(Nastavení!$D$5='Kalendářní plán'!AR11,Nastavení!$E$5,IF(Nastavení!$D$6='Kalendářní plán'!AR11,Nastavení!$E$6,IF(Nastavení!$D$7='Kalendářní plán'!AR11,Nastavení!$E$7,IF(Nastavení!$D$2='Kalendářní plán'!AS11,Nastavení!$E$2,IF(Nastavení!$D$4='Kalendářní plán'!AS11,Nastavení!$E$4,IF(Nastavení!$D$5='Kalendářní plán'!AS11,Nastavení!$E$5,IF(Nastavení!$D$6='Kalendářní plán'!AS11,Nastavení!$E$6,IF(Nastavení!$D$7='Kalendářní plán'!AS11,Nastavení!$E$7,""))))))))))))))) ->  | AT9: =IF(Nastavení!$D$2='Kalendářní plán'!AT11,Nastavení!$E$2,IF(Nastavení!$D$4='Kalendářní plán'!AT11,Nastavení!$E$4,IF(Nastavení!$D$5='Kalendářní plán'!AT11,Nastavení!$E$5,IF(Nastavení!$D$6='Kalendářní plán'!AT11,Nastavení!$E$6,IF(Nastavení!$D$7='Kalendářní plán'!AT11,Nastavení!$E$7,IF(Nastavení!$D$2='Kalendářní plán'!AU11,Nastavení!$E$2,IF(Nastavení!$D$4='Kalendářní plán'!AU11,Nastavení!$E$4,IF(Nastavení!$D$5='Kalendářní plán'!AU11,Nastavení!$E$5,IF(Nastavení!$D$6='Kalendářní plán'!AU11,Nastavení!$E$6,IF(Nastavení!$D$7='Kalendářní plán'!AU11,Nastavení!$E$7,IF(Nastavení!$D$2='Kalendářní plán'!AV11,Nastavení!$E$2,IF(Nastavení!$D$4='Kalendářní plán'!AV11,Nastavení!$E$4,IF(Nastavení!$D$5='Kalendářní plán'!AV11,Nastavení!$E$5,IF(Nastavení!$D$6='Kalendářní plán'!AV11,Nastavení!$E$6,IF(Nastavení!$D$7='Kalendářní plán'!AV11,Nastavení!$E$7,""))))))))))))))) -> VZ | AW9: =IF(Nastavení!$D$2='Kalendářní plán'!AW11,Nastavení!$E$2,IF(Nastavení!$D$4='Kalendářní plán'!AW11,Nastavení!$E$4,IF(Nastavení!$D$5='Kalendářní plán'!AW11,Nastavení!$E$5,IF(Nastavení!$D$6='Kalendářní plán'!AW11,Nastavení!$E$6,IF(Nastavení!$D$7='Kalendářní plán'!AW11,Nastavení!$E$7,IF(Nastavení!$D$2='Kalendářní plán'!AX11,Nastavení!$E$2,IF(Nastavení!$D$4='Kalendářní plán'!AX11,Nastavení!$E$4,IF(Nastavení!$D$5='Kalendářní plán'!AX11,Nastavení!$E$5,IF(Nastavení!$D$6='Kalendářní plán'!AX11,Nastavení!$E$6,IF(Nastavení!$D$7='Kalendářní plán'!AX11,Nastavení!$E$7,IF(Nastavení!$D$2='Kalendářní plán'!AY11,Nastavení!$E$2,IF(Nastavení!$D$4='Kalendářní plán'!AY11,Nastavení!$E$4,IF(Nastavení!$D$5='Kalendářní plán'!AY11,Nastavení!$E$5,IF(Nastavení!$D$6='Kalendářní plán'!AY11,Nastavení!$E$6,IF(Nastavení!$D$7='Kalendářní plán'!AY11,Nastavení!$E$7,""))))))))))))))) ->  | AZ9: =IF(Nastavení!$D$2='Kalendářní plán'!AZ11,Nastavení!$E$2,IF(Nastavení!$D$4='Kalendářní plán'!AZ11,Nastavení!$E$4,IF(Nastavení!$D$5='Kalendářní plán'!AZ11,Nastavení!$E$5,IF(Nastavení!$D$6='Kalendářní plán'!AZ11,Nastavení!$E$6,IF(Nastavení!$D$7='Kalendářní plán'!AZ11,Nastavení!$E$7,IF(Nastavení!$D$2='Kalendářní plán'!BA11,Nastavení!$E$2,IF(Nastavení!$D$4='Kalendářní plán'!BA11,Nastavení!$E$4,IF(Nastavení!$D$5='Kalendářní plán'!BA11,Nastavení!$E$5,IF(Nastavení!$D$6='Kalendářní plán'!BA11,Nastavení!$E$6,IF(Nastavení!$D$7='Kalendářní plán'!BA11,Nastavení!$E$7,IF(Nastavení!$D$2='Kalendářní plán'!BB11,Nastavení!$E$2,IF(Nastavení!$D$4='Kalendářní plán'!BB11,Nastavení!$E$4,IF(Nastavení!$D$5='Kalendářní plán'!BB11,Nastavení!$E$5,IF(Nastavení!$D$6='Kalendářní plán'!BB11,Nastavení!$E$6,IF(Nastavení!$D$7='Kalendářní plán'!BB11,Nastavení!$E$7,""))))))))))))))) -> IOC | BC9: =IF(Nastavení!$D$2='Kalendářní plán'!BC11,Nastavení!$E$2,IF(Nastavení!$D$4='Kalendářní plán'!BC11,Nastavení!$E$4,IF(Nastavení!$D$5='Kalendářní plán'!BC11,Nastavení!$E$5,IF(Nastavení!$D$6='Kalendářní plán'!BC11,Nastavení!$E$6,IF(Nastavení!$D$7='Kalendářní plán'!BC11,Nastavení!$E$7,IF(Nastavení!$D$2='Kalendářní plán'!BD11,Nastavení!$E$2,IF(Nastavení!$D$4='Kalendářní plán'!BD11,Nastavení!$E$4,IF(Nastavení!$D$5='Kalendářní plán'!BD11,Nastavení!$E$5,IF(Nastavení!$D$6='Kalendářní plán'!BD11,Nastavení!$E$6,IF(Nastavení!$D$7='Kalendářní plán'!BD11,Nastavení!$E$7,IF(Nastavení!$D$2='Kalendářní plán'!BE11,Nastavení!$E$2,IF(Nastavení!$D$4='Kalendářní plán'!BE11,Nastavení!$E$4,IF(Nastavení!$D$5='Kalendářní plán'!BE11,Nastavení!$E$5,IF(Nastavení!$D$6='Kalendářní plán'!BE11,Nastavení!$E$6,IF(Nastavení!$D$7='Kalendářní plán'!BE11,Nastavení!$E$7,""))))))))))))))) ->  | BF9: =IF(Nastavení!$D$2='Kalendářní plán'!BF11,Nastavení!$E$2,IF(Nastavení!$D$4='Kalendářní plán'!BF11,Nastavení!$E$4,IF(Nastavení!$D$5='Kalendářní plán'!BF11,Nastavení!$E$5,IF(Nastavení!$D$6='Kalendářní plán'!BF11,Nastavení!$E$6,IF(Nastavení!$D$7='Kalendářní plán'!BF11,Nastavení!$E$7,IF(Nastavení!$D$2='Kalendářní plán'!BG11,Nastavení!$E$2,IF(Nastavení!$D$4='Kalendářní plán'!BG11,Nastavení!$E$4,IF(Nastavení!$D$5='Kalendářní plán'!BG11,Nastavení!$E$5,IF(Nastavení!$D$6='Kalendářní plán'!BG11,Nastavení!$E$6,IF(Nastavení!$D$7='Kalendářní plán'!BG11,Nastavení!$E$7,IF(Nastavení!$D$2='Kalendářní plán'!BH11,Nastavení!$E$2,IF(Nastavení!$D$4='Kalendářní plán'!BH11,Nastavení!$E$4,IF(Nastavení!$D$5='Kalendářní plán'!BH11,Nastavení!$E$5,IF(Nastavení!$D$6='Kalendářní plán'!BH11,Nastavení!$E$6,IF(Nastavení!$D$7='Kalendářní plán'!BH11,Nastavení!$E$7,""))))))))))))))) -> FOC | BI9: =IF(Nastavení!$D$2='Kalendářní plán'!BI11,Nastavení!$E$2,IF(Nastavení!$D$4='Kalendářní plán'!BI11,Nastavení!$E$4,IF(Nastavení!$D$5='Kalendářní plán'!BI11,Nastavení!$E$5,IF(Nastavení!$D$6='Kalendářní plán'!BI11,Nastavení!$E$6,IF(Nastavení!$D$7='Kalendářní plán'!BI11,Nastavení!$E$7,IF(Nastavení!$D$2='Kalendářní plán'!BJ11,Nastavení!$E$2,IF(Nastavení!$D$4='Kalendářní plán'!BJ11,Nastavení!$E$4,IF(Nastavení!$D$5='Kalendářní plán'!BJ11,Nastavení!$E$5,IF(Nastavení!$D$6='Kalendářní plán'!BJ11,Nastavení!$E$6,IF(Nastavení!$D$7='Kalendářní plán'!BJ11,Nastavení!$E$7,IF(Nastavení!$D$2='Kalendářní plán'!BK11,Nastavení!$E$2,IF(Nastavení!$D$4='Kalendářní plán'!BK11,Nastavení!$E$4,IF(Nastavení!$D$5='Kalendářní plán'!BK11,Nastavení!$E$5,IF(Nastavení!$D$6='Kalendářní plán'!BK11,Nastavení!$E$6,IF(Nastavení!$D$7='Kalendářní plán'!BK11,Nastavení!$E$7,""))))))))))))))) ->  | BL9: =IF(Nastavení!$D$2='Kalendářní plán'!BL11,Nastavení!$E$2,IF(Nastavení!$D$4='Kalendářní plán'!BL11,Nastavení!$E$4,IF(Nastavení!$D$5='Kalendářní plán'!BL11,Nastavení!$E$5,IF(Nastavení!$D$6='Kalendářní plán'!BL11,Nastavení!$E$6,IF(Nastavení!$D$7='Kalendářní plán'!BL11,Nastavení!$E$7,IF(Nastavení!$D$2='Kalendářní plán'!BM11,Nastavení!$E$2,IF(Nastavení!$D$4='Kalendářní plán'!BM11,Nastavení!$E$4,IF(Nastavení!$D$5='Kalendářní plán'!BM11,Nastavení!$E$5,IF(Nastavení!$D$6='Kalendářní plán'!BM11,Nastavení!$E$6,IF(Nastavení!$D$7='Kalendářní plán'!BM11,Nastavení!$E$7,IF(Nastavení!$D$2='Kalendářní plán'!BN11,Nastavení!$E$2,IF(Nastavení!$D$4='Kalendářní plán'!BN11,Nastavení!$E$4,IF(Nastavení!$D$5='Kalendářní plán'!BN11,Nastavení!$E$5,IF(Nastavení!$D$6='Kalendářní plán'!BN11,Nastavení!$E$6,IF(Nastavení!$D$7='Kalendářní plán'!BN11,Nastavení!$E$7,""))))))))))))))) ->  | BO9: =IF(Nastavení!$D$2='Kalendářní plán'!BO11,Nastavení!$E$2,IF(Nastavení!$D$4='Kalendářní plán'!BO11,Nastavení!$E$4,IF(Nastavení!$D$5='Kalendářní plán'!BO11,Nastavení!$E$5,IF(Nastavení!$D$6='Kalendářní plán'!BO11,Nastavení!$E$6,IF(Nastavení!$D$7='Kalendářní plán'!BO11,Nastavení!$E$7,IF(Nastavení!$D$2='Kalendářní plán'!BP11,Nastavení!$E$2,IF(Nastavení!$D$4='Kalendářní plán'!BP11,Nastavení!$E$4,IF(Nastavení!$D$5='Kalendářní plán'!BP11,Nastavení!$E$5,IF(Nastavení!$D$6='Kalendářní plán'!BP11,Nastavení!$E$6,IF(Nastavení!$D$7='Kalendářní plán'!BP11,Nastavení!$E$7,IF(Nastavení!$D$2='Kalendářní plán'!BQ11,Nastavení!$E$2,IF(Nastavení!$D$4='Kalendářní plán'!BQ11,Nastavení!$E$4,IF(Nastavení!$D$5='Kalendářní plán'!BQ11,Nastavení!$E$5,IF(Nastavení!$D$6='Kalendářní plán'!BQ11,Nastavení!$E$6,IF(Nastavení!$D$7='Kalendářní plán'!BQ11,Nastavení!$E$7,""))))))))))))))) ->  | BR9: =IF(Nastavení!$D$2='Kalendářní plán'!BR11,Nastavení!$E$2,IF(Nastavení!$D$4='Kalendářní plán'!BR11,Nastavení!$E$4,IF(Nastavení!$D$5='Kalendářní plán'!BR11,Nastavení!$E$5,IF(Nastavení!$D$6='Kalendářní plán'!BR11,Nastavení!$E$6,IF(Nastavení!$D$7='Kalendářní plán'!BR11,Nastavení!$E$7,IF(Nastavení!$D$2='Kalendářní plán'!BS11,Nastavení!$E$2,IF(Nastavení!$D$4='Kalendářní plán'!BS11,Nastavení!$E$4,IF(Nastavení!$D$5='Kalendářní plán'!BS11,Nastavení!$E$5,IF(Nastavení!$D$6='Kalendářní plán'!BS11,Nastavení!$E$6,IF(Nastavení!$D$7='Kalendářní plán'!BS11,Nastavení!$E$7,IF(Nastavení!$D$2='Kalendářní plán'!BT11,Nastavení!$E$2,IF(Nastavení!$D$4='Kalendářní plán'!BT11,Nastavení!$E$4,IF(Nastavení!$D$5='Kalendářní plán'!BT11,Nastavení!$E$5,IF(Nastavení!$D$6='Kalendářní plán'!BT11,Nastavení!$E$6,IF(Nastavení!$D$7='Kalendářní plán'!BT11,Nastavení!$E$7,""))))))))))))))) ->  | BU9: =IF(Nastavení!$D$2='Kalendářní plán'!BU11,Nastavení!$E$2,IF(Nastavení!$D$4='Kalendářní plán'!BU11,Nastavení!$E$4,IF(Nastavení!$D$5='Kalendářní plán'!BU11,Nastavení!$E$5,IF(Nastavení!$D$6='Kalendářní plán'!BU11,Nastavení!$E$6,IF(Nastavení!$D$7='Kalendářní plán'!BU11,Nastavení!$E$7,IF(Nastavení!$D$2='Kalendářní plán'!BV11,Nastavení!$E$2,IF(Nastavení!$D$4='Kalendářní plán'!BV11,Nastavení!$E$4,IF(Nastavení!$D$5='Kalendářní plán'!BV11,Nastavení!$E$5,IF(Nastavení!$D$6='Kalendářní plán'!BV11,Nastavení!$E$6,IF(Nastavení!$D$7='Kalendářní plán'!BV11,Nastavení!$E$7,IF(Nastavení!$D$2='Kalendářní plán'!BW11,Nastavení!$E$2,IF(Nastavení!$D$4='Kalendářní plán'!BW11,Nastavení!$E$4,IF(Nastavení!$D$5='Kalendářní plán'!BW11,Nastavení!$E$5,IF(Nastavení!$D$6='Kalendářní plán'!BW11,Nastavení!$E$6,IF(Nastavení!$D$7='Kalendářní plán'!BW11,Nastavení!$E$7,""))))))))))))))) ->  | BX9: =IF(Nastavení!$D$2='Kalendářní plán'!BX11,Nastavení!$E$2,IF(Nastavení!$D$4='Kalendářní plán'!BX11,Nastavení!$E$4,IF(Nastavení!$D$5='Kalendářní plán'!BX11,Nastavení!$E$5,IF(Nastavení!$D$6='Kalendářní plán'!BX11,Nastavení!$E$6,IF(Nastavení!$D$7='Kalendářní plán'!BX11,Nastavení!$E$7,IF(Nastavení!$D$2='Kalendářní plán'!BY11,Nastavení!$E$2,IF(Nastavení!$D$4='Kalendářní plán'!BY11,Nastavení!$E$4,IF(Nastavení!$D$5='Kalendářní plán'!BY11,Nastavení!$E$5,IF(Nastavení!$D$6='Kalendářní plán'!BY11,Nastavení!$E$6,IF(Nastavení!$D$7='Kalendářní plán'!BY11,Nastavení!$E$7,IF(Nastavení!$D$2='Kalendářní plán'!BZ11,Nastavení!$E$2,IF(Nastavení!$D$4='Kalendářní plán'!BZ11,Nastavení!$E$4,IF(Nastavení!$D$5='Kalendářní plán'!BZ11,Nastavení!$E$5,IF(Nastavení!$D$6='Kalendářní plán'!BZ11,Nastavení!$E$6,IF(Nastavení!$D$7='Kalendářní plán'!BZ11,Nastavení!$E$7,""))))))))))))))) ->  | CA9: =IF(Nastavení!$D$2='Kalendářní plán'!CA11,Nastavení!$E$2,IF(Nastavení!$D$4='Kalendářní plán'!CA11,Nastavení!$E$4,IF(Nastavení!$D$5='Kalendářní plán'!CA11,Nastavení!$E$5,IF(Nastavení!$D$6='Kalendářní plán'!CA11,Nastavení!$E$6,IF(Nastavení!$D$7='Kalendářní plán'!CA11,Nastavení!$E$7,IF(Nastavení!$D$2='Kalendářní plán'!CB11,Nastavení!$E$2,IF(Nastavení!$D$4='Kalendářní plán'!CB11,Nastavení!$E$4,IF(Nastavení!$D$5='Kalendářní plán'!CB11,Nastavení!$E$5,IF(Nastavení!$D$6='Kalendářní plán'!CB11,Nastavení!$E$6,IF(Nastavení!$D$7='Kalendářní plán'!CB11,Nastavení!$E$7,IF(Nastavení!$D$2='Kalendářní plán'!CC11,Nastavení!$E$2,IF(Nastavení!$D$4='Kalendářní plán'!CC11,Nastavení!$E$4,IF(Nastavení!$D$5='Kalendářní plán'!CC11,Nastavení!$E$5,IF(Nastavení!$D$6='Kalendářní plán'!CC11,Nastavení!$E$6,IF(Nastavení!$D$7='Kalendářní plán'!CC11,Nastavení!$E$7,""))))))))))))))) ->  | CD9: =IF(Nastavení!$D$2='Kalendářní plán'!CD11,Nastavení!$E$2,IF(Nastavení!$D$4='Kalendářní plán'!CD11,Nastavení!$E$4,IF(Nastavení!$D$5='Kalendářní plán'!CD11,Nastavení!$E$5,IF(Nastavení!$D$6='Kalendářní plán'!CD11,Nastavení!$E$6,IF(Nastavení!$D$7='Kalendářní plán'!CD11,Nastavení!$E$7,IF(Nastavení!$D$2='Kalendářní plán'!CE11,Nastavení!$E$2,IF(Nastavení!$D$4='Kalendářní plán'!CE11,Nastavení!$E$4,IF(Nastavení!$D$5='Kalendářní plán'!CE11,Nastavení!$E$5,IF(Nastavení!$D$6='Kalendářní plán'!CE11,Nastavení!$E$6,IF(Nastavení!$D$7='Kalendářní plán'!CE11,Nastavení!$E$7,IF(Nastavení!$D$2='Kalendářní plán'!CF11,Nastavení!$E$2,IF(Nastavení!$D$4='Kalendářní plán'!CF11,Nastavení!$E$4,IF(Nastavení!$D$5='Kalendářní plán'!CF11,Nastavení!$E$5,IF(Nastavení!$D$6='Kalendářní plán'!CF11,Nastavení!$E$6,IF(Nastavení!$D$7='Kalendářní plán'!CF11,Nastavení!$E$7,""))))))))))))))) ->  | CG9: =IF(Nastavení!$D$2='Kalendářní plán'!CG11,Nastavení!$E$2,IF(Nastavení!$D$4='Kalendářní plán'!CG11,Nastavení!$E$4,IF(Nastavení!$D$5='Kalendářní plán'!CG11,Nastavení!$E$5,IF(Nastavení!$D$6='Kalendářní plán'!CG11,Nastavení!$E$6,IF(Nastavení!$D$7='Kalendářní plán'!CG11,Nastavení!$E$7,IF(Nastavení!$D$2='Kalendářní plán'!CH11,Nastavení!$E$2,IF(Nastavení!$D$4='Kalendářní plán'!CH11,Nastavení!$E$4,IF(Nastavení!$D$5='Kalendářní plán'!CH11,Nastavení!$E$5,IF(Nastavení!$D$6='Kalendářní plán'!CH11,Nastavení!$E$6,IF(Nastavení!$D$7='Kalendářní plán'!CH11,Nastavení!$E$7,IF(Nastavení!$D$2='Kalendářní plán'!CI11,Nastavení!$E$2,IF(Nastavení!$D$4='Kalendářní plán'!CI11,Nastavení!$E$4,IF(Nastavení!$D$5='Kalendářní plán'!CI11,Nastavení!$E$5,IF(Nastavení!$D$6='Kalendářní plán'!CI11,Nastavení!$E$6,IF(Nastavení!$D$7='Kalendářní plán'!CI11,Nastavení!$E$7,""))))))))))))))) ->  | CJ9: =IF(Nastavení!$D$2='Kalendářní plán'!CJ11,Nastavení!$E$2,IF(Nastavení!$D$4='Kalendářní plán'!CJ11,Nastavení!$E$4,IF(Nastavení!$D$5='Kalendářní plán'!CJ11,Nastavení!$E$5,IF(Nastavení!$D$6='Kalendářní plán'!CJ11,Nastavení!$E$6,IF(Nastavení!$D$7='Kalendářní plán'!CJ11,Nastavení!$E$7,IF(Nastavení!$D$2='Kalendářní plán'!CK11,Nastavení!$E$2,IF(Nastavení!$D$4='Kalendářní plán'!CK11,Nastavení!$E$4,IF(Nastavení!$D$5='Kalendářní plán'!CK11,Nastavení!$E$5,IF(Nastavení!$D$6='Kalendářní plán'!CK11,Nastavení!$E$6,IF(Nastavení!$D$7='Kalendářní plán'!CK11,Nastavení!$E$7,IF(Nastavení!$D$2='Kalendářní plán'!CL11,Nastavení!$E$2,IF(Nastavení!$D$4='Kalendářní plán'!CL11,Nastavení!$E$4,IF(Nastavení!$D$5='Kalendářní plán'!CL11,Nastavení!$E$5,IF(Nastavení!$D$6='Kalendářní plán'!CL11,Nastavení!$E$6,IF(Nastavení!$D$7='Kalendářní plán'!CL11,Nastavení!$E$7,""))))))))))))))) ->  | CM9: =IF(Nastavení!$D$2='Kalendářní plán'!CM11,Nastavení!$E$2,IF(Nastavení!$D$4='Kalendářní plán'!CM11,Nastavení!$E$4,IF(Nastavení!$D$5='Kalendářní plán'!CM11,Nastavení!$E$5,IF(Nastavení!$D$6='Kalendářní plán'!CM11,Nastavení!$E$6,IF(Nastavení!$D$7='Kalendářní plán'!CM11,Nastavení!$E$7,IF(Nastavení!$D$2='Kalendářní plán'!CN11,Nastavení!$E$2,IF(Nastavení!$D$4='Kalendářní plán'!CN11,Nastavení!$E$4,IF(Nastavení!$D$5='Kalendářní plán'!CN11,Nastavení!$E$5,IF(Nastavení!$D$6='Kalendářní plán'!CN11,Nastavení!$E$6,IF(Nastavení!$D$7='Kalendářní plán'!CN11,Nastavení!$E$7,IF(Nastavení!$D$2='Kalendářní plán'!CO11,Nastavení!$E$2,IF(Nastavení!$D$4='Kalendářní plán'!CO11,Nastavení!$E$4,IF(Nastavení!$D$5='Kalendářní plán'!CO11,Nastavení!$E$5,IF(Nastavení!$D$6='Kalendářní plán'!CO11,Nastavení!$E$6,IF(Nastavení!$D$7='Kalendářní plán'!CO11,Nastavení!$E$7,""))))))))))))))) ->  | CP9: =IF(Nastavení!$D$2='Kalendářní plán'!CP11,Nastavení!$E$2,IF(Nastavení!$D$4='Kalendářní plán'!CP11,Nastavení!$E$4,IF(Nastavení!$D$5='Kalendářní plán'!CP11,Nastavení!$E$5,IF(Nastavení!$D$6='Kalendářní plán'!CP11,Nastavení!$E$6,IF(Nastavení!$D$7='Kalendářní plán'!CP11,Nastavení!$E$7,IF(Nastavení!$D$2='Kalendářní plán'!CQ11,Nastavení!$E$2,IF(Nastavení!$D$4='Kalendářní plán'!CQ11,Nastavení!$E$4,IF(Nastavení!$D$5='Kalendářní plán'!CQ11,Nastavení!$E$5,IF(Nastavení!$D$6='Kalendářní plán'!CQ11,Nastavení!$E$6,IF(Nastavení!$D$7='Kalendářní plán'!CQ11,Nastavení!$E$7,IF(Nastavení!$D$2='Kalendářní plán'!CR11,Nastavení!$E$2,IF(Nastavení!$D$4='Kalendářní plán'!CR11,Nastavení!$E$4,IF(Nastavení!$D$5='Kalendářní plán'!CR11,Nastavení!$E$5,IF(Nastavení!$D$6='Kalendářní plán'!CR11,Nastavení!$E$6,IF(Nastavení!$D$7='Kalendářní plán'!CR11,Nastavení!$E$7,""))))))))))))))) ->  | CS9: =IF(Nastavení!$D$2='Kalendářní plán'!CS11,Nastavení!$E$2,IF(Nastavení!$D$4='Kalendářní plán'!CS11,Nastavení!$E$4,IF(Nastavení!$D$5='Kalendářní plán'!CS11,Nastavení!$E$5,IF(Nastavení!$D$6='Kalendářní plán'!CS11,Nastavení!$E$6,IF(Nastavení!$D$7='Kalendářní plán'!CS11,Nastavení!$E$7,IF(Nastavení!$D$2='Kalendářní plán'!CT11,Nastavení!$E$2,IF(Nastavení!$D$4='Kalendářní plán'!CT11,Nastavení!$E$4,IF(Nastavení!$D$5='Kalendářní plán'!CT11,Nastavení!$E$5,IF(Nastavení!$D$6='Kalendářní plán'!CT11,Nastavení!$E$6,IF(Nastavení!$D$7='Kalendářní plán'!CT11,Nastavení!$E$7,IF(Nastavení!$D$2='Kalendářní plán'!CU11,Nastavení!$E$2,IF(Nastavení!$D$4='Kalendářní plán'!CU11,Nastavení!$E$4,IF(Nastavení!$D$5='Kalendářní plán'!CU11,Nastavení!$E$5,IF(Nastavení!$D$6='Kalendářní plán'!CU11,Nastavení!$E$6,IF(Nastavení!$D$7='Kalendářní plán'!CU11,Nastavení!$E$7,""))))))))))))))) ->  | CV9: =IF(Nastavení!$D$2='Kalendářní plán'!CV11,Nastavení!$E$2,IF(Nastavení!$D$4='Kalendářní plán'!CV11,Nastavení!$E$4,IF(Nastavení!$D$5='Kalendářní plán'!CV11,Nastavení!$E$5,IF(Nastavení!$D$6='Kalendářní plán'!CV11,Nastavení!$E$6,IF(Nastavení!$D$7='Kalendářní plán'!CV11,Nastavení!$E$7,IF(Nastavení!$D$2='Kalendářní plán'!CW11,Nastavení!$E$2,IF(Nastavení!$D$4='Kalendářní plán'!CW11,Nastavení!$E$4,IF(Nastavení!$D$5='Kalendářní plán'!CW11,Nastavení!$E$5,IF(Nastavení!$D$6='Kalendářní plán'!CW11,Nastavení!$E$6,IF(Nastavení!$D$7='Kalendářní plán'!CW11,Nastavení!$E$7,IF(Nastavení!$D$2='Kalendářní plán'!CX11,Nastavení!$E$2,IF(Nastavení!$D$4='Kalendářní plán'!CX11,Nastavení!$E$4,IF(Nastavení!$D$5='Kalendářní plán'!CX11,Nastavení!$E$5,IF(Nastavení!$D$6='Kalendářní plán'!CX11,Nastavení!$E$6,IF(Nastavení!$D$7='Kalendářní plán'!CX11,Nastavení!$E$7,""))))))))))))))) ->  | CY9: =IF(Nastavení!$D$2='Kalendářní plán'!CY11,Nastavení!$E$2,IF(Nastavení!$D$4='Kalendářní plán'!CY11,Nastavení!$E$4,IF(Nastavení!$D$5='Kalendářní plán'!CY11,Nastavení!$E$5,IF(Nastavení!$D$6='Kalendářní plán'!CY11,Nastavení!$E$6,IF(Nastavení!$D$7='Kalendářní plán'!CY11,Nastavení!$E$7,IF(Nastavení!$D$2='Kalendářní plán'!CZ11,Nastavení!$E$2,IF(Nastavení!$D$4='Kalendářní plán'!CZ11,Nastavení!$E$4,IF(Nastavení!$D$5='Kalendářní plán'!CZ11,Nastavení!$E$5,IF(Nastavení!$D$6='Kalendářní plán'!CZ11,Nastavení!$E$6,IF(Nastavení!$D$7='Kalendářní plán'!CZ11,Nastavení!$E$7,IF(Nastavení!$D$2='Kalendářní plán'!DA11,Nastavení!$E$2,IF(Nastavení!$D$4='Kalendářní plán'!DA11,Nastavení!$E$4,IF(Nastavení!$D$5='Kalendářní plán'!DA11,Nastavení!$E$5,IF(Nastavení!$D$6='Kalendářní plán'!DA11,Nastavení!$E$6,IF(Nastavení!$D$7='Kalendářní plán'!DA11,Nastavení!$E$7,""))))))))))))))) ->  | DB9: =IF(Nastavení!$D$2='Kalendářní plán'!DB11,Nastavení!$E$2,IF(Nastavení!$D$4='Kalendářní plán'!DB11,Nastavení!$E$4,IF(Nastavení!$D$5='Kalendářní plán'!DB11,Nastavení!$E$5,IF(Nastavení!$D$6='Kalendářní plán'!DB11,Nastavení!$E$6,IF(Nastavení!$D$7='Kalendářní plán'!DB11,Nastavení!$E$7,IF(Nastavení!$D$2='Kalendářní plán'!DC11,Nastavení!$E$2,IF(Nastavení!$D$4='Kalendářní plán'!DC11,Nastavení!$E$4,IF(Nastavení!$D$5='Kalendářní plán'!DC11,Nastavení!$E$5,IF(Nastavení!$D$6='Kalendářní plán'!DC11,Nastavení!$E$6,IF(Nastavení!$D$7='Kalendářní plán'!DC11,Nastavení!$E$7,IF(Nastavení!$D$2='Kalendářní plán'!DD11,Nastavení!$E$2,IF(Nastavení!$D$4='Kalendářní plán'!DD11,Nastavení!$E$4,IF(Nastavení!$D$5='Kalendářní plán'!DD11,Nastavení!$E$5,IF(Nastavení!$D$6='Kalendářní plán'!DD11,Nastavení!$E$6,IF(Nastavení!$D$7='Kalendářní plán'!DD11,Nastavení!$E$7,""))))))))))))))) ->  | DE9: =IF(Nastavení!$D$2='Kalendářní plán'!DE11,Nastavení!$E$2,IF(Nastavení!$D$4='Kalendářní plán'!DE11,Nastavení!$E$4,IF(Nastavení!$D$5='Kalendářní plán'!DE11,Nastavení!$E$5,IF(Nastavení!$D$6='Kalendářní plán'!DE11,Nastavení!$E$6,IF(Nastavení!$D$7='Kalendářní plán'!DE11,Nastavení!$E$7,IF(Nastavení!$D$2='Kalendářní plán'!DF11,Nastavení!$E$2,IF(Nastavení!$D$4='Kalendářní plán'!DF11,Nastavení!$E$4,IF(Nastavení!$D$5='Kalendářní plán'!DF11,Nastavení!$E$5,IF(Nastavení!$D$6='Kalendářní plán'!DF11,Nastavení!$E$6,IF(Nastavení!$D$7='Kalendářní plán'!DF11,Nastavení!$E$7,IF(Nastavení!$D$2='Kalendářní plán'!DG11,Nastavení!$E$2,IF(Nastavení!$D$4='Kalendářní plán'!DG11,Nastavení!$E$4,IF(Nastavení!$D$5='Kalendářní plán'!DG11,Nastavení!$E$5,IF(Nastavení!$D$6='Kalendářní plán'!DG11,Nastavení!$E$6,IF(Nastavení!$D$7='Kalendářní plán'!DG11,Nastavení!$E$7,""))))))))))))))) ->  | DH9: =IF(Nastavení!$D$2='Kalendářní plán'!DH11,Nastavení!$E$2,IF(Nastavení!$D$4='Kalendářní plán'!DH11,Nastavení!$E$4,IF(Nastavení!$D$5='Kalendářní plán'!DH11,Nastavení!$E$5,IF(Nastavení!$D$6='Kalendářní plán'!DH11,Nastavení!$E$6,IF(Nastavení!$D$7='Kalendářní plán'!DH11,Nastavení!$E$7,IF(Nastavení!$D$2='Kalendářní plán'!DI11,Nastavení!$E$2,IF(Nastavení!$D$4='Kalendářní plán'!DI11,Nastavení!$E$4,IF(Nastavení!$D$5='Kalendářní plán'!DI11,Nastavení!$E$5,IF(Nastavení!$D$6='Kalendářní plán'!DI11,Nastavení!$E$6,IF(Nastavení!$D$7='Kalendářní plán'!DI11,Nastavení!$E$7,IF(Nastavení!$D$2='Kalendářní plán'!DJ11,Nastavení!$E$2,IF(Nastavení!$D$4='Kalendářní plán'!DJ11,Nastavení!$E$4,IF(Nastavení!$D$5='Kalendářní plán'!DJ11,Nastavení!$E$5,IF(Nastavení!$D$6='Kalendářní plán'!DJ11,Nastavení!$E$6,IF(Nastavení!$D$7='Kalendářní plán'!DJ11,Nastavení!$E$7,""))))))))))))))) ->  | DK9: =IF(Nastavení!$D$2='Kalendářní plán'!DK11,Nastavení!$E$2,IF(Nastavení!$D$4='Kalendářní plán'!DK11,Nastavení!$E$4,IF(Nastavení!$D$5='Kalendářní plán'!DK11,Nastavení!$E$5,IF(Nastavení!$D$6='Kalendářní plán'!DK11,Nastavení!$E$6,IF(Nastavení!$D$7='Kalendářní plán'!DK11,Nastavení!$E$7,IF(Nastavení!$D$2='Kalendářní plán'!DL11,Nastavení!$E$2,IF(Nastavení!$D$4='Kalendářní plán'!DL11,Nastavení!$E$4,IF(Nastavení!$D$5='Kalendářní plán'!DL11,Nastavení!$E$5,IF(Nastavení!$D$6='Kalendářní plán'!DL11,Nastavení!$E$6,IF(Nastavení!$D$7='Kalendářní plán'!DL11,Nastavení!$E$7,IF(Nastavení!$D$2='Kalendářní plán'!DM11,Nastavení!$E$2,IF(Nastavení!$D$4='Kalendářní plán'!DM11,Nastavení!$E$4,IF(Nastavení!$D$5='Kalendářní plán'!DM11,Nastavení!$E$5,IF(Nastavení!$D$6='Kalendářní plán'!DM11,Nastavení!$E$6,IF(Nastavení!$D$7='Kalendářní plán'!DM11,Nastavení!$E$7,""))))))))))))))) ->  | DN9: =IF(Nastavení!$D$2='Kalendářní plán'!DN11,Nastavení!$E$2,IF(Nastavení!$D$4='Kalendářní plán'!DN11,Nastavení!$E$4,IF(Nastavení!$D$5='Kalendářní plán'!DN11,Nastavení!$E$5,IF(Nastavení!$D$6='Kalendářní plán'!DN11,Nastavení!$E$6,IF(Nastavení!$D$7='Kalendářní plán'!DN11,Nastavení!$E$7,IF(Nastavení!$D$2='Kalendářní plán'!DO11,Nastavení!$E$2,IF(Nastavení!$D$4='Kalendářní plán'!DO11,Nastavení!$E$4,IF(Nastavení!$D$5='Kalendářní plán'!DO11,Nastavení!$E$5,IF(Nastavení!$D$6='Kalendářní plán'!DO11,Nastavení!$E$6,IF(Nastavení!$D$7='Kalendářní plán'!DO11,Nastavení!$E$7,IF(Nastavení!$D$2='Kalendářní plán'!DP11,Nastavení!$E$2,IF(Nastavení!$D$4='Kalendářní plán'!DP11,Nastavení!$E$4,IF(Nastavení!$D$5='Kalendářní plán'!DP11,Nastavení!$E$5,IF(Nastavení!$D$6='Kalendářní plán'!DP11,Nastavení!$E$6,IF(Nastavení!$D$7='Kalendářní plán'!DP11,Nastavení!$E$7,""))))))))))))))) ->  | DQ9: =IF(Nastavení!$D$2='Kalendářní plán'!DQ11,Nastavení!$E$2,IF(Nastavení!$D$4='Kalendářní plán'!DQ11,Nastavení!$E$4,IF(Nastavení!$D$5='Kalendářní plán'!DQ11,Nastavení!$E$5,IF(Nastavení!$D$6='Kalendářní plán'!DQ11,Nastavení!$E$6,IF(Nastavení!$D$7='Kalendářní plán'!DQ11,Nastavení!$E$7,IF(Nastavení!$D$2='Kalendářní plán'!DR11,Nastavení!$E$2,IF(Nastavení!$D$4='Kalendářní plán'!DR11,Nastavení!$E$4,IF(Nastavení!$D$5='Kalendářní plán'!DR11,Nastavení!$E$5,IF(Nastavení!$D$6='Kalendářní plán'!DR11,Nastavení!$E$6,IF(Nastavení!$D$7='Kalendářní plán'!DR11,Nastavení!$E$7,IF(Nastavení!$D$2='Kalendářní plán'!DS11,Nastavení!$E$2,IF(Nastavení!$D$4='Kalendářní plán'!DS11,Nastavení!$E$4,IF(Nastavení!$D$5='Kalendářní plán'!DS11,Nastavení!$E$5,IF(Nastavení!$D$6='Kalendářní plán'!DS11,Nastavení!$E$6,IF(Nastavení!$D$7='Kalendářní plán'!DS11,Nastavení!$E$7,""))))))))))))))) ->  | DT9: =IF(Nastavení!$D$2='Kalendářní plán'!DT11,Nastavení!$E$2,IF(Nastavení!$D$4='Kalendářní plán'!DT11,Nastavení!$E$4,IF(Nastavení!$D$5='Kalendářní plán'!DT11,Nastavení!$E$5,IF(Nastavení!$D$6='Kalendářní plán'!DT11,Nastavení!$E$6,IF(Nastavení!$D$7='Kalendářní plán'!DT11,Nastavení!$E$7,IF(Nastavení!$D$2='Kalendářní plán'!DU11,Nastavení!$E$2,IF(Nastavení!$D$4='Kalendářní plán'!DU11,Nastavení!$E$4,IF(Nastavení!$D$5='Kalendářní plán'!DU11,Nastavení!$E$5,IF(Nastavení!$D$6='Kalendářní plán'!DU11,Nastavení!$E$6,IF(Nastavení!$D$7='Kalendářní plán'!DU11,Nastavení!$E$7,IF(Nastavení!$D$2='Kalendářní plán'!DV11,Nastavení!$E$2,IF(Nastavení!$D$4='Kalendářní plán'!DV11,Nastavení!$E$4,IF(Nastavení!$D$5='Kalendářní plán'!DV11,Nastavení!$E$5,IF(Nastavení!$D$6='Kalendářní plán'!DV11,Nastavení!$E$6,IF(Nastavení!$D$7='Kalendářní plán'!DV11,Nastavení!$E$7,""))))))))))))))) ->  | DW9: =IF(Nastavení!$D$2='Kalendářní plán'!DW11,Nastavení!$E$2,IF(Nastavení!$D$4='Kalendářní plán'!DW11,Nastavení!$E$4,IF(Nastavení!$D$5='Kalendářní plán'!DW11,Nastavení!$E$5,IF(Nastavení!$D$6='Kalendářní plán'!DW11,Nastavení!$E$6,IF(Nastavení!$D$7='Kalendářní plán'!DW11,Nastavení!$E$7,IF(Nastavení!$D$2='Kalendářní plán'!DX11,Nastavení!$E$2,IF(Nastavení!$D$4='Kalendářní plán'!DX11,Nastavení!$E$4,IF(Nastavení!$D$5='Kalendářní plán'!DX11,Nastavení!$E$5,IF(Nastavení!$D$6='Kalendářní plán'!DX11,Nastavení!$E$6,IF(Nastavení!$D$7='Kalendářní plán'!DX11,Nastavení!$E$7,IF(Nastavení!$D$2='Kalendářní plán'!DY11,Nastavení!$E$2,IF(Nastavení!$D$4='Kalendářní plán'!DY11,Nastavení!$E$4,IF(Nastavení!$D$5='Kalendářní plán'!DY11,Nastavení!$E$5,IF(Nastavení!$D$6='Kalendářní plán'!DY11,Nastavení!$E$6,IF(Nastavení!$D$7='Kalendářní plán'!DY11,Nastavení!$E$7,""))))))))))))))) ->  | DZ9: =IF(Nastavení!$D$2='Kalendářní plán'!DZ11,Nastavení!$E$2,IF(Nastavení!$D$4='Kalendářní plán'!DZ11,Nastavení!$E$4,IF(Nastavení!$D$5='Kalendářní plán'!DZ11,Nastavení!$E$5,IF(Nastavení!$D$6='Kalendářní plán'!DZ11,Nastavení!$E$6,IF(Nastavení!$D$7='Kalendářní plán'!DZ11,Nastavení!$E$7,IF(Nastavení!$D$2='Kalendářní plán'!EA11,Nastavení!$E$2,IF(Nastavení!$D$4='Kalendářní plán'!EA11,Nastavení!$E$4,IF(Nastavení!$D$5='Kalendářní plán'!EA11,Nastavení!$E$5,IF(Nastavení!$D$6='Kalendářní plán'!EA11,Nastavení!$E$6,IF(Nastavení!$D$7='Kalendářní plán'!EA11,Nastavení!$E$7,IF(Nastavení!$D$2='Kalendářní plán'!EB11,Nastavení!$E$2,IF(Nastavení!$D$4='Kalendářní plán'!EB11,Nastavení!$E$4,IF(Nastavení!$D$5='Kalendářní plán'!EB11,Nastavení!$E$5,IF(Nastavení!$D$6='Kalendářní plán'!EB11,Nastavení!$E$6,IF(Nastavení!$D$7='Kalendářní plán'!EB11,Nastavení!$E$7,""))))))))))))))) ->  | EC9: =IF(Nastavení!$D$2='Kalendářní plán'!EC11,Nastavení!$E$2,IF(Nastavení!$D$4='Kalendářní plán'!EC11,Nastavení!$E$4,IF(Nastavení!$D$5='Kalendářní plán'!EC11,Nastavení!$E$5,IF(Nastavení!$D$6='Kalendářní plán'!EC11,Nastavení!$E$6,IF(Nastavení!$D$7='Kalendářní plán'!EC11,Nastavení!$E$7,IF(Nastavení!$D$2='Kalendářní plán'!ED11,Nastavení!$E$2,IF(Nastavení!$D$4='Kalendářní plán'!ED11,Nastavení!$E$4,IF(Nastavení!$D$5='Kalendářní plán'!ED11,Nastavení!$E$5,IF(Nastavení!$D$6='Kalendářní plán'!ED11,Nastavení!$E$6,IF(Nastavení!$D$7='Kalendářní plán'!ED11,Nastavení!$E$7,IF(Nastavení!$D$2='Kalendářní plán'!EE11,Nastavení!$E$2,IF(Nastavení!$D$4='Kalendářní plán'!EE11,Nastavení!$E$4,IF(Nastavení!$D$5='Kalendářní plán'!EE11,Nastavení!$E$5,IF(Nastavení!$D$6='Kalendářní plán'!EE11,Nastavení!$E$6,IF(Nastavení!$D$7='Kalendářní plán'!EE11,Nastavení!$E$7,""))))))))))))))) ->  | EF9: =IF(Nastavení!$D$2='Kalendářní plán'!EF11,Nastavení!$E$2,IF(Nastavení!$D$4='Kalendářní plán'!EF11,Nastavení!$E$4,IF(Nastavení!$D$5='Kalendářní plán'!EF11,Nastavení!$E$5,IF(Nastavení!$D$6='Kalendářní plán'!EF11,Nastavení!$E$6,IF(Nastavení!$D$7='Kalendářní plán'!EF11,Nastavení!$E$7,IF(Nastavení!$D$2='Kalendářní plán'!EG11,Nastavení!$E$2,IF(Nastavení!$D$4='Kalendářní plán'!EG11,Nastavení!$E$4,IF(Nastavení!$D$5='Kalendářní plán'!EG11,Nastavení!$E$5,IF(Nastavení!$D$6='Kalendářní plán'!EG11,Nastavení!$E$6,IF(Nastavení!$D$7='Kalendářní plán'!EG11,Nastavení!$E$7,IF(Nastavení!$D$2='Kalendářní plán'!EH11,Nastavení!$E$2,IF(Nastavení!$D$4='Kalendářní plán'!EH11,Nastavení!$E$4,IF(Nastavení!$D$5='Kalendářní plán'!EH11,Nastavení!$E$5,IF(Nastavení!$D$6='Kalendářní plán'!EH11,Nastavení!$E$6,IF(Nastavení!$D$7='Kalendářní plán'!EH11,Nastavení!$E$7,""))))))))))))))) ->  | EI9: =IF(Nastavení!$D$2='Kalendářní plán'!EI11,Nastavení!$E$2,IF(Nastavení!$D$4='Kalendářní plán'!EI11,Nastavení!$E$4,IF(Nastavení!$D$5='Kalendářní plán'!EI11,Nastavení!$E$5,IF(Nastavení!$D$6='Kalendářní plán'!EI11,Nastavení!$E$6,IF(Nastavení!$D$7='Kalendářní plán'!EI11,Nastavení!$E$7,IF(Nastavení!$D$2='Kalendářní plán'!EJ11,Nastavení!$E$2,IF(Nastavení!$D$4='Kalendářní plán'!EJ11,Nastavení!$E$4,IF(Nastavení!$D$5='Kalendářní plán'!EJ11,Nastavení!$E$5,IF(Nastavení!$D$6='Kalendářní plán'!EJ11,Nastavení!$E$6,IF(Nastavení!$D$7='Kalendářní plán'!EJ11,Nastavení!$E$7,IF(Nastavení!$D$2='Kalendářní plán'!EK11,Nastavení!$E$2,IF(Nastavení!$D$4='Kalendářní plán'!EK11,Nastavení!$E$4,IF(Nastavení!$D$5='Kalendářní plán'!EK11,Nastavení!$E$5,IF(Nastavení!$D$6='Kalendářní plán'!EK11,Nastavení!$E$6,IF(Nastavení!$D$7='Kalendářní plán'!EK11,Nastavení!$E$7,""))))))))))))))) ->  | EL9: =IF(Nastavení!$D$2='Kalendářní plán'!EL11,Nastavení!$E$2,IF(Nastavení!$D$4='Kalendářní plán'!EL11,Nastavení!$E$4,IF(Nastavení!$D$5='Kalendářní plán'!EL11,Nastavení!$E$5,IF(Nastavení!$D$6='Kalendářní plán'!EL11,Nastavení!$E$6,IF(Nastavení!$D$7='Kalendářní plán'!EL11,Nastavení!$E$7,IF(Nastavení!$D$2='Kalendářní plán'!EM11,Nastavení!$E$2,IF(Nastavení!$D$4='Kalendářní plán'!EM11,Nastavení!$E$4,IF(Nastavení!$D$5='Kalendářní plán'!EM11,Nastavení!$E$5,IF(Nastavení!$D$6='Kalendářní plán'!EM11,Nastavení!$E$6,IF(Nastavení!$D$7='Kalendářní plán'!EM11,Nastavení!$E$7,IF(Nastavení!$D$2='Kalendářní plán'!EN11,Nastavení!$E$2,IF(Nastavení!$D$4='Kalendářní plán'!EN11,Nastavení!$E$4,IF(Nastavení!$D$5='Kalendářní plán'!EN11,Nastavení!$E$5,IF(Nastavení!$D$6='Kalendářní plán'!EN11,Nastavení!$E$6,IF(Nastavení!$D$7='Kalendářní plán'!EN11,Nastavení!$E$7,""))))))))))))))) ->  | EO9: =IF(Nastavení!$D$2='Kalendářní plán'!EO11,Nastavení!$E$2,IF(Nastavení!$D$4='Kalendářní plán'!EO11,Nastavení!$E$4,IF(Nastavení!$D$5='Kalendářní plán'!EO11,Nastavení!$E$5,IF(Nastavení!$D$6='Kalendářní plán'!EO11,Nastavení!$E$6,IF(Nastavení!$D$7='Kalendářní plán'!EO11,Nastavení!$E$7,IF(Nastavení!$D$2='Kalendářní plán'!EP11,Nastavení!$E$2,IF(Nastavení!$D$4='Kalendářní plán'!EP11,Nastavení!$E$4,IF(Nastavení!$D$5='Kalendářní plán'!EP11,Nastavení!$E$5,IF(Nastavení!$D$6='Kalendářní plán'!EP11,Nastavení!$E$6,IF(Nastavení!$D$7='Kalendářní plán'!EP11,Nastavení!$E$7,IF(Nastavení!$D$2='Kalendářní plán'!EQ11,Nastavení!$E$2,IF(Nastavení!$D$4='Kalendářní plán'!EQ11,Nastavení!$E$4,IF(Nastavení!$D$5='Kalendářní plán'!EQ11,Nastavení!$E$5,IF(Nastavení!$D$6='Kalendářní plán'!EQ11,Nastavení!$E$6,IF(Nastavení!$D$7='Kalendářní plán'!EQ11,Nastavení!$E$7,""))))))))))))))) ->  | ER9: =IF(Nastavení!$D$2='Kalendářní plán'!ER11,Nastavení!$E$2,IF(Nastavení!$D$4='Kalendářní plán'!ER11,Nastavení!$E$4,IF(Nastavení!$D$5='Kalendářní plán'!ER11,Nastavení!$E$5,IF(Nastavení!$D$6='Kalendářní plán'!ER11,Nastavení!$E$6,IF(Nastavení!$D$7='Kalendářní plán'!ER11,Nastavení!$E$7,IF(Nastavení!$D$2='Kalendářní plán'!ES11,Nastavení!$E$2,IF(Nastavení!$D$4='Kalendářní plán'!ES11,Nastavení!$E$4,IF(Nastavení!$D$5='Kalendářní plán'!ES11,Nastavení!$E$5,IF(Nastavení!$D$6='Kalendářní plán'!ES11,Nastavení!$E$6,IF(Nastavení!$D$7='Kalendářní plán'!ES11,Nastavení!$E$7,IF(Nastavení!$D$2='Kalendářní plán'!ET11,Nastavení!$E$2,IF(Nastavení!$D$4='Kalendářní plán'!ET11,Nastavení!$E$4,IF(Nastavení!$D$5='Kalendářní plán'!ET11,Nastavení!$E$5,IF(Nastavení!$D$6='Kalendářní plán'!ET11,Nastavení!$E$6,IF(Nastavení!$D$7='Kalendářní plán'!ET11,Nastavení!$E$7,""))))))))))))))) ->  | EU9: =IF(Nastavení!$D$2='Kalendářní plán'!EU11,Nastavení!$E$2,IF(Nastavení!$D$4='Kalendářní plán'!EU11,Nastavení!$E$4,IF(Nastavení!$D$5='Kalendářní plán'!EU11,Nastavení!$E$5,IF(Nastavení!$D$6='Kalendářní plán'!EU11,Nastavení!$E$6,IF(Nastavení!$D$7='Kalendářní plán'!EU11,Nastavení!$E$7,IF(Nastavení!$D$2='Kalendářní plán'!EV11,Nastavení!$E$2,IF(Nastavení!$D$4='Kalendářní plán'!EV11,Nastavení!$E$4,IF(Nastavení!$D$5='Kalendářní plán'!EV11,Nastavení!$E$5,IF(Nastavení!$D$6='Kalendářní plán'!EV11,Nastavení!$E$6,IF(Nastavení!$D$7='Kalendářní plán'!EV11,Nastavení!$E$7,IF(Nastavení!$D$2='Kalendářní plán'!EW11,Nastavení!$E$2,IF(Nastavení!$D$4='Kalendářní plán'!EW11,Nastavení!$E$4,IF(Nastavení!$D$5='Kalendářní plán'!EW11,Nastavení!$E$5,IF(Nastavení!$D$6='Kalendářní plán'!EW11,Nastavení!$E$6,IF(Nastavení!$D$7='Kalendářní plán'!EW11,Nastavení!$E$7,""))))))))))))))) ->  | EX9: =IF(Nastavení!$D$2='Kalendářní plán'!EX11,Nastavení!$E$2,IF(Nastavení!$D$4='Kalendářní plán'!EX11,Nastavení!$E$4,IF(Nastavení!$D$5='Kalendářní plán'!EX11,Nastavení!$E$5,IF(Nastavení!$D$6='Kalendářní plán'!EX11,Nastavení!$E$6,IF(Nastavení!$D$7='Kalendářní plán'!EX11,Nastavení!$E$7,IF(Nastavení!$D$2='Kalendářní plán'!EY11,Nastavení!$E$2,IF(Nastavení!$D$4='Kalendářní plán'!EY11,Nastavení!$E$4,IF(Nastavení!$D$5='Kalendářní plán'!EY11,Nastavení!$E$5,IF(Nastavení!$D$6='Kalendářní plán'!EY11,Nastavení!$E$6,IF(Nastavení!$D$7='Kalendářní plán'!EY11,Nastavení!$E$7,IF(Nastavení!$D$2='Kalendářní plán'!EZ11,Nastavení!$E$2,IF(Nastavení!$D$4='Kalendářní plán'!EZ11,Nastavení!$E$4,IF(Nastavení!$D$5='Kalendářní plán'!EZ11,Nastavení!$E$5,IF(Nastavení!$D$6='Kalendářní plán'!EZ11,Nastavení!$E$6,IF(Nastavení!$D$7='Kalendářní plán'!EZ11,Nastavení!$E$7,""))))))))))))))) ->  | FA9: =IF(Nastavení!$D$2='Kalendářní plán'!FA11,Nastavení!$E$2,IF(Nastavení!$D$4='Kalendářní plán'!FA11,Nastavení!$E$4,IF(Nastavení!$D$5='Kalendářní plán'!FA11,Nastavení!$E$5,IF(Nastavení!$D$6='Kalendářní plán'!FA11,Nastavení!$E$6,IF(Nastavení!$D$7='Kalendářní plán'!FA11,Nastavení!$E$7,IF(Nastavení!$D$2='Kalendářní plán'!FB11,Nastavení!$E$2,IF(Nastavení!$D$4='Kalendářní plán'!FB11,Nastavení!$E$4,IF(Nastavení!$D$5='Kalendářní plán'!FB11,Nastavení!$E$5,IF(Nastavení!$D$6='Kalendářní plán'!FB11,Nastavení!$E$6,IF(Nastavení!$D$7='Kalendářní plán'!FB11,Nastavení!$E$7,IF(Nastavení!$D$2='Kalendářní plán'!FC11,Nastavení!$E$2,IF(Nastavení!$D$4='Kalendářní plán'!FC11,Nastavení!$E$4,IF(Nastavení!$D$5='Kalendářní plán'!FC11,Nastavení!$E$5,IF(Nastavení!$D$6='Kalendářní plán'!FC11,Nastavení!$E$6,IF(Nastavení!$D$7='Kalendářní plán'!FC11,Nastavení!$E$7,""))))))))))))))) ->  | FD9: =IF(Nastavení!$D$2='Kalendářní plán'!FD11,Nastavení!$E$2,IF(Nastavení!$D$4='Kalendářní plán'!FD11,Nastavení!$E$4,IF(Nastavení!$D$5='Kalendářní plán'!FD11,Nastavení!$E$5,IF(Nastavení!$D$6='Kalendářní plán'!FD11,Nastavení!$E$6,IF(Nastavení!$D$7='Kalendářní plán'!FD11,Nastavení!$E$7,IF(Nastavení!$D$2='Kalendářní plán'!FE11,Nastavení!$E$2,IF(Nastavení!$D$4='Kalendářní plán'!FE11,Nastavení!$E$4,IF(Nastavení!$D$5='Kalendářní plán'!FE11,Nastavení!$E$5,IF(Nastavení!$D$6='Kalendářní plán'!FE11,Nastavení!$E$6,IF(Nastavení!$D$7='Kalendářní plán'!FE11,Nastavení!$E$7,IF(Nastavení!$D$2='Kalendářní plán'!FF11,Nastavení!$E$2,IF(Nastavení!$D$4='Kalendářní plán'!FF11,Nastavení!$E$4,IF(Nastavení!$D$5='Kalendářní plán'!FF11,Nastavení!$E$5,IF(Nastavení!$D$6='Kalendářní plán'!FF11,Nastavení!$E$6,IF(Nastavení!$D$7='Kalendářní plán'!FF11,Nastavení!$E$7,""))))))))))))))) ->  | FG9: =IF(Nastavení!$D$2='Kalendářní plán'!FG11,Nastavení!$E$2,IF(Nastavení!$D$4='Kalendářní plán'!FG11,Nastavení!$E$4,IF(Nastavení!$D$5='Kalendářní plán'!FG11,Nastavení!$E$5,IF(Nastavení!$D$6='Kalendářní plán'!FG11,Nastavení!$E$6,IF(Nastavení!$D$7='Kalendářní plán'!FG11,Nastavení!$E$7,IF(Nastavení!$D$2='Kalendářní plán'!FH11,Nastavení!$E$2,IF(Nastavení!$D$4='Kalendářní plán'!FH11,Nastavení!$E$4,IF(Nastavení!$D$5='Kalendářní plán'!FH11,Nastavení!$E$5,IF(Nastavení!$D$6='Kalendářní plán'!FH11,Nastavení!$E$6,IF(Nastavení!$D$7='Kalendářní plán'!FH11,Nastavení!$E$7,IF(Nastavení!$D$2='Kalendářní plán'!FI11,Nastavení!$E$2,IF(Nastavení!$D$4='Kalendářní plán'!FI11,Nastavení!$E$4,IF(Nastavení!$D$5='Kalendářní plán'!FI11,Nastavení!$E$5,IF(Nastavení!$D$6='Kalendářní plán'!FI11,Nastavení!$E$6,IF(Nastavení!$D$7='Kalendářní plán'!FI11,Nastavení!$E$7,""))))))))))))))) ->  | FJ9: =IF(Nastavení!$D$2='Kalendářní plán'!FJ11,Nastavení!$E$2,IF(Nastavení!$D$4='Kalendářní plán'!FJ11,Nastavení!$E$4,IF(Nastavení!$D$5='Kalendářní plán'!FJ11,Nastavení!$E$5,IF(Nastavení!$D$6='Kalendářní plán'!FJ11,Nastavení!$E$6,IF(Nastavení!$D$7='Kalendářní plán'!FJ11,Nastavení!$E$7,IF(Nastavení!$D$2='Kalendářní plán'!FK11,Nastavení!$E$2,IF(Nastavení!$D$4='Kalendářní plán'!FK11,Nastavení!$E$4,IF(Nastavení!$D$5='Kalendářní plán'!FK11,Nastavení!$E$5,IF(Nastavení!$D$6='Kalendářní plán'!FK11,Nastavení!$E$6,IF(Nastavení!$D$7='Kalendářní plán'!FK11,Nastavení!$E$7,IF(Nastavení!$D$2='Kalendářní plán'!FL11,Nastavení!$E$2,IF(Nastavení!$D$4='Kalendářní plán'!FL11,Nastavení!$E$4,IF(Nastavení!$D$5='Kalendářní plán'!FL11,Nastavení!$E$5,IF(Nastavení!$D$6='Kalendářní plán'!FL11,Nastavení!$E$6,IF(Nastavení!$D$7='Kalendářní plán'!FL11,Nastavení!$E$7,""))))))))))))))) ->  | FM9: =IF(Nastavení!$D$2='Kalendářní plán'!FM11,Nastavení!$E$2,IF(Nastavení!$D$4='Kalendářní plán'!FM11,Nastavení!$E$4,IF(Nastavení!$D$5='Kalendářní plán'!FM11,Nastavení!$E$5,IF(Nastavení!$D$6='Kalendářní plán'!FM11,Nastavení!$E$6,IF(Nastavení!$D$7='Kalendářní plán'!FM11,Nastavení!$E$7,IF(Nastavení!$D$2='Kalendářní plán'!FN11,Nastavení!$E$2,IF(Nastavení!$D$4='Kalendářní plán'!FN11,Nastavení!$E$4,IF(Nastavení!$D$5='Kalendářní plán'!FN11,Nastavení!$E$5,IF(Nastavení!$D$6='Kalendářní plán'!FN11,Nastavení!$E$6,IF(Nastavení!$D$7='Kalendářní plán'!FN11,Nastavení!$E$7,IF(Nastavení!$D$2='Kalendářní plán'!FO11,Nastavení!$E$2,IF(Nastavení!$D$4='Kalendářní plán'!FO11,Nastavení!$E$4,IF(Nastavení!$D$5='Kalendářní plán'!FO11,Nastavení!$E$5,IF(Nastavení!$D$6='Kalendářní plán'!FO11,Nastavení!$E$6,IF(Nastavení!$D$7='Kalendářní plán'!FO11,Nastavení!$E$7,""))))))))))))))) ->  | FP9: =IF(Nastavení!$D$2='Kalendářní plán'!FP11,Nastavení!$E$2,IF(Nastavení!$D$4='Kalendářní plán'!FP11,Nastavení!$E$4,IF(Nastavení!$D$5='Kalendářní plán'!FP11,Nastavení!$E$5,IF(Nastavení!$D$6='Kalendářní plán'!FP11,Nastavení!$E$6,IF(Nastavení!$D$7='Kalendářní plán'!FP11,Nastavení!$E$7,IF(Nastavení!$D$2='Kalendářní plán'!FQ11,Nastavení!$E$2,IF(Nastavení!$D$4='Kalendářní plán'!FQ11,Nastavení!$E$4,IF(Nastavení!$D$5='Kalendářní plán'!FQ11,Nastavení!$E$5,IF(Nastavení!$D$6='Kalendářní plán'!FQ11,Nastavení!$E$6,IF(Nastavení!$D$7='Kalendářní plán'!FQ11,Nastavení!$E$7,IF(Nastavení!$D$2='Kalendářní plán'!FR11,Nastavení!$E$2,IF(Nastavení!$D$4='Kalendářní plán'!FR11,Nastavení!$E$4,IF(Nastavení!$D$5='Kalendářní plán'!FR11,Nastavení!$E$5,IF(Nastavení!$D$6='Kalendářní plán'!FR11,Nastavení!$E$6,IF(Nastavení!$D$7='Kalendářní plán'!FR11,Nastavení!$E$7,""))))))))))))))) ->  | FS9: =IF(Nastavení!$D$2='Kalendářní plán'!FS11,Nastavení!$E$2,IF(Nastavení!$D$4='Kalendářní plán'!FS11,Nastavení!$E$4,IF(Nastavení!$D$5='Kalendářní plán'!FS11,Nastavení!$E$5,IF(Nastavení!$D$6='Kalendářní plán'!FS11,Nastavení!$E$6,IF(Nastavení!$D$7='Kalendářní plán'!FS11,Nastavení!$E$7,IF(Nastavení!$D$2='Kalendářní plán'!FT11,Nastavení!$E$2,IF(Nastavení!$D$4='Kalendářní plán'!FT11,Nastavení!$E$4,IF(Nastavení!$D$5='Kalendářní plán'!FT11,Nastavení!$E$5,IF(Nastavení!$D$6='Kalendářní plán'!FT11,Nastavení!$E$6,IF(Nastavení!$D$7='Kalendářní plán'!FT11,Nastavení!$E$7,IF(Nastavení!$D$2='Kalendářní plán'!FU11,Nastavení!$E$2,IF(Nastavení!$D$4='Kalendářní plán'!FU11,Nastavení!$E$4,IF(Nastavení!$D$5='Kalendářní plán'!FU11,Nastavení!$E$5,IF(Nastavení!$D$6='Kalendářní plán'!FU11,Nastavení!$E$6,IF(Nastavení!$D$7='Kalendářní plán'!FU11,Nastavení!$E$7,""))))))))))))))) ->  | FV9: =IF(Nastavení!$D$2='Kalendářní plán'!FV11,Nastavení!$E$2,IF(Nastavení!$D$4='Kalendářní plán'!FV11,Nastavení!$E$4,IF(Nastavení!$D$5='Kalendářní plán'!FV11,Nastavení!$E$5,IF(Nastavení!$D$6='Kalendářní plán'!FV11,Nastavení!$E$6,IF(Nastavení!$D$7='Kalendářní plán'!FV11,Nastavení!$E$7,IF(Nastavení!$D$2='Kalendářní plán'!FW11,Nastavení!$E$2,IF(Nastavení!$D$4='Kalendářní plán'!FW11,Nastavení!$E$4,IF(Nastavení!$D$5='Kalendářní plán'!FW11,Nastavení!$E$5,IF(Nastavení!$D$6='Kalendářní plán'!FW11,Nastavení!$E$6,IF(Nastavení!$D$7='Kalendářní plán'!FW11,Nastavení!$E$7,IF(Nastavení!$D$2='Kalendářní plán'!FX11,Nastavení!$E$2,IF(Nastavení!$D$4='Kalendářní plán'!FX11,Nastavení!$E$4,IF(Nastavení!$D$5='Kalendářní plán'!FX11,Nastavení!$E$5,IF(Nastavení!$D$6='Kalendářní plán'!FX11,Nastavení!$E$6,IF(Nastavení!$D$7='Kalendářní plán'!FX11,Nastavení!$E$7,""))))))))))))))) ->  | FY9: =IF(Nastavení!$D$2='Kalendářní plán'!FY11,Nastavení!$E$2,IF(Nastavení!$D$4='Kalendářní plán'!FY11,Nastavení!$E$4,IF(Nastavení!$D$5='Kalendářní plán'!FY11,Nastavení!$E$5,IF(Nastavení!$D$6='Kalendářní plán'!FY11,Nastavení!$E$6,IF(Nastavení!$D$7='Kalendářní plán'!FY11,Nastavení!$E$7,IF(Nastavení!$D$2='Kalendářní plán'!FZ11,Nastavení!$E$2,IF(Nastavení!$D$4='Kalendářní plán'!FZ11,Nastavení!$E$4,IF(Nastavení!$D$5='Kalendářní plán'!FZ11,Nastavení!$E$5,IF(Nastavení!$D$6='Kalendářní plán'!FZ11,Nastavení!$E$6,IF(Nastavení!$D$7='Kalendářní plán'!FZ11,Nastavení!$E$7,IF(Nastavení!$D$2='Kalendářní plán'!GA11,Nastavení!$E$2,IF(Nastavení!$D$4='Kalendářní plán'!GA11,Nastavení!$E$4,IF(Nastavení!$D$5='Kalendářní plán'!GA11,Nastavení!$E$5,IF(Nastavení!$D$6='Kalendářní plán'!GA11,Nastavení!$E$6,IF(Nastavení!$D$7='Kalendářní plán'!GA11,Nastavení!$E$7,""))))))))))))))) ->  | GB9: =IF(Nastavení!$D$2='Kalendářní plán'!GB11,Nastavení!$E$2,IF(Nastavení!$D$4='Kalendářní plán'!GB11,Nastavení!$E$4,IF(Nastavení!$D$5='Kalendářní plán'!GB11,Nastavení!$E$5,IF(Nastavení!$D$6='Kalendářní plán'!GB11,Nastavení!$E$6,IF(Nastavení!$D$7='Kalendářní plán'!GB11,Nastavení!$E$7,IF(Nastavení!$D$2='Kalendářní plán'!GC11,Nastavení!$E$2,IF(Nastavení!$D$4='Kalendářní plán'!GC11,Nastavení!$E$4,IF(Nastavení!$D$5='Kalendářní plán'!GC11,Nastavení!$E$5,IF(Nastavení!$D$6='Kalendářní plán'!GC11,Nastavení!$E$6,IF(Nastavení!$D$7='Kalendářní plán'!GC11,Nastavení!$E$7,IF(Nastavení!$D$2='Kalendářní plán'!GD11,Nastavení!$E$2,IF(Nastavení!$D$4='Kalendářní plán'!GD11,Nastavení!$E$4,IF(Nastavení!$D$5='Kalendářní plán'!GD11,Nastavení!$E$5,IF(Nastavení!$D$6='Kalendářní plán'!GD11,Nastavení!$E$6,IF(Nastavení!$D$7='Kalendářní plán'!GD11,Nastavení!$E$7,""))))))))))))))) ->  | GE9: =IF(Nastavení!$D$2='Kalendářní plán'!GE11,Nastavení!$E$2,IF(Nastavení!$D$4='Kalendářní plán'!GE11,Nastavení!$E$4,IF(Nastavení!$D$5='Kalendářní plán'!GE11,Nastavení!$E$5,IF(Nastavení!$D$6='Kalendářní plán'!GE11,Nastavení!$E$6,IF(Nastavení!$D$7='Kalendářní plán'!GE11,Nastavení!$E$7,IF(Nastavení!$D$2='Kalendářní plán'!GF11,Nastavení!$E$2,IF(Nastavení!$D$4='Kalendářní plán'!GF11,Nastavení!$E$4,IF(Nastavení!$D$5='Kalendářní plán'!GF11,Nastavení!$E$5,IF(Nastavení!$D$6='Kalendářní plán'!GF11,Nastavení!$E$6,IF(Nastavení!$D$7='Kalendářní plán'!GF11,Nastavení!$E$7,IF(Nastavení!$D$2='Kalendářní plán'!GG11,Nastavení!$E$2,IF(Nastavení!$D$4='Kalendářní plán'!GG11,Nastavení!$E$4,IF(Nastavení!$D$5='Kalendářní plán'!GG11,Nastavení!$E$5,IF(Nastavení!$D$6='Kalendářní plán'!GG11,Nastavení!$E$6,IF(Nastavení!$D$7='Kalendářní plán'!GG11,Nastavení!$E$7,""))))))))))))))) ->  | GH9: =IF(Nastavení!$D$2='Kalendářní plán'!GH11,Nastavení!$E$2,IF(Nastavení!$D$4='Kalendářní plán'!GH11,Nastavení!$E$4,IF(Nastavení!$D$5='Kalendářní plán'!GH11,Nastavení!$E$5,IF(Nastavení!$D$6='Kalendářní plán'!GH11,Nastavení!$E$6,IF(Nastavení!$D$7='Kalendářní plán'!GH11,Nastavení!$E$7,IF(Nastavení!$D$2='Kalendářní plán'!GI11,Nastavení!$E$2,IF(Nastavení!$D$4='Kalendářní plán'!GI11,Nastavení!$E$4,IF(Nastavení!$D$5='Kalendářní plán'!GI11,Nastavení!$E$5,IF(Nastavení!$D$6='Kalendářní plán'!GI11,Nastavení!$E$6,IF(Nastavení!$D$7='Kalendářní plán'!GI11,Nastavení!$E$7,IF(Nastavení!$D$2='Kalendářní plán'!GJ11,Nastavení!$E$2,IF(Nastavení!$D$4='Kalendářní plán'!GJ11,Nastavení!$E$4,IF(Nastavení!$D$5='Kalendářní plán'!GJ11,Nastavení!$E$5,IF(Nastavení!$D$6='Kalendářní plán'!GJ11,Nastavení!$E$6,IF(Nastavení!$D$7='Kalendářní plán'!GJ11,Nastavení!$E$7,""))))))))))))))) ->  | GK9: =IF(Nastavení!$D$2='Kalendářní plán'!GK11,Nastavení!$E$2,IF(Nastavení!$D$4='Kalendářní plán'!GK11,Nastavení!$E$4,IF(Nastavení!$D$5='Kalendářní plán'!GK11,Nastavení!$E$5,IF(Nastavení!$D$6='Kalendářní plán'!GK11,Nastavení!$E$6,IF(Nastavení!$D$7='Kalendářní plán'!GK11,Nastavení!$E$7,IF(Nastavení!$D$2='Kalendářní plán'!GL11,Nastavení!$E$2,IF(Nastavení!$D$4='Kalendářní plán'!GL11,Nastavení!$E$4,IF(Nastavení!$D$5='Kalendářní plán'!GL11,Nastavení!$E$5,IF(Nastavení!$D$6='Kalendářní plán'!GL11,Nastavení!$E$6,IF(Nastavení!$D$7='Kalendářní plán'!GL11,Nastavení!$E$7,IF(Nastavení!$D$2='Kalendářní plán'!GM11,Nastavení!$E$2,IF(Nastavení!$D$4='Kalendářní plán'!GM11,Nastavení!$E$4,IF(Nastavení!$D$5='Kalendářní plán'!GM11,Nastavení!$E$5,IF(Nastavení!$D$6='Kalendářní plán'!GM11,Nastavení!$E$6,IF(Nastavení!$D$7='Kalendářní plán'!GM11,Nastavení!$E$7,""))))))))))))))) ->  | GN9: =IF(Nastavení!$D$2='Kalendářní plán'!GN11,Nastavení!$E$2,IF(Nastavení!$D$4='Kalendářní plán'!GN11,Nastavení!$E$4,IF(Nastavení!$D$5='Kalendářní plán'!GN11,Nastavení!$E$5,IF(Nastavení!$D$6='Kalendářní plán'!GN11,Nastavení!$E$6,IF(Nastavení!$D$7='Kalendářní plán'!GN11,Nastavení!$E$7,IF(Nastavení!$D$2='Kalendářní plán'!GO11,Nastavení!$E$2,IF(Nastavení!$D$4='Kalendářní plán'!GO11,Nastavení!$E$4,IF(Nastavení!$D$5='Kalendářní plán'!GO11,Nastavení!$E$5,IF(Nastavení!$D$6='Kalendářní plán'!GO11,Nastavení!$E$6,IF(Nastavení!$D$7='Kalendářní plán'!GO11,Nastavení!$E$7,IF(Nastavení!$D$2='Kalendářní plán'!GP11,Nastavení!$E$2,IF(Nastavení!$D$4='Kalendářní plán'!GP11,Nastavení!$E$4,IF(Nastavení!$D$5='Kalendářní plán'!GP11,Nastavení!$E$5,IF(Nastavení!$D$6='Kalendářní plán'!GP11,Nastavení!$E$6,IF(Nastavení!$D$7='Kalendářní plán'!GP11,Nastavení!$E$7,""))))))))))))))) ->  | GQ9: =IF(Nastavení!$D$2='Kalendářní plán'!GQ11,Nastavení!$E$2,IF(Nastavení!$D$4='Kalendářní plán'!GQ11,Nastavení!$E$4,IF(Nastavení!$D$5='Kalendářní plán'!GQ11,Nastavení!$E$5,IF(Nastavení!$D$6='Kalendářní plán'!GQ11,Nastavení!$E$6,IF(Nastavení!$D$7='Kalendářní plán'!GQ11,Nastavení!$E$7,IF(Nastavení!$D$2='Kalendářní plán'!GR11,Nastavení!$E$2,IF(Nastavení!$D$4='Kalendářní plán'!GR11,Nastavení!$E$4,IF(Nastavení!$D$5='Kalendářní plán'!GR11,Nastavení!$E$5,IF(Nastavení!$D$6='Kalendářní plán'!GR11,Nastavení!$E$6,IF(Nastavení!$D$7='Kalendářní plán'!GR11,Nastavení!$E$7,IF(Nastavení!$D$2='Kalendářní plán'!GS11,Nastavení!$E$2,IF(Nastavení!$D$4='Kalendářní plán'!GS11,Nastavení!$E$4,IF(Nastavení!$D$5='Kalendářní plán'!GS11,Nastavení!$E$5,IF(Nastavení!$D$6='Kalendářní plán'!GS11,Nastavení!$E$6,IF(Nastavení!$D$7='Kalendářní plán'!GS11,Nastavení!$E$7,""))))))))))))))) ->  | GT9: =IF(Nastavení!$D$2='Kalendářní plán'!GT11,Nastavení!$E$2,IF(Nastavení!$D$4='Kalendářní plán'!GT11,Nastavení!$E$4,IF(Nastavení!$D$5='Kalendářní plán'!GT11,Nastavení!$E$5,IF(Nastavení!$D$6='Kalendářní plán'!GT11,Nastavení!$E$6,IF(Nastavení!$D$7='Kalendářní plán'!GT11,Nastavení!$E$7,IF(Nastavení!$D$2='Kalendářní plán'!GU11,Nastavení!$E$2,IF(Nastavení!$D$4='Kalendářní plán'!GU11,Nastavení!$E$4,IF(Nastavení!$D$5='Kalendářní plán'!GU11,Nastavení!$E$5,IF(Nastavení!$D$6='Kalendářní plán'!GU11,Nastavení!$E$6,IF(Nastavení!$D$7='Kalendářní plán'!GU11,Nastavení!$E$7,IF(Nastavení!$D$2='Kalendářní plán'!GV11,Nastavení!$E$2,IF(Nastavení!$D$4='Kalendářní plán'!GV11,Nastavení!$E$4,IF(Nastavení!$D$5='Kalendářní plán'!GV11,Nastavení!$E$5,IF(Nastavení!$D$6='Kalendářní plán'!GV11,Nastavení!$E$6,IF(Nastavení!$D$7='Kalendářní plán'!GV11,Nastavení!$E$7,""))))))))))))))) ->  | GW9: =IF(Nastavení!$D$2='Kalendářní plán'!GW11,Nastavení!$E$2,IF(Nastavení!$D$4='Kalendářní plán'!GW11,Nastavení!$E$4,IF(Nastavení!$D$5='Kalendářní plán'!GW11,Nastavení!$E$5,IF(Nastavení!$D$6='Kalendářní plán'!GW11,Nastavení!$E$6,IF(Nastavení!$D$7='Kalendářní plán'!GW11,Nastavení!$E$7,IF(Nastavení!$D$2='Kalendářní plán'!GX11,Nastavení!$E$2,IF(Nastavení!$D$4='Kalendářní plán'!GX11,Nastavení!$E$4,IF(Nastavení!$D$5='Kalendářní plán'!GX11,Nastavení!$E$5,IF(Nastavení!$D$6='Kalendářní plán'!GX11,Nastavení!$E$6,IF(Nastavení!$D$7='Kalendářní plán'!GX11,Nastavení!$E$7,IF(Nastavení!$D$2='Kalendářní plán'!GY11,Nastavení!$E$2,IF(Nastavení!$D$4='Kalendářní plán'!GY11,Nastavení!$E$4,IF(Nastavení!$D$5='Kalendářní plán'!GY11,Nastavení!$E$5,IF(Nastavení!$D$6='Kalendářní plán'!GY11,Nastavení!$E$6,IF(Nastavení!$D$7='Kalendářní plán'!GY11,Nastavení!$E$7,""))))))))))))))) ->  | GZ9: =IF(Nastavení!$D$2='Kalendářní plán'!GZ11,Nastavení!$E$2,IF(Nastavení!$D$4='Kalendářní plán'!GZ11,Nastavení!$E$4,IF(Nastavení!$D$5='Kalendářní plán'!GZ11,Nastavení!$E$5,IF(Nastavení!$D$6='Kalendářní plán'!GZ11,Nastavení!$E$6,IF(Nastavení!$D$7='Kalendářní plán'!GZ11,Nastavení!$E$7,IF(Nastavení!$D$2='Kalendářní plán'!HA11,Nastavení!$E$2,IF(Nastavení!$D$4='Kalendářní plán'!HA11,Nastavení!$E$4,IF(Nastavení!$D$5='Kalendářní plán'!HA11,Nastavení!$E$5,IF(Nastavení!$D$6='Kalendářní plán'!HA11,Nastavení!$E$6,IF(Nastavení!$D$7='Kalendářní plán'!HA11,Nastavení!$E$7,IF(Nastavení!$D$2='Kalendářní plán'!HB11,Nastavení!$E$2,IF(Nastavení!$D$4='Kalendářní plán'!HB11,Nastavení!$E$4,IF(Nastavení!$D$5='Kalendářní plán'!HB11,Nastavení!$E$5,IF(Nastavení!$D$6='Kalendářní plán'!HB11,Nastavení!$E$6,IF(Nastavení!$D$7='Kalendářní plán'!HB11,Nastavení!$E$7,""))))))))))))))) ->  | HC9: =IF(Nastavení!$D$2='Kalendářní plán'!HC11,Nastavení!$E$2,IF(Nastavení!$D$4='Kalendářní plán'!HC11,Nastavení!$E$4,IF(Nastavení!$D$5='Kalendářní plán'!HC11,Nastavení!$E$5,IF(Nastavení!$D$6='Kalendářní plán'!HC11,Nastavení!$E$6,IF(Nastavení!$D$7='Kalendářní plán'!HC11,Nastavení!$E$7,IF(Nastavení!$D$2='Kalendářní plán'!HD11,Nastavení!$E$2,IF(Nastavení!$D$4='Kalendářní plán'!HD11,Nastavení!$E$4,IF(Nastavení!$D$5='Kalendářní plán'!HD11,Nastavení!$E$5,IF(Nastavení!$D$6='Kalendářní plán'!HD11,Nastavení!$E$6,IF(Nastavení!$D$7='Kalendářní plán'!HD11,Nastavení!$E$7,IF(Nastavení!$D$2='Kalendářní plán'!HE11,Nastavení!$E$2,IF(Nastavení!$D$4='Kalendářní plán'!HE11,Nastavení!$E$4,IF(Nastavení!$D$5='Kalendářní plán'!HE11,Nastavení!$E$5,IF(Nastavení!$D$6='Kalendářní plán'!HE11,Nastavení!$E$6,IF(Nastavení!$D$7='Kalendářní plán'!HE11,Nastavení!$E$7,""))))))))))))))) ->  | HF9: =IF(Nastavení!$D$2='Kalendářní plán'!HF11,Nastavení!$E$2,IF(Nastavení!$D$4='Kalendářní plán'!HF11,Nastavení!$E$4,IF(Nastavení!$D$5='Kalendářní plán'!HF11,Nastavení!$E$5,IF(Nastavení!$D$6='Kalendářní plán'!HF11,Nastavení!$E$6,IF(Nastavení!$D$7='Kalendářní plán'!HF11,Nastavení!$E$7,IF(Nastavení!$D$2='Kalendářní plán'!HG11,Nastavení!$E$2,IF(Nastavení!$D$4='Kalendářní plán'!HG11,Nastavení!$E$4,IF(Nastavení!$D$5='Kalendářní plán'!HG11,Nastavení!$E$5,IF(Nastavení!$D$6='Kalendářní plán'!HG11,Nastavení!$E$6,IF(Nastavení!$D$7='Kalendářní plán'!HG11,Nastavení!$E$7,IF(Nastavení!$D$2='Kalendářní plán'!HH11,Nastavení!$E$2,IF(Nastavení!$D$4='Kalendářní plán'!HH11,Nastavení!$E$4,IF(Nastavení!$D$5='Kalendářní plán'!HH11,Nastavení!$E$5,IF(Nastavení!$D$6='Kalendářní plán'!HH11,Nastavení!$E$6,IF(Nastavení!$D$7='Kalendářní plán'!HH11,Nastavení!$E$7,""))))))))))))))) ->  | HI9: =IF(Nastavení!$D$2='Kalendářní plán'!HI11,Nastavení!$E$2,IF(Nastavení!$D$4='Kalendářní plán'!HI11,Nastavení!$E$4,IF(Nastavení!$D$5='Kalendářní plán'!HI11,Nastavení!$E$5,IF(Nastavení!$D$6='Kalendářní plán'!HI11,Nastavení!$E$6,IF(Nastavení!$D$7='Kalendářní plán'!HI11,Nastavení!$E$7,IF(Nastavení!$D$2='Kalendářní plán'!HJ11,Nastavení!$E$2,IF(Nastavení!$D$4='Kalendářní plán'!HJ11,Nastavení!$E$4,IF(Nastavení!$D$5='Kalendářní plán'!HJ11,Nastavení!$E$5,IF(Nastavení!$D$6='Kalendářní plán'!HJ11,Nastavení!$E$6,IF(Nastavení!$D$7='Kalendářní plán'!HJ11,Nastavení!$E$7,IF(Nastavení!$D$2='Kalendářní plán'!HK11,Nastavení!$E$2,IF(Nastavení!$D$4='Kalendářní plán'!HK11,Nastavení!$E$4,IF(Nastavení!$D$5='Kalendářní plán'!HK11,Nastavení!$E$5,IF(Nastavení!$D$6='Kalendářní plán'!HK11,Nastavení!$E$6,IF(Nastavení!$D$7='Kalendářní plán'!HK11,Nastavení!$E$7,""))))))))))))))) ->  | HL9: =IF(Nastavení!$D$2='Kalendářní plán'!HL11,Nastavení!$E$2,IF(Nastavení!$D$4='Kalendářní plán'!HL11,Nastavení!$E$4,IF(Nastavení!$D$5='Kalendářní plán'!HL11,Nastavení!$E$5,IF(Nastavení!$D$6='Kalendářní plán'!HL11,Nastavení!$E$6,IF(Nastavení!$D$7='Kalendářní plán'!HL11,Nastavení!$E$7,IF(Nastavení!$D$2='Kalendářní plán'!HM11,Nastavení!$E$2,IF(Nastavení!$D$4='Kalendářní plán'!HM11,Nastavení!$E$4,IF(Nastavení!$D$5='Kalendářní plán'!HM11,Nastavení!$E$5,IF(Nastavení!$D$6='Kalendářní plán'!HM11,Nastavení!$E$6,IF(Nastavení!$D$7='Kalendářní plán'!HM11,Nastavení!$E$7,IF(Nastavení!$D$2='Kalendářní plán'!HN11,Nastavení!$E$2,IF(Nastavení!$D$4='Kalendářní plán'!HN11,Nastavení!$E$4,IF(Nastavení!$D$5='Kalendářní plán'!HN11,Nastavení!$E$5,IF(Nastavení!$D$6='Kalendářní plán'!HN11,Nastavení!$E$6,IF(Nastavení!$D$7='Kalendářní plán'!HN11,Nastavení!$E$7,""))))))))))))))) ->  | HO9: =IF(Nastavení!$D$2='Kalendářní plán'!HO11,Nastavení!$E$2,IF(Nastavení!$D$4='Kalendářní plán'!HO11,Nastavení!$E$4,IF(Nastavení!$D$5='Kalendářní plán'!HO11,Nastavení!$E$5,IF(Nastavení!$D$6='Kalendářní plán'!HO11,Nastavení!$E$6,IF(Nastavení!$D$7='Kalendářní plán'!HO11,Nastavení!$E$7,IF(Nastavení!$D$2='Kalendářní plán'!HP11,Nastavení!$E$2,IF(Nastavení!$D$4='Kalendářní plán'!HP11,Nastavení!$E$4,IF(Nastavení!$D$5='Kalendářní plán'!HP11,Nastavení!$E$5,IF(Nastavení!$D$6='Kalendářní plán'!HP11,Nastavení!$E$6,IF(Nastavení!$D$7='Kalendářní plán'!HP11,Nastavení!$E$7,IF(Nastavení!$D$2='Kalendářní plán'!HQ11,Nastavení!$E$2,IF(Nastavení!$D$4='Kalendářní plán'!HQ11,Nastavení!$E$4,IF(Nastavení!$D$5='Kalendářní plán'!HQ11,Nastavení!$E$5,IF(Nastavení!$D$6='Kalendářní plán'!HQ11,Nastavení!$E$6,IF(Nastavení!$D$7='Kalendářní plán'!HQ11,Nastavení!$E$7,""))))))))))))))) ->  | HR9: =IF(Nastavení!$D$2='Kalendářní plán'!HR11,Nastavení!$E$2,IF(Nastavení!$D$4='Kalendářní plán'!HR11,Nastavení!$E$4,IF(Nastavení!$D$5='Kalendářní plán'!HR11,Nastavení!$E$5,IF(Nastavení!$D$6='Kalendářní plán'!HR11,Nastavení!$E$6,IF(Nastavení!$D$7='Kalendářní plán'!HR11,Nastavení!$E$7,IF(Nastavení!$D$2='Kalendářní plán'!HS11,Nastavení!$E$2,IF(Nastavení!$D$4='Kalendářní plán'!HS11,Nastavení!$E$4,IF(Nastavení!$D$5='Kalendářní plán'!HS11,Nastavení!$E$5,IF(Nastavení!$D$6='Kalendářní plán'!HS11,Nastavení!$E$6,IF(Nastavení!$D$7='Kalendářní plán'!HS11,Nastavení!$E$7,IF(Nastavení!$D$2='Kalendářní plán'!HT11,Nastavení!$E$2,IF(Nastavení!$D$4='Kalendářní plán'!HT11,Nastavení!$E$4,IF(Nastavení!$D$5='Kalendářní plán'!HT11,Nastavení!$E$5,IF(Nastavení!$D$6='Kalendářní plán'!HT11,Nastavení!$E$6,IF(Nastavení!$D$7='Kalendářní plán'!HT11,Nastavení!$E$7,""))))))))))))))) ->  | HU9: =IF(Nastavení!$D$2='Kalendářní plán'!HU11,Nastavení!$E$2,IF(Nastavení!$D$4='Kalendářní plán'!HU11,Nastavení!$E$4,IF(Nastavení!$D$5='Kalendářní plán'!HU11,Nastavení!$E$5,IF(Nastavení!$D$6='Kalendářní plán'!HU11,Nastavení!$E$6,IF(Nastavení!$D$7='Kalendářní plán'!HU11,Nastavení!$E$7,IF(Nastavení!$D$2='Kalendářní plán'!HV11,Nastavení!$E$2,IF(Nastavení!$D$4='Kalendářní plán'!HV11,Nastavení!$E$4,IF(Nastavení!$D$5='Kalendářní plán'!HV11,Nastavení!$E$5,IF(Nastavení!$D$6='Kalendářní plán'!HV11,Nastavení!$E$6,IF(Nastavení!$D$7='Kalendářní plán'!HV11,Nastavení!$E$7,IF(Nastavení!$D$2='Kalendářní plán'!HW11,Nastavení!$E$2,IF(Nastavení!$D$4='Kalendářní plán'!HW11,Nastavení!$E$4,IF(Nastavení!$D$5='Kalendářní plán'!HW11,Nastavení!$E$5,IF(Nastavení!$D$6='Kalendářní plán'!HW11,Nastavení!$E$6,IF(Nastavení!$D$7='Kalendářní plán'!HW11,Nastavení!$E$7,""))))))))))))))) ->  | HX9: =IF(Nastavení!$D$2='Kalendářní plán'!HX11,Nastavení!$E$2,IF(Nastavení!$D$4='Kalendářní plán'!HX11,Nastavení!$E$4,IF(Nastavení!$D$5='Kalendářní plán'!HX11,Nastavení!$E$5,IF(Nastavení!$D$6='Kalendářní plán'!HX11,Nastavení!$E$6,IF(Nastavení!$D$7='Kalendářní plán'!HX11,Nastavení!$E$7,IF(Nastavení!$D$2='Kalendářní plán'!HY11,Nastavení!$E$2,IF(Nastavení!$D$4='Kalendářní plán'!HY11,Nastavení!$E$4,IF(Nastavení!$D$5='Kalendářní plán'!HY11,Nastavení!$E$5,IF(Nastavení!$D$6='Kalendářní plán'!HY11,Nastavení!$E$6,IF(Nastavení!$D$7='Kalendářní plán'!HY11,Nastavení!$E$7,IF(Nastavení!$D$2='Kalendářní plán'!HZ11,Nastavení!$E$2,IF(Nastavení!$D$4='Kalendářní plán'!HZ11,Nastavení!$E$4,IF(Nastavení!$D$5='Kalendářní plán'!HZ11,Nastavení!$E$5,IF(Nastavení!$D$6='Kalendářní plán'!HZ11,Nastavení!$E$6,IF(Nastavení!$D$7='Kalendářní plán'!HZ11,Nastavení!$E$7,""))))))))))))))) ->  | IA9: =IF(Nastavení!$D$2='Kalendářní plán'!IA11,Nastavení!$E$2,IF(Nastavení!$D$4='Kalendářní plán'!IA11,Nastavení!$E$4,IF(Nastavení!$D$5='Kalendářní plán'!IA11,Nastavení!$E$5,IF(Nastavení!$D$6='Kalendářní plán'!IA11,Nastavení!$E$6,IF(Nastavení!$D$7='Kalendářní plán'!IA11,Nastavení!$E$7,IF(Nastavení!$D$2='Kalendářní plán'!IB11,Nastavení!$E$2,IF(Nastavení!$D$4='Kalendářní plán'!IB11,Nastavení!$E$4,IF(Nastavení!$D$5='Kalendářní plán'!IB11,Nastavení!$E$5,IF(Nastavení!$D$6='Kalendářní plán'!IB11,Nastavení!$E$6,IF(Nastavení!$D$7='Kalendářní plán'!IB11,Nastavení!$E$7,IF(Nastavení!$D$2='Kalendářní plán'!IC11,Nastavení!$E$2,IF(Nastavení!$D$4='Kalendářní plán'!IC11,Nastavení!$E$4,IF(Nastavení!$D$5='Kalendářní plán'!IC11,Nastavení!$E$5,IF(Nastavení!$D$6='Kalendářní plán'!IC11,Nastavení!$E$6,IF(Nastavení!$D$7='Kalendářní plán'!IC11,Nastavení!$E$7,""))))))))))))))) ->  | ID9: =IF(Nastavení!$D$2='Kalendářní plán'!ID11,Nastavení!$E$2,IF(Nastavení!$D$4='Kalendářní plán'!ID11,Nastavení!$E$4,IF(Nastavení!$D$5='Kalendářní plán'!ID11,Nastavení!$E$5,IF(Nastavení!$D$6='Kalendářní plán'!ID11,Nastavení!$E$6,IF(Nastavení!$D$7='Kalendářní plán'!ID11,Nastavení!$E$7,IF(Nastavení!$D$2='Kalendářní plán'!IE11,Nastavení!$E$2,IF(Nastavení!$D$4='Kalendářní plán'!IE11,Nastavení!$E$4,IF(Nastavení!$D$5='Kalendářní plán'!IE11,Nastavení!$E$5,IF(Nastavení!$D$6='Kalendářní plán'!IE11,Nastavení!$E$6,IF(Nastavení!$D$7='Kalendářní plán'!IE11,Nastavení!$E$7,IF(Nastavení!$D$2='Kalendářní plán'!IF11,Nastavení!$E$2,IF(Nastavení!$D$4='Kalendářní plán'!IF11,Nastavení!$E$4,IF(Nastavení!$D$5='Kalendářní plán'!IF11,Nastavení!$E$5,IF(Nastavení!$D$6='Kalendářní plán'!IF11,Nastavení!$E$6,IF(Nastavení!$D$7='Kalendářní plán'!IF11,Nastavení!$E$7,""))))))))))))))) ->  | IG9: =IF(Nastavení!$D$2='Kalendářní plán'!IG11,Nastavení!$E$2,IF(Nastavení!$D$4='Kalendářní plán'!IG11,Nastavení!$E$4,IF(Nastavení!$D$5='Kalendářní plán'!IG11,Nastavení!$E$5,IF(Nastavení!$D$6='Kalendářní plán'!IG11,Nastavení!$E$6,IF(Nastavení!$D$7='Kalendářní plán'!IG11,Nastavení!$E$7,IF(Nastavení!$D$2='Kalendářní plán'!IH11,Nastavení!$E$2,IF(Nastavení!$D$4='Kalendářní plán'!IH11,Nastavení!$E$4,IF(Nastavení!$D$5='Kalendářní plán'!IH11,Nastavení!$E$5,IF(Nastavení!$D$6='Kalendářní plán'!IH11,Nastavení!$E$6,IF(Nastavení!$D$7='Kalendářní plán'!IH11,Nastavení!$E$7,IF(Nastavení!$D$2='Kalendářní plán'!II11,Nastavení!$E$2,IF(Nastavení!$D$4='Kalendářní plán'!II11,Nastavení!$E$4,IF(Nastavení!$D$5='Kalendářní plán'!II11,Nastavení!$E$5,IF(Nastavení!$D$6='Kalendářní plán'!II11,Nastavení!$E$6,IF(Nastavení!$D$7='Kalendářní plán'!II11,Nastavení!$E$7,""))))))))))))))) ->  | IJ9: =IF(Nastavení!$D$2='Kalendářní plán'!IJ11,Nastavení!$E$2,IF(Nastavení!$D$4='Kalendářní plán'!IJ11,Nastavení!$E$4,IF(Nastavení!$D$5='Kalendářní plán'!IJ11,Nastavení!$E$5,IF(Nastavení!$D$6='Kalendářní plán'!IJ11,Nastavení!$E$6,IF(Nastavení!$D$7='Kalendářní plán'!IJ11,Nastavení!$E$7,IF(Nastavení!$D$2='Kalendářní plán'!IK11,Nastavení!$E$2,IF(Nastavení!$D$4='Kalendářní plán'!IK11,Nastavení!$E$4,IF(Nastavení!$D$5='Kalendářní plán'!IK11,Nastavení!$E$5,IF(Nastavení!$D$6='Kalendářní plán'!IK11,Nastavení!$E$6,IF(Nastavení!$D$7='Kalendářní plán'!IK11,Nastavení!$E$7,IF(Nastavení!$D$2='Kalendářní plán'!IL11,Nastavení!$E$2,IF(Nastavení!$D$4='Kalendářní plán'!IL11,Nastavení!$E$4,IF(Nastavení!$D$5='Kalendářní plán'!IL11,Nastavení!$E$5,IF(Nastavení!$D$6='Kalendářní plán'!IL11,Nastavení!$E$6,IF(Nastavení!$D$7='Kalendářní plán'!IL11,Nastavení!$E$7,""))))))))))))))) ->  | IM9: =IF(Nastavení!$D$2='Kalendářní plán'!IM11,Nastavení!$E$2,IF(Nastavení!$D$4='Kalendářní plán'!IM11,Nastavení!$E$4,IF(Nastavení!$D$5='Kalendářní plán'!IM11,Nastavení!$E$5,IF(Nastavení!$D$6='Kalendářní plán'!IM11,Nastavení!$E$6,IF(Nastavení!$D$7='Kalendářní plán'!IM11,Nastavení!$E$7,IF(Nastavení!$D$2='Kalendářní plán'!IN11,Nastavení!$E$2,IF(Nastavení!$D$4='Kalendářní plán'!IN11,Nastavení!$E$4,IF(Nastavení!$D$5='Kalendářní plán'!IN11,Nastavení!$E$5,IF(Nastavení!$D$6='Kalendářní plán'!IN11,Nastavení!$E$6,IF(Nastavení!$D$7='Kalendářní plán'!IN11,Nastavení!$E$7,IF(Nastavení!$D$2='Kalendářní plán'!IO11,Nastavení!$E$2,IF(Nastavení!$D$4='Kalendářní plán'!IO11,Nastavení!$E$4,IF(Nastavení!$D$5='Kalendářní plán'!IO11,Nastavení!$E$5,IF(Nastavení!$D$6='Kalendářní plán'!IO11,Nastavení!$E$6,IF(Nastavení!$D$7='Kalendářní plán'!IO11,Nastavení!$E$7,""))))))))))))))) ->  | IP9: =IF(Nastavení!$D$2='Kalendářní plán'!IP11,Nastavení!$E$2,IF(Nastavení!$D$4='Kalendářní plán'!IP11,Nastavení!$E$4,IF(Nastavení!$D$5='Kalendářní plán'!IP11,Nastavení!$E$5,IF(Nastavení!$D$6='Kalendářní plán'!IP11,Nastavení!$E$6,IF(Nastavení!$D$7='Kalendářní plán'!IP11,Nastavení!$E$7,IF(Nastavení!$D$2='Kalendářní plán'!IQ11,Nastavení!$E$2,IF(Nastavení!$D$4='Kalendářní plán'!IQ11,Nastavení!$E$4,IF(Nastavení!$D$5='Kalendářní plán'!IQ11,Nastavení!$E$5,IF(Nastavení!$D$6='Kalendářní plán'!IQ11,Nastavení!$E$6,IF(Nastavení!$D$7='Kalendářní plán'!IQ11,Nastavení!$E$7,IF(Nastavení!$D$2='Kalendářní plán'!IR11,Nastavení!$E$2,IF(Nastavení!$D$4='Kalendářní plán'!IR11,Nastavení!$E$4,IF(Nastavení!$D$5='Kalendářní plán'!IR11,Nastavení!$E$5,IF(Nastavení!$D$6='Kalendářní plán'!IR11,Nastavení!$E$6,IF(Nastavení!$D$7='Kalendářní plán'!IR11,Nastavení!$E$7,""))))))))))))))) ->  | IS9: =DATE(IS10,1,1) -> 1900-01-01
B10: Úkol | C10: Poznámka | D10: Plní | E10: Odpovídá | F10: Součinnot | G10: Lhůta splnění | H10: Doba realizace | I10: Zahájení | J10: Ukončení | K10: Platnost | L10: Vybránno | M10: =Nastavení!D3-2 -> 2021 | Y10: =M10+1 -> 2022 | AK10: =Y10+1 -> 2023 | AW10: =AK10+1 -> 2024 | BI10: =AW10+1 -> 2025 | BU10: =BI10+1 -> 2026 | CG10: =BU10+1 -> 2027 | CS10: =CG10+1 -> 2028 | DE10: =CS10+1 -> 2029 | DQ10: =DE10+1 -> 2030 | EC10: =DQ10+1 -> 2031 | EO10: =EC10+1 -> 2032 | FA10: =EO10+1 -> 2033 | FM10: =FA10+1 -> 2034 | FY10: =FM10+1 -> 2035 | GK10: =FY10+1 -> 2036 | GW10: =GK10+1 -> 2037 | HI10: =GW10+1 -> 2038 | HU10: =HI10+1 -> 2039 | IG10: =HU10+1 -> 2040
M11: =DATE(M10,1,1) -> 2021-01-01 | N11: =DATE(M10,2,1) -> 2021-02-01 | O11: =DATE(M10,3,1) -> 2021-03-01 | P11: =DATE(M10,4,1) -> 2021-04-01 | Q11: =DATE(M10,5,1) -> 2021-05-01 | R11: =DATE(M10,6,1) -> 2021-06-01 | S11: =DATE(M10,7,1) -> 2021-07-01 | T11: =DATE(M10,8,1) -> 2021-08-01 | U11: =DATE(M10,9,1) -> 2021-09-01 | V11: =DATE(M10,10,1) -> 2021-10-01 | W11: =DATE(M10,11,1) -> 2021-11-01 | X11: =DATE(M10,12,1) -> 2021-12-01 | Y11: =DATE(Y10,1,1) -> 2022-01-01 | Z11: =DATE(Y10,2,1) -> 2022-02-01 | AA11: =DATE(Y10,3,1) -> 2022-03-01 | AB11: =DATE(Y10,4,1) -> 2022-04-01 | AC11: =DATE(Y10,5,1) -> 2022-05-01 | AD11: =DATE(Y10,6,1) -> 2022-06-01 | AE11: =DATE(Y10,7,1) -> 2022-07-01 | AF11: =DATE(Y10,8,1) -> 2022-08-01 | AG11: =DATE(Y10,9,1) -> 2022-09-01 | AH11: =DATE(Y10,10,1) -> 2022-10-01 | AI11: =DATE(Y10,11,1) -> 2022-11-01 | AJ11: =DATE(Y10,12,1) -> 2022-12-01 | AK11: =DATE(AK10,1,1) -> 2023-01-01 | AL11: =DATE(AK10,2,1) -> 2023-02-01 | AM11: =DATE(AK10,3,1) -> 2023-03-01 | AN11: =DATE(AK10,4,1) -> 2023-04-01 | AO11: =DATE(AK10,5,1) -> 2023-05-01 | AP11: =DATE(AK10,6,1) -> 2023-06-01 | AQ11: =DATE(AK10,7,1) -> 2023-07-01 | AR11: =DATE(AK10,8,1) -> 2023-08-01 | AS11: =DATE(AK10,9,1) -> 2023-09-01 | AT11: =DATE(AK10,10,1) -> 2023-10-01 | AU11: =DATE(AK10,11,1) -> 2023-11-01 | AV11: =DATE(AK10,12,1) -> 2023-12-01 | AW11: =DATE(AW10,1,1) -> 2024-01-01 | AX11: =DATE(AW10,2,1) -> 2024-02-01 | AY11: =DATE(AW10,3,1) -> 2024-03-01 | AZ11: =DATE(AW10,4,1) -> 2024-04-01 | BA11: =DATE(AW10,5,1) -> 2024-05-01 | BB11: =DATE(AW10,6,1) -> 2024-06-01 | BC11: =DATE(AW10,7,1) -> 2024-07-01 | BD11: =DATE(AW10,8,1) -> 2024-08-01 | BE11: =DATE(AW10,9,1) -> 2024-09-01 | BF11: =DATE(AW10,10,1) -> 2024-10-01 | BG11: =DATE(AW10,11,1) -> 2024-11-01 | BH11: =DATE(AW10,12,1) -> 2024-12-01 | BI11: =DATE(BI10,1,1) -> 2025-01-01 | BJ11: =DATE(BI10,2,1) -> 2025-02-01 | BK11: =DATE(BI10,3,1) -> 2025-03-01 | BL11: =DATE(BI10,4,1) -> 2025-04-01 | BM11: =DATE(BI10,5,1) -> 2025-05-01 | BN11: =DATE(BI10,6,1) -> 2025-06-01 | BO11: =DATE(BI10,7,1) -> 2025-07-01 | BP11: =DATE(BI10,8,1) -> 2025-08-01 | BQ11: =DATE(BI10,9,1) -> 2025-09-01 | BR11: =DATE(BI10,10,1) -> 2025-10-01 | BS11: =DATE(BI10,11,1) -> 2025-11-01 | BT11: =DATE(BI10,12,1) -> 2025-12-01 | BU11: =DATE(BU10,1,1) -> 2026-01-01 | BV11: =DATE(BU10,2,1) -> 2026-02-01 | BW11: =DATE(BU10,3,1) -> 2026-03-01 | BX11: =DATE(BU10,4,1) -> 2026-04-01 | BY11: =DATE(BU10,5,1) -> 2026-05-01 | BZ11: =DATE(BU10,6,1) -> 2026-06-01 | CA11: =DATE(BU10,7,1) -> 2026-07-01 | CB11: =DATE(BU10,8,1) -> 2026-08-01 | CC11: =DATE(BU10,9,1) -> 2026-09-01 | CD11: =DATE(BU10,10,1) -> 2026-10-01 | CE11: =DATE(BU10,11,1) -> 2026-11-01 | CF11: =DATE(BU10,12,1) -> 2026-12-01 | CG11: =DATE(CG10,1,1) -> 2027-01-01 | CH11: =DATE(CG10,2,1) -> 2027-02-01 | CI11: =DATE(CG10,3,1) -> 2027-03-01 | CJ11: =DATE(CG10,4,1) -> 2027-04-01 | CK11: =DATE(CG10,5,1) -> 2027-05-01 | CL11: =DATE(CG10,6,1) -> 2027-06-01 | CM11: =DATE(CG10,7,1) -> 2027-07-01 | CN11: =DATE(CG10,8,1) -> 2027-08-01 | CO11: =DATE(CG10,9,1) -> 2027-09-01 | CP11: =DATE(CG10,10,1) -> 2027-10-01 | CQ11: =DATE(CG10,11,1) -> 2027-11-01 | CR11: =DATE(CG10,12,1) -> 2027-12-01 | CS11: =DATE(CS10,1,1) -> 2028-01-01 | CT11: =DATE(CS10,2,1) -> 2028-02-01 | CU11: =DATE(CS10,3,1) -> 2028-03-01 | CV11: =DATE(CS10,4,1) -> 2028-04-01 | CW11: =DATE(CS10,5,1) -> 2028-05-01 | CX11: =DATE(CS10,6,1) -> 2028-06-01 | CY11: =DATE(CS10,7,1) -> 2028-07-01 | CZ11: =DATE(CS10,8,1) -> 2028-08-01 | DA11: =DATE(CS10,9,1) -> 2028-09-01 | DB11: =DATE(CS10,10,1) -> 2028-10-01 | DC11: =DATE(CS10,11,1) -> 2028-11-01 | DD11: =DATE(CS10,12,1) -> 2028-12-01 | DE11: =DATE(DE10,1,1) -> 2029-01-01 | DF11: =DATE(DE10,2,1) -> 2029-02-01 | DG11: =DATE(DE10,3,1) -> 2029-03-01 | DH11: =DATE(DE10,4,1) -> 2029-04-01 | DI11: =DATE(DE10,5,1) -> 2029-05-01 | DJ11: =DATE(DE10,6,1) -> 2029-06-01 | DK11: =DATE(DE10,7,1) -> 2029-07-01 | DL11: =DATE(DE10,8,1) -> 2029-08-01 | DM11: =DATE(DE10,9,1) -> 2029-09-01 | DN11: =DATE(DE10,10,1) -> 2029-10-01 | DO11: =DATE(DE10,11,1) -> 2029-11-01 | DP11: =DATE(DE10,12,1) -> 2029-12-01 | DQ11: =DATE(DQ10,1,1) -> 2030-01-01 | DR11: =DATE(DQ10,2,1) -> 2030-02-01 | DS11: =DATE(DQ10,3,1) -> 2030-03-01 | DT11: =DATE(DQ10,4,1) -> 2030-04-01 | DU11: =DATE(DQ10,5,1) -> 2030-05-01 | DV11: =DATE(DQ10,6,1) -> 2030-06-01 | DW11: =DATE(DQ10,7,1) -> 2030-07-01 | DX11: =DATE(DQ10,8,1) -> 2030-08-01 | DY11: =DATE(DQ10,9,1) -> 2030-09-01 | DZ11: =DATE(DQ10,10,1) -> 2030-10-01 | EA11: =DATE(DQ10,11,1) -> 2030-11-01 | EB11: =DATE(DQ10,12,1) -> 2030-12-01 | EC11: =DATE(EC10,1,1) -> 2031-01-01 | ED11: =DATE(EC10,2,1) -> 2031-02-01 | EE11: =DATE(EC10,3,1) -> 2031-03-01 | EF11: =DATE(EC10,4,1) -> 2031-04-01 | EG11: =DATE(EC10,5,1) -> 2031-05-01 | EH11: =DATE(EC10,6,1) -> 2031-06-01 | EI11: =DATE(EC10,7,1) -> 2031-07-01 | EJ11: =DATE(EC10,8,1) -> 2031-08-01 | EK11: =DATE(EC10,9,1) -> 2031-09-01 | EL11: =DATE(EC10,10,1) -> 2031-10-01 | EM11: =DATE(EC10,11,1) -> 2031-11-01 | EN11: =DATE(EC10,12,1) -> 2031-12-01 | EO11: =DATE(EO10,1,1) -> 2032-01-01 | EP11: =DATE(EO10,2,1) -> 2032-02-01 | EQ11: =DATE(EO10,3,1) -> 2032-03-01 | ER11: =DATE(EO10,4,1) -> 2032-04-01 | ES11: =DATE(EO10,5,1) -> 2032-05-01 | ET11: =DATE(EO10,6,1) -> 2032-06-01 | EU11: =DATE(EO10,7,1) -> 2032-07-01 | EV11: =DATE(EO10,8,1) -> 2032-08-01 | EW11: =DATE(EO10,9,1) -> 2032-09-01 | EX11: =DATE(EO10,10,1) -> 2032-10-01 | EY11: =DATE(EO10,11,1) -> 2032-11-01 | EZ11: =DATE(EO10,12,1) -> 2032-12-01 | FA11: =DATE(FA10,1,1) -> 2033-01-01 | FB11: =DATE(FA10,2,1) -> 2033-02-01 | FC11: =DATE(FA10,3,1) -> 2033-03-01 | FD11: =DATE(FA10,4,1) -> 2033-04-01 | FE11: =DATE(FA10,5,1) -> 2033-05-01 | FF11: =DATE(FA10,6,1) -> 2033-06-01 | FG11: =DATE(FA10,7,1) -> 2033-07-01 | FH11: =DATE(FA10,8,1) -> 2033-08-01 | FI11: =DATE(FA10,9,1) -> 2033-09-01 | FJ11: =DATE(FA10,10,1) -> 2033-10-01 | FK11: =DATE(FA10,11,1) -> 2033-11-01 | FL11: =DATE(FA10,12,1) -> 2033-12-01 | FM11: =DATE(FM10,1,1) -> 2034-01-01 | FN11: =DATE(FM10,2,1) -> 2034-02-01 | FO11: =DATE(FM10,3,1) -> 2034-03-01 | FP11: =DATE(FM10,4,1) -> 2034-04-01 | FQ11: =DATE(FM10,5,1) -> 2034-05-01 | FR11: =DATE(FM10,6,1) -> 2034-06-01 | FS11: =DATE(FM10,7,1) -> 2034-07-01 | FT11: =DATE(FM10,8,1) -> 2034-08-01 | FU11: =DATE(FM10,9,1) -> 2034-09-01 | FV11: =DATE(FM10,10,1) -> 2034-10-01 | FW11: =DATE(FM10,11,1) -> 2034-11-01 | FX11: =DATE(FM10,12,1) -> 2034-12-01 | FY11: =DATE(FY10,1,1) -> 2035-01-01 | FZ11: =DATE(FY10,2,1) -> 2035-02-01 | GA11: =DATE(FY10,3,1) -> 2035-03-01 | GB11: =DATE(FY10,4,1) -> 2035-04-01 | GC11: =DATE(FY10,5,1) -> 2035-05-01 | GD11: =DATE(FY10,6,1) -> 2035-06-01 | GE11: =DATE(FY10,7,1) -> 2035-07-01 | GF11: =DATE(FY10,8,1) -> 2035-08-01 | GG11: =DATE(FY10,9,1) -> 2035-09-01 | GH11: =DATE(FY10,10,1) -> 2035-10-01 | GI11: =DATE(FY10,11,1) -> 2035-11-01 | GJ11: =DATE(FY10,12,1) -> 2035-12-01 | GK11: =DATE(GK10,1,1) -> 2036-01-01 | GL11: =DATE(GK10,2,1) -> 2036-02-01 | GM11: =DATE(GK10,3,1) -> 2036-03-01 | GN11: =DATE(GK10,4,1) -> 2036-04-01 | GO11: =DATE(GK10,5,1) -> 2036-05-01 | GP11: =DATE(GK10,6,1) -> 2036-06-01 | GQ11: =DATE(GK10,7,1) -> 2036-07-01 | GR11: =DATE(GK10,8,1) -> 2036-08-01 | GS11: =DATE(GK10,9,1) -> 2036-09-01 | GT11: =DATE(GK10,10,1) -> 2036-10-01 | GU11: =DATE(GK10,11,1) -> 2036-11-01 | GV11: =DATE(GK10,12,1) -> 2036-12-01 | GW11: =DATE(GW10,1,1) -> 2037-01-01 | GX11: =DATE(GW10,2,1) -> 2037-02-01 | GY11: =DATE(GW10,3,1) -> 2037-03-01 | GZ11: =DATE(GW10,4,1) -> 2037-04-01 | HA11: =DATE(GW10,5,1) -> 2037-05-01 | HB11: =DATE(GW10,6,1) -> 2037-06-01 | HC11: =DATE(GW10,7,1) -> 2037-07-01 | HD11: =DATE(GW10,8,1) -> 2037-08-01 | HE11: =DATE(GW10,9,1) -> 2037-09-01 | HF11: =DATE(GW10,10,1) -> 2037-10-01 | HG11: =DATE(GW10,11,1) -> 2037-11-01 | HH11: =DATE(GW10,12,1) -> 2037-12-01 | HI11: =DATE(HI10,1,1) -> 2038-01-01 | HJ11: =DATE(HI10,2,1) -> 2038-02-01 | HK11: =DATE(HI10,3,1) -> 2038-03-01 | HL11: =DATE(HI10,4,1) -> 2038-04-01 | HM11: =DATE(HI10,5,1) -> 2038-05-01 | HN11: =DATE(HI10,6,1) -> 2038-06-01 | HO11: =DATE(HI10,7,1) -> 2038-07-01 | HP11: =DATE(HI10,8,1) -> 2038-08-01 | HQ11: =DATE(HI10,9,1) -> 2038-09-01 | HR11: =DATE(HI10,10,1) -> 2038-10-01 | HS11: =DATE(HI10,11,1) -> 2038-11-01 | HT11: =DATE(HI10,12,1) -> 2038-12-01 | HU11: =DATE(HU10,1,1) -> 2039-01-01 | HV11: =DATE(HU10,2,1) -> 2039-02-01 | HW11: =DATE(HU10,3,1) -> 2039-03-01 | HX11: =DATE(HU10,4,1) -> 2039-04-01 | HY11: =DATE(HU10,5,1) -> 2039-05-01 | HZ11: =DATE(HU10,6,1) -> 2039-06-01 | IA11: =DATE(HU10,7,1) -> 2039-07-01 | IB11: =DATE(HU10,8,1) -> 2039-08-01 | IC11: =DATE(HU10,9,1) -> 2039-09-01 | ID11: =DATE(HU10,10,1) -> 2039-10-01 | IE11: =DATE(HU10,11,1) -> 2039-11-01 | IF11: =DATE(HU10,12,1) -> 2039-12-01 | IG11: =DATE(IG10,1,1) -> 2040-01-01 | IH11: =DATE(IG10,2,1) -> 2040-02-01 | II11: =DATE(IG10,3,1) -> 2040-03-01 | IJ11: =DATE(IG10,4,1) -> 2040-04-01 | IK11: =DATE(IG10,5,1) -> 2040-05-01 | IL11: =DATE(IG10,6,1) -> 2040-06-01 | IM11: =DATE(IG10,7,1) -> 2040-07-01 | IN11: =DATE(IG10,8,1) -> 2040-08-01 | IO11: =DATE(IG10,9,1) -> 2040-09-01 | IP11: =DATE(IG10,10,1) -> 2040-10-01 | IQ11: =DATE(IG10,11,1) -> 2040-11-01 | IR11: =DATE(IG10,12,1) -> 2040-12-01
A12: Předakviziční | I12: =IF(H12="","",DATE(YEAR(J12),MONTH(J12)-H12,DAY(J12))) ->  | J12: =IF(G12="","",DATE(YEAR(F6),MONTH(F6)+G12,DAY(F6))) -> 
A13: Doktríny | J13: =IF(G13="","",DATE(YEAR(F6),MONTH(F6)+G13,DAY(F6))) -> 
B14: Provést analýzu doktríny druhu vojska (služby) a případně navrhnout její změnu. | G14: -40 | J14: =IF(G14="","",DATE(YEAR(F6),MONTH(F6)+G14,DAY(F6))) -> 2020-02-01 | K14: D
A15: Akviziční | J15: =IF(G15="","",DATE(YEAR(F6),MONTH(F6)+G15,DAY(F6))) -> 
A16: Doktríny | J16: =IF(G16="","",DATE(YEAR(F6),MONTH(F6)+G16,DAY(F6))) -> 
B17: Aktualizovat nebo vydat nový předpis pro výcvik s technikou. | G17: 12 | J17: =IF(G17="","",DATE(YEAR(F6),MONTH(F6)+G17,DAY(F6))) -> 2024-06-01 | K17: D
I91: =IF(H91="","",DATE(YEAR($F$6),MONTH($F$6)-H91,DAY($F$6))) ->  | J91: =IF(G91="","",$F$6-G91) -> 

Sheet Grafický plán
B2: Grafické znázornění | IH2: Příloha 1
C3: =IF(C5=Nastavení!$D$2,Nastavení!$E$2,IF(C5=Nastavení!$D$4,Nastavení!$E$4,IF(C5=Nastavení!$D$5,Nastavení!$E$5,IF(C5=Nastavení!$D$6,Nastavení!$E$6,IF(C5=Nastavení!$D$7,Nastavení!$E$7,IF(D5=Nastavení!$D$2,Nastavení!$E$2,IF(D5=Nastavení!$D$4,Nastavení!$E$4,IF(D5=Nastavení!$D$5,Nastavení!$E$5,IF(D5=Nastavení!$D$6,Nastavení!$E$6,IF(D5=Nastavení!$D$7,Nastavení!$E$7,IF(E5=Nastavení!$D$2,Nastavení!$E$2,IF(E5=Nastavení!$D$4,Nastavení!$E$4,IF(E5=Nastavení!$D$5,Nastavení!$E$5,IF(E5=Nastavení!$D$6,Nastavení!$E$6,IF(E5=Nastavení!$D$7,Nastavení!$E$7,""))))))))))))))) ->  | F3: =IF(F5=Nastavení!$D$2,Nastavení!$E$2,IF(F5=Nastavení!$D$4,Nastavení!$E$4,IF(F5=Nastavení!$D$5,Nastavení!$E$5,IF(F5=Nastavení!$D$6,Nastavení!$E$6,IF(F5=Nastavení!$D$7,Nastavení!$E$7,IF(G5=Nastavení!$D$2,Nastavení!$E$2,IF(G5=Nastavení!$D$4,Nastavení!$E$4,IF(G5=Nastavení!$D$5,Nastavení!$E$5,IF(G5=Nastavení!$D$6,Nastavení!$E$6,IF(G5=Nastavení!$D$7,Nastavení!$E$7,IF(H5=Nastavení!$D$2,Nastavení!$E$2,IF(H5=Nastavení!$D$4,Nastavení!$E$4,IF(H5=Nastavení!$D$5,Nastavení!$E$5,IF(H5=Nastavení!$D$6,Nastavení!$E$6,IF(H5=Nastavení!$D$7,Nastavení!$E$7,""))))))))))))))) ->  | I3: =IF(I5=Nastavení!$D$2,Nastavení!$E$2,IF(I5=Nastavení!$D$4,Nastavení!$E$4,IF(I5=Nastavení!$D$5,Nastavení!$E$5,IF(I5=Nastavení!$D$6,Nastavení!$E$6,IF(I5=Nastavení!$D$7,Nastavení!$E$7,IF(J5=Nastavení!$D$2,Nastavení!$E$2,IF(J5=Nastavení!$D$4,Nastavení!$E$4,IF(J5=Nastavení!$D$5,Nastavení!$E$5,IF(J5=Nastavení!$D$6,Nastavení!$E$6,IF(J5=Nastavení!$D$7,Nastavení!$E$7,IF(K5=Nastavení!$D$2,Nastavení!$E$2,IF(K5=Nastavení!$D$4,Nastavení!$E$4,IF(K5=Nastavení!$D$5,Nastavení!$E$5,IF(K5=Nastavení!$D$6,Nastavení!$E$6,IF(K5=Nastavení!$D$7,Nastavení!$E$7,""))))))))))))))) -> specifikace | L3: =IF(L5=Nastavení!$D$2,Nastavení!$E$2,IF(L5=Nastavení!$D$4,Nastavení!$E$4,IF(L5=Nastavení!$D$5,Nastavení!$E$5,IF(L5=Nastavení!$D$6,Nastavení!$E$6,IF(L5=Nastavení!$D$7,Nastavení!$E$7,IF(M5=Nastavení!$D$2,Nastavení!$E$2,IF(M5=Nastavení!$D$4,Nastavení!$E$4,IF(M5=Nastavení!$D$5,Nastavení!$E$5,IF(M5=Nastavení!$D$6,Nastavení!$E$6,IF(M5=Nastavení!$D$7,Nastavení!$E$7,IF(N5=Nastavení!$D$2,Nastavení!$E$2,IF(N5=Nastavení!$D$4,Nastavení!$E$4,IF(N5=Nastavení!$D$5,Nastavení!$E$5,IF(N5=Nastavení!$D$6,Nastavení!$E$6,IF(N5=Nastavení!$D$7,Nastavení!$E$7,""))))))))))))))) ->  | O3: =IF(O5=Nastavení!$D$2,Nastavení!$E$2,IF(O5=Nastavení!$D$4,Nastavení!$E$4,IF(O5=Nastavení!$D$5,Nastavení!$E$5,IF(O5=Nastavení!$D$6,Nastavení!$E$6,IF(O5=Nastavení!$D$7,Nastavení!$E$7,IF(P5=Nastavení!$D$2,Nastavení!$E$2,IF(P5=Nastavení!$D$4,Nastavení!$E$4,IF(P5=Nastavení!$D$5,Nastavení!$E$5,IF(P5=Nastavení!$D$6,Nastavení!$E$6,IF(P5=Nastavení!$D$7,Nastavení!$E$7,IF(Q5=Nastavení!$D$2,Nastavení!$E$2,IF(Q5=Nastavení!$D$4,Nastavení!$E$4,IF(Q5=Nastavení!$D$5,Nastavení!$E$5,IF(Q5=Nastavení!$D$6,Nastavení!$E$6,IF(Q5=Nastavení!$D$7,Nastavení!$E$7,""))))))))))))))) ->  | R3: =IF(R5=Nastavení!$D$2,Nastavení!$E$2,IF(R5=Nastavení!$D$4,Nastavení!$E$4,IF(R5=Nastavení!$D$5,Nastavení!$E$5,IF(R5=Nastavení!$D$6,Nastavení!$E$6,IF(R5=Nastavení!$D$7,Nastavení!$E$7,IF(S5=Nastavení!$D$2,Nastavení!$E$2,IF(S5=Nastavení!$D$4,Nastavení!$E$4,IF(S5=Nastavení!$D$5,Nastavení!$E$5,IF(S5=Nastavení!$D$6,Nastavení!$E$6,IF(S5=Nastavení!$D$7,Nastavení!$E$7,IF(T5=Nastavení!$D$2,Nastavení!$E$2,IF(T5=Nastavení!$D$4,Nastavení!$E$4,IF(T5=Nastavení!$D$5,Nastavení!$E$5,IF(T5=Nastavení!$D$6,Nastavení!$E$6,IF(T5=Nastavení!$D$7,Nastavení!$E$7,""))))))))))))))) ->  | U3: =IF(U5=Nastavení!$D$2,Nastavení!$E$2,IF(U5=Nastavení!$D$4,Nastavení!$E$4,IF(U5=Nastavení!$D$5,Nastavení!$E$5,IF(U5=Nastavení!$D$6,Nastavení!$E$6,IF(U5=Nastavení!$D$7,Nastavení!$E$7,IF(V5=Nastavení!$D$2,Nastavení!$E$2,IF(V5=Nastavení!$D$4,Nastavení!$E$4,IF(V5=Nastavení!$D$5,Nastavení!$E$5,IF(V5=Nastavení!$D$6,Nastavení!$E$6,IF(V5=Nastavení!$D$7,Nastavení!$E$7,IF(W5=Nastavení!$D$2,Nastavení!$E$2,IF(W5=Nastavení!$D$4,Nastavení!$E$4,IF(W5=Nastavení!$D$5,Nastavení!$E$5,IF(W5=Nastavení!$D$6,Nastavení!$E$6,IF(W5=Nastavení!$D$7,Nastavení!$E$7,""))))))))))))))) ->  | X3: =IF(X5=Nastavení!$D$2,Nastavení!$E$2,IF(X5=Nastavení!$D$4,Nastavení!$E$4,IF(X5=Nastavení!$D$5,Nastavení!$E$5,IF(X5=Nastavení!$D$6,Nastavení!$E$6,IF(X5=Nastavení!$D$7,Nastavení!$E$7,IF(Y5=Nastavení!$D$2,Nastavení!$E$2,IF(Y5=Nastavení!$D$4,Nastavení!$E$4,IF(Y5=Nastavení!$D$5,Nastavení!$E$5,IF(Y5=Nastavení!$D$6,Nastavení!$E$6,IF(Y5=Nastavení!$D$7,Nastavení!$E$7,IF(Z5=Nastavení!$D$2,Nastavení!$E$2,IF(Z5=Nastavení!$D$4,Nastavení!$E$4,IF(Z5=Nastavení!$D$5,Nastavení!$E$5,IF(Z5=Nastavení!$D$6,Nastavení!$E$6,IF(Z5=Nastavení!$D$7,Nastavení!$E$7,""))))))))))))))) ->  | AA3: =IF(AA5=Nastavení!$D$2,Nastavení!$E$2,IF(AA5=Nastavení!$D$4,Nastavení!$E$4,IF(AA5=Nastavení!$D$5,Nastavení!$E$5,IF(AA5=Nastavení!$D$6,Nastavení!$E$6,IF(AA5=Nastavení!$D$7,Nastavení!$E$7,IF(AB5=Nastavení!$D$2,Nastavení!$E$2,IF(AB5=Nastavení!$D$4,Nastavení!$E$4,IF(AB5=Nastavení!$D$5,Nastavení!$E$5,IF(AB5=Nastavení!$D$6,Nastavení!$E$6,IF(AB5=Nastavení!$D$7,Nastavení!$E$7,IF(AC5=Nastavení!$D$2,Nastavení!$E$2,IF(AC5=Nastavení!$D$4,Nastavení!$E$4,IF(AC5=Nastavení!$D$5,Nastavení!$E$5,IF(AC5=Nastavení!$D$6,Nastavení!$E$6,IF(AC5=Nastavení!$D$7,Nastavení!$E$7,""))))))))))))))) ->  | AD3: =IF(AD5=Nastavení!$D$2,Nastavení!$E$2,IF(AD5=Nastavení!$D$4,Nastavení!$E$4,IF(AD5=Nastavení!$D$5,Nastavení!$E$5,IF(AD5=Nastavení!$D$6,Nastavení!$E$6,IF(AD5=Nastavení!$D$7,Nastavení!$E$7,IF(AE5=Nastavení!$D$2,Nastavení!$E$2,IF(AE5=Nastavení!$D$4,Nastavení!$E$4,IF(AE5=Nastavení!$D$5,Nastavení!$E$5,IF(AE5=Nastavení!$D$6,Nastavení!$E$6,IF(AE5=Nastavení!$D$7,Nastavení!$E$7,IF(AF5=Nastavení!$D$2,Nastavení!$E$2,IF(AF5=Nastavení!$D$4,Nastavení!$E$4,IF(AF5=Nastavení!$D$5,Nastavení!$E$5,IF(AF5=Nastavení!$D$6,Nastavení!$E$6,IF(AF5=Nastavení!$D$7,Nastavení!$E$7,""))))))))))))))) -> smlouva | AG3: =IF(AG5=Nastavení!$D$2,Nastavení!$E$2,IF(AG5=Nastavení!$D$4,Nastavení!$E$4,IF(AG5=Nastavení!$D$5,Nastavení!$E$5,IF(AG5=Nastavení!$D$6,Nastavení!$E$6,IF(AG5=Nastavení!$D$7,Nastavení!$E$7,IF(AH5=Nastavení!$D$2,Nastavení!$E$2,IF(AH5=Nastavení!$D$4,Nastavení!$E$4,IF(AH5=Nastavení!$D$5,Nastavení!$E$5,IF(AH5=Nastavení!$D$6,Nastavení!$E$6,IF(AH5=Nastavení!$D$7,Nastavení!$E$7,IF(AI5=Nastavení!$D$2,Nastavení!$E$2,IF(AI5=Nastavení!$D$4,Nastavení!$E$4,IF(AI5=Nastavení!$D$5,Nastavení!$E$5,IF(AI5=Nastavení!$D$6,Nastavení!$E$6,IF(AI5=Nastavení!$D$7,Nastavení!$E$7,""))))))))))))))) ->  | AJ3: =IF(AJ5=Nastavení!$D$2,Nastavení!$E$2,IF(AJ5=Nastavení!$D$4,Nastavení!$E$4,IF(AJ5=Nastavení!$D$5,Nastavení!$E$5,IF(AJ5=Nastavení!$D$6,Nastavení!$E$6,IF(AJ5=Nastavení!$D$7,Nastavení!$E$7,IF(AK5=Nastavení!$D$2,Nastavení!$E$2,IF(AK5=Nastavení!$D$4,Nastavení!$E$4,IF(AK5=Nastavení!$D$5,Nastavení!$E$5,IF(AK5=Nastavení!$D$6,Nastavení!$E$6,IF(AK5=Nastavení!$D$7,Nastavení!$E$7,IF(AL5=Nastavení!$D$2,Nastavení!$E$2,IF(AL5=Nastavení!$D$4,Nastavení!$E$4,IF(AL5=Nastavení!$D$5,Nastavení!$E$5,IF(AL5=Nastavení!$D$6,Nastavení!$E$6,IF(AL5=Nastavení!$D$7,Nastavení!$E$7,""))))))))))))))) -> VZ | AM3: =IF(AM5=Nastavení!$D$2,Nastavení!$E$2,IF(AM5=Nastavení!$D$4,Nastavení!$E$4,IF(AM5=Nastavení!$D$5,Nastavení!$E$5,IF(AM5=Nastavení!$D$6,Nastavení!$E$6,IF(AM5=Nastavení!$D$7,Nastavení!$E$7,IF(AN5=Nastavení!$D$2,Nastavení!$E$2,IF(AN5=Nastavení!$D$4,Nastavení!$E$4,IF(AN5=Nastavení!$D$5,Nastavení!$E$5,IF(AN5=Nastavení!$D$6,Nastavení!$E$6,IF(AN5=Nastavení!$D$7,Nastavení!$E$7,IF(AO5=Nastavení!$D$2,Nastavení!$E$2,IF(AO5=Nastavení!$D$4,Nastavení!$E$4,IF(AO5=Nastavení!$D$5,Nastavení!$E$5,IF(AO5=Nastavení!$D$6,Nastavení!$E$6,IF(AO5=Nastavení!$D$7,Nastavení!$E$7,""))))))))))))))) ->  | AP3: =IF(AP5=Nastavení!$D$2,Nastavení!$E$2,IF(AP5=Nastavení!$D$4,Nastavení!$E$4,IF(AP5=Nastavení!$D$5,Nastavení!$E$5,IF(AP5=Nastavení!$D$6,Nastavení!$E$6,IF(AP5=Nastavení!$D$7,Nastavení!$E$7,IF(AQ5=Nastavení!$D$2,Nastavení!$E$2,IF(AQ5=Nastavení!$D$4,Nastavení!$E$4,IF(AQ5=Nastavení!$D$5,Nastavení!$E$5,IF(AQ5=Nastavení!$D$6,Nastavení!$E$6,IF(AQ5=Nastavení!$D$7,Nastavení!$E$7,IF(AR5=Nastavení!$D$2,Nastavení!$E$2,IF(AR5=Nastavení!$D$4,Nastavení!$E$4,IF(AR5=Nastavení!$D$5,Nastavení!$E$5,IF(AR5=Nastavení!$D$6,Nastavení!$E$6,IF(AR5=Nastavení!$D$7,Nastavení!$E$7,""))))))))))))))) -> IOC | AS3: =IF(AS5=Nastavení!$D$2,Nastavení!$E$2,IF(AS5=Nastavení!$D$4,Nastavení!$E$4,IF(AS5=Nastavení!$D$5,Nastavení!$E$5,IF(AS5=Nastavení!$D$6,Nastavení!$E$6,IF(AS5=Nastavení!$D$7,Nastavení!$E$7,IF(AT5=Nastavení!$D$2,Nastavení!$E$2,IF(AT5=Nastavení!$D$4,Nastavení!$E$4,IF(AT5=Nastavení!$D$5,Nastavení!$E$5,IF(AT5=Nastavení!$D$6,Nastavení!$E$6,IF(AT5=Nastavení!$D$7,Nastavení!$E$7,IF(AU5=Nastavení!$D$2,Nastavení!$E$2,IF(AU5=Nastavení!$D$4,Nastavení!$E$4,IF(AU5=Nastavení!$D$5,Nastavení!$E$5,IF(AU5=Nastavení!$D$6,Nastavení!$E$6,IF(AU5=Nastavení!$D$7,Nastavení!$E$7,""))))))))))))))) ->  | AV3: =IF(AV5=Nastavení!$D$2,Nastavení!$E$2,IF(AV5=Nastavení!$D$4,Nastavení!$E$4,IF(AV5=Nastavení!$D$5,Nastavení!$E$5,IF(AV5=Nastavení!$D$6,Nastavení!$E$6,IF(AV5=Nastavení!$D$7,Nastavení!$E$7,IF(AW5=Nastavení!$D$2,Nastavení!$E$2,IF(AW5=Nastavení!$D$4,Nastavení!$E$4,IF(AW5=Nastavení!$D$5,Nastavení!$E$5,IF(AW5=Nastavení!$D$6,Nastavení!$E$6,IF(AW5=Nastavení!$D$7,Nastavení!$E$7,IF(AX5=Nastavení!$D$2,Nastavení!$E$2,IF(AX5=Nastavení!$D$4,Nastavení!$E$4,IF(AX5=Nastavení!$D$5,Nastavení!$E$5,IF(AX5=Nastavení!$D$6,Nastavení!$E$6,IF(AX5=Nastavení!$D$7,Nastavení!$E$7,""))))))))))))))) -> FOC | AY3: =IF(AY5=Nastavení!$D$2,Nastavení!$E$2,IF(AY5=Nastavení!$D$4,Nastavení!$E$4,IF(AY5=Nastavení!$D$5,Nastavení!$E$5,IF(AY5=Nastavení!$D$6,Nastavení!$E$6,IF(AY5=Nastavení!$D$7,Nastavení!$E$7,IF(AZ5=Nastavení!$D$2,Nastavení!$E$2,IF(AZ5=Nastavení!$D$4,Nastavení!$E$4,IF(AZ5=Nastavení!$D$5,Nastavení!$E$5,IF(AZ5=Nastavení!$D$6,Nastavení!$E$6,IF(AZ5=Nastavení!$D$7,Nastavení!$E$7,IF(BA5=Nastavení!$D$2,Nastavení!$E$2,IF(BA5=Nastavení!$D$4,Nastavení!$E$4,IF(BA5=Nastavení!$D$5,Nastavení!$E$5,IF(BA5=Nastavení!$D$6,Nastavení!$E$6,IF(BA5=Nastavení!$D$7,Nastavení!$E$7,""))))))))))))))) ->  | BB3: =IF(BB5=Nastavení!$D$2,Nastavení!$E$2,IF(BB5=Nastavení!$D$4,Nastavení!$E$4,IF(BB5=Nastavení!$D$5,Nastavení!$E$5,IF(BB5=Nastavení!$D$6,Nastavení!$E$6,IF(BB5=Nastavení!$D$7,Nastavení!$E$7,IF(BC5=Nastavení!$D$2,Nastavení!$E$2,IF(BC5=Nastavení!$D$4,Nastavení!$E$4,IF(BC5=Nastavení!$D$5,Nastavení!$E$5,IF(BC5=Nastavení!$D$6,Nastavení!$E$6,IF(BC5=Nastavení!$D$7,Nastavení!$E$7,IF(BD5=Nastavení!$D$2,Nastavení!$E$2,IF(BD5=Nastavení!$D$4,Nastavení!$E$4,IF(BD5=Nastavení!$D$5,Nastavení!$E$5,IF(BD5=Nastavení!$D$6,Nastavení!$E$6,IF(BD5=Nastavení!$D$7,Nastavení!$E$7,""))))))))))))))) ->  | BE3: =IF(BE5=Nastavení!$D$2,Nastavení!$E$2,IF(BE5=Nastavení!$D$4,Nastavení!$E$4,IF(BE5=Nastavení!$D$5,Nastavení!$E$5,IF(BE5=Nastavení!$D$6,Nastavení!$E$6,IF(BE5=Nastavení!$D$7,Nastavení!$E$7,IF(BF5=Nastavení!$D$2,Nastavení!$E$2,IF(BF5=Nastavení!$D$4,Nastavení!$E$4,IF(BF5=Nastavení!$D$5,Nastavení!$E$5,IF(BF5=Nastavení!$D$6,Nastavení!$E$6,IF(BF5=Nastavení!$D$7,Nastavení!$E$7,IF(BG5=Nastavení!$D$2,Nastavení!$E$2,IF(BG5=Nastavení!$D$4,Nastavení!$E$4,IF(BG5=Nastavení!$D$5,Nastavení!$E$5,IF(BG5=Nastavení!$D$6,Nastavení!$E$6,IF(BG5=Nastavení!$D$7,Nastavení!$E$7,""))))))))))))))) ->  | BH3: =IF(BH5=Nastavení!$D$2,Nastavení!$E$2,IF(BH5=Nastavení!$D$4,Nastavení!$E$4,IF(BH5=Nastavení!$D$5,Nastavení!$E$5,IF(BH5=Nastavení!$D$6,Nastavení!$E$6,IF(BH5=Nastavení!$D$7,Nastavení!$E$7,IF(BI5=Nastavení!$D$2,Nastavení!$E$2,IF(BI5=Nastavení!$D$4,Nastavení!$E$4,IF(BI5=Nastavení!$D$5,Nastavení!$E$5,IF(BI5=Nastavení!$D$6,Nastavení!$E$6,IF(BI5=Nastavení!$D$7,Nastavení!$E$7,IF(BJ5=Nastavení!$D$2,Nastavení!$E$2,IF(BJ5=Nastavení!$D$4,Nastavení!$E$4,IF(BJ5=Nastavení!$D$5,Nastavení!$E$5,IF(BJ5=Nastavení!$D$6,Nastavení!$E$6,IF(BJ5=Nastavení!$D$7,Nastavení!$E$7,""))))))))))))))) ->  | BK3: =IF(BK5=Nastavení!$D$2,Nastavení!$E$2,IF(BK5=Nastavení!$D$4,Nastavení!$E$4,IF(BK5=Nastavení!$D$5,Nastavení!$E$5,IF(BK5=Nastavení!$D$6,Nastavení!$E$6,IF(BK5=Nastavení!$D$7,Nastavení!$E$7,IF(BL5=Nastavení!$D$2,Nastavení!$E$2,IF(BL5=Nastavení!$D$4,Nastavení!$E$4,IF(BL5=Nastavení!$D$5,Nastavení!$E$5,IF(BL5=Nastavení!$D$6,Nastavení!$E$6,IF(BL5=Nastavení!$D$7,Nastavení!$E$7,IF(BM5=Nastavení!$D$2,Nastavení!$E$2,IF(BM5=Nastavení!$D$4,Nastavení!$E$4,IF(BM5=Nastavení!$D$5,Nastavení!$E$5,IF(BM5=Nastavení!$D$6,Nastavení!$E$6,IF(BM5=Nastavení!$D$7,Nastavení!$E$7,""))))))))))))))) ->  | BN3: =IF(BN5=Nastavení!$D$2,Nastavení!$E$2,IF(BN5=Nastavení!$D$4,Nastavení!$E$4,IF(BN5=Nastavení!$D$5,Nastavení!$E$5,IF(BN5=Nastavení!$D$6,Nastavení!$E$6,IF(BN5=Nastavení!$D$7,Nastavení!$E$7,IF(BO5=Nastavení!$D$2,Nastavení!$E$2,IF(BO5=Nastavení!$D$4,Nastavení!$E$4,IF(BO5=Nastavení!$D$5,Nastavení!$E$5,IF(BO5=Nastavení!$D$6,Nastavení!$E$6,IF(BO5=Nastavení!$D$7,Nastavení!$E$7,IF(BP5=Nastavení!$D$2,Nastavení!$E$2,IF(BP5=Nastavení!$D$4,Nastavení!$E$4,IF(BP5=Nastavení!$D$5,Nastavení!$E$5,IF(BP5=Nastavení!$D$6,Nastavení!$E$6,IF(BP5=Nastavení!$D$7,Nastavení!$E$7,""))))))))))))))) ->  | BQ3: =IF(BQ5=Nastavení!$D$2,Nastavení!$E$2,IF(BQ5=Nastavení!$D$4,Nastavení!$E$4,IF(BQ5=Nastavení!$D$5,Nastavení!$E$5,IF(BQ5=Nastavení!$D$6,Nastavení!$E$6,IF(BQ5=Nastavení!$D$7,Nastavení!$E$7,IF(BR5=Nastavení!$D$2,Nastavení!$E$2,IF(BR5=Nastavení!$D$4,Nastavení!$E$4,IF(BR5=Nastavení!$D$5,Nastavení!$E$5,IF(BR5=Nastavení!$D$6,Nastavení!$E$6,IF(BR5=Nastavení!$D$7,Nastavení!$E$7,IF(BS5=Nastavení!$D$2,Nastavení!$E$2,IF(BS5=Nastavení!$D$4,Nastavení!$E$4,IF(BS5=Nastavení!$D$5,Nastavení!$E$5,IF(BS5=Nastavení!$D$6,Nastavení!$E$6,IF(BS5=Nastavení!$D$7,Nastavení!$E$7,""))))))))))))))) ->  | BT3: =IF(BT5=Nastavení!$D$2,Nastavení!$E$2,IF(BT5=Nastavení!$D$4,Nastavení!$E$4,IF(BT5=Nastavení!$D$5,Nastavení!$E$5,IF(BT5=Nastavení!$D$6,Nastavení!$E$6,IF(BT5=Nastavení!$D$7,Nastavení!$E$7,IF(BU5=Nastavení!$D$2,Nastavení!$E$2,IF(BU5=Nastavení!$D$4,Nastavení!$E$4,IF(BU5=Nastavení!$D$5,Nastavení!$E$5,IF(BU5=Nastavení!$D$6,Nastavení!$E$6,IF(BU5=Nastavení!$D$7,Nastavení!$E$7,IF(BV5=Nastavení!$D$2,Nastavení!$E$2,IF(BV5=Nastavení!$D$4,Nastavení!$E$4,IF(BV5=Nastavení!$D$5,Nastavení!$E$5,IF(BV5=Nastavení!$D$6,Nastavení!$E$6,IF(BV5=Nastavení!$D$7,Nastavení!$E$7,""))))))))))))))) ->  | BW3: =IF(BW5=Nastavení!$D$2,Nastavení!$E$2,IF(BW5=Nastavení!$D$4,Nastavení!$E$4,IF(BW5=Nastavení!$D$5,Nastavení!$E$5,IF(BW5=Nastavení!$D$6,Nastavení!$E$6,IF(BW5=Nastavení!$D$7,Nastavení!$E$7,IF(BX5=Nastavení!$D$2,Nastavení!$E$2,IF(BX5=Nastavení!$D$4,Nastavení!$E$4,IF(BX5=Nastavení!$D$5,Nastavení!$E$5,IF(BX5=Nastavení!$D$6,Nastavení!$E$6,IF(BX5=Nastavení!$D$7,Nastavení!$E$7,IF(BY5=Nastavení!$D$2,Nastavení!$E$2,IF(BY5=Nastavení!$D$4,Nastavení!$E$4,IF(BY5=Nastavení!$D$5,Nastavení!$E$5,IF(BY5=Nastavení!$D$6,Nastavení!$E$6,IF(BY5=Nastavení!$D$7,Nastavení!$E$7,""))))))))))))))) ->  | BZ3: =IF(BZ5=Nastavení!$D$2,Nastavení!$E$2,IF(BZ5=Nastavení!$D$4,Nastavení!$E$4,IF(BZ5=Nastavení!$D$5,Nastavení!$E$5,IF(BZ5=Nastavení!$D$6,Nastavení!$E$6,IF(BZ5=Nastavení!$D$7,Nastavení!$E$7,IF(CA5=Nastavení!$D$2,Nastavení!$E$2,IF(CA5=Nastavení!$D$4,Nastavení!$E$4,IF(CA5=Nastavení!$D$5,Nastavení!$E$5,IF(CA5=Nastavení!$D$6,Nastavení!$E$6,IF(CA5=Nastavení!$D$7,Nastavení!$E$7,IF(CB5=Nastavení!$D$2,Nastavení!$E$2,IF(CB5=Nastavení!$D$4,Nastavení!$E$4,IF(CB5=Nastavení!$D$5,Nastavení!$E$5,IF(CB5=Nastavení!$D$6,Nastavení!$E$6,IF(CB5=Nastavení!$D$7,Nastavení!$E$7,""))))))))))))))) ->  | CC3: =IF(CC5=Nastavení!$D$2,Nastavení!$E$2,IF(CC5=Nastavení!$D$4,Nastavení!$E$4,IF(CC5=Nastavení!$D$5,Nastavení!$E$5,IF(CC5=Nastavení!$D$6,Nastavení!$E$6,IF(CC5=Nastavení!$D$7,Nastavení!$E$7,IF(CD5=Nastavení!$D$2,Nastavení!$E$2,IF(CD5=Nastavení!$D$4,Nastavení!$E$4,IF(CD5=Nastavení!$D$5,Nastavení!$E$5,IF(CD5=Nastavení!$D$6,Nastavení!$E$6,IF(CD5=Nastavení!$D$7,Nastavení!$E$7,IF(CE5=Nastavení!$D$2,Nastavení!$E$2,IF(CE5=Nastavení!$D$4,Nastavení!$E$4,IF(CE5=Nastavení!$D$5,Nastavení!$E$5,IF(CE5=Nastavení!$D$6,Nastavení!$E$6,IF(CE5=Nastavení!$D$7,Nastavení!$E$7,""))))))))))))))) ->  | CF3: =IF(CF5=Nastavení!$D$2,Nastavení!$E$2,IF(CF5=Nastavení!$D$4,Nastavení!$E$4,IF(CF5=Nastavení!$D$5,Nastavení!$E$5,IF(CF5=Nastavení!$D$6,Nastavení!$E$6,IF(CF5=Nastavení!$D$7,Nastavení!$E$7,IF(CG5=Nastavení!$D$2,Nastavení!$E$2,IF(CG5=Nastavení!$D$4,Nastavení!$E$4,IF(CG5=Nastavení!$D$5,Nastavení!$E$5,IF(CG5=Nastavení!$D$6,Nastavení!$E$6,IF(CG5=Nastavení!$D$7,Nastavení!$E$7,IF(CH5=Nastavení!$D$2,Nastavení!$E$2,IF(CH5=Nastavení!$D$4,Nastavení!$E$4,IF(CH5=Nastavení!$D$5,Nastavení!$E$5,IF(CH5=Nastavení!$D$6,Nastavení!$E$6,IF(CH5=Nastavení!$D$7,Nastavení!$E$7,""))))))))))))))) ->  | CI3: =IF(CI5=Nastavení!$D$2,Nastavení!$E$2,IF(CI5=Nastavení!$D$4,Nastavení!$E$4,IF(CI5=Nastavení!$D$5,Nastavení!$E$5,IF(CI5=Nastavení!$D$6,Nastavení!$E$6,IF(CI5=Nastavení!$D$7,Nastavení!$E$7,IF(CJ5=Nastavení!$D$2,Nastavení!$E$2,IF(CJ5=Nastavení!$D$4,Nastavení!$E$4,IF(CJ5=Nastavení!$D$5,Nastavení!$E$5,IF(CJ5=Nastavení!$D$6,Nastavení!$E$6,IF(CJ5=Nastavení!$D$7,Nastavení!$E$7,IF(CK5=Nastavení!$D$2,Nastavení!$E$2,IF(CK5=Nastavení!$D$4,Nastavení!$E$4,IF(CK5=Nastavení!$D$5,Nastavení!$E$5,IF(CK5=Nastavení!$D$6,Nastavení!$E$6,IF(CK5=Nastavení!$D$7,Nastavení!$E$7,""))))))))))))))) ->  | CL3: =IF(CL5=Nastavení!$D$2,Nastavení!$E$2,IF(CL5=Nastavení!$D$4,Nastavení!$E$4,IF(CL5=Nastavení!$D$5,Nastavení!$E$5,IF(CL5=Nastavení!$D$6,Nastavení!$E$6,IF(CL5=Nastavení!$D$7,Nastavení!$E$7,IF(CM5=Nastavení!$D$2,Nastavení!$E$2,IF(CM5=Nastavení!$D$4,Nastavení!$E$4,IF(CM5=Nastavení!$D$5,Nastavení!$E$5,IF(CM5=Nastavení!$D$6,Nastavení!$E$6,IF(CM5=Nastavení!$D$7,Nastavení!$E$7,IF(CN5=Nastavení!$D$2,Nastavení!$E$2,IF(CN5=Nastavení!$D$4,Nastavení!$E$4,IF(CN5=Nastavení!$D$5,Nastavení!$E$5,IF(CN5=Nastavení!$D$6,Nastavení!$E$6,IF(CN5=Nastavení!$D$7,Nastavení!$E$7,""))))))))))))))) ->  | CO3: =IF(CO5=Nastavení!$D$2,Nastavení!$E$2,IF(CO5=Nastavení!$D$4,Nastavení!$E$4,IF(CO5=Nastavení!$D$5,Nastavení!$E$5,IF(CO5=Nastavení!$D$6,Nastavení!$E$6,IF(CO5=Nastavení!$D$7,Nastavení!$E$7,IF(CP5=Nastavení!$D$2,Nastavení!$E$2,IF(CP5=Nastavení!$D$4,Nastavení!$E$4,IF(CP5=Nastavení!$D$5,Nastavení!$E$5,IF(CP5=Nastavení!$D$6,Nastavení!$E$6,IF(CP5=Nastavení!$D$7,Nastavení!$E$7,IF(CQ5=Nastavení!$D$2,Nastavení!$E$2,IF(CQ5=Nastavení!$D$4,Nastavení!$E$4,IF(CQ5=Nastavení!$D$5,Nastavení!$E$5,IF(CQ5=Nastavení!$D$6,Nastavení!$E$6,IF(CQ5=Nastavení!$D$7,Nastavení!$E$7,""))))))))))))))) ->  | CR3: =IF(CR5=Nastavení!$D$2,Nastavení!$E$2,IF(CR5=Nastavení!$D$4,Nastavení!$E$4,IF(CR5=Nastavení!$D$5,Nastavení!$E$5,IF(CR5=Nastavení!$D$6,Nastavení!$E$6,IF(CR5=Nastavení!$D$7,Nastavení!$E$7,IF(CS5=Nastavení!$D$2,Nastavení!$E$2,IF(CS5=Nastavení!$D$4,Nastavení!$E$4,IF(CS5=Nastavení!$D$5,Nastavení!$E$5,IF(CS5=Nastavení!$D$6,Nastavení!$E$6,IF(CS5=Nastavení!$D$7,Nastavení!$E$7,IF(CT5=Nastavení!$D$2,Nastavení!$E$2,IF(CT5=Nastavení!$D$4,Nastavení!$E$4,IF(CT5=Nastavení!$D$5,Nastavení!$E$5,IF(CT5=Nastavení!$D$6,Nastavení!$E$6,IF(CT5=Nastavení!$D$7,Nastavení!$E$7,""))))))))))))))) ->  | CU3: =IF(CU5=Nastavení!$D$2,Nastavení!$E$2,IF(CU5=Nastavení!$D$4,Nastavení!$E$4,IF(CU5=Nastavení!$D$5,Nastavení!$E$5,IF(CU5=Nastavení!$D$6,Nastavení!$E$6,IF(CU5=Nastavení!$D$7,Nastavení!$E$7,IF(CV5=Nastavení!$D$2,Nastavení!$E$2,IF(CV5=Nastavení!$D$4,Nastavení!$E$4,IF(CV5=Nastavení!$D$5,Nastavení!$E$5,IF(CV5=Nastavení!$D$6,Nastavení!$E$6,IF(CV5=Nastavení!$D$7,Nastavení!$E$7,IF(CW5=Nastavení!$D$2,Nastavení!$E$2,IF(CW5=Nastavení!$D$4,Nastavení!$E$4,IF(CW5=Nastavení!$D$5,Nastavení!$E$5,IF(CW5=Nastavení!$D$6,Nastavení!$E$6,IF(CW5=Nastavení!$D$7,Nastavení!$E$7,""))))))))))))))) ->  | CX3: =IF(CX5=Nastavení!$D$2,Nastavení!$E$2,IF(CX5=Nastavení!$D$4,Nastavení!$E$4,IF(CX5=Nastavení!$D$5,Nastavení!$E$5,IF(CX5=Nastavení!$D$6,Nastavení!$E$6,IF(CX5=Nastavení!$D$7,Nastavení!$E$7,IF(CY5=Nastavení!$D$2,Nastavení!$E$2,IF(CY5=Nastavení!$D$4,Nastavení!$E$4,IF(CY5=Nastavení!$D$5,Nastavení!$E$5,IF(CY5=Nastavení!$D$6,Nastavení!$E$6,IF(CY5=Nastavení!$D$7,Nastavení!$E$7,IF(CZ5=Nastavení!$D$2,Nastavení!$E$2,IF(CZ5=Nastavení!$D$4,Nastavení!$E$4,IF(CZ5=Nastavení!$D$5,Nastavení!$E$5,IF(CZ5=Nastavení!$D$6,Nastavení!$E$6,IF(CZ5=Nastavení!$D$7,Nastavení!$E$7,""))))))))))))))) ->  | DA3: =IF(DA5=Nastavení!$D$2,Nastavení!$E$2,IF(DA5=Nastavení!$D$4,Nastavení!$E$4,IF(DA5=Nastavení!$D$5,Nastavení!$E$5,IF(DA5=Nastavení!$D$6,Nastavení!$E$6,IF(DA5=Nastavení!$D$7,Nastavení!$E$7,IF(DB5=Nastavení!$D$2,Nastavení!$E$2,IF(DB5=Nastavení!$D$4,Nastavení!$E$4,IF(DB5=Nastavení!$D$5,Nastavení!$E$5,IF(DB5=Nastavení!$D$6,Nastavení!$E$6,IF(DB5=Nastavení!$D$7,Nastavení!$E$7,IF(DC5=Nastavení!$D$2,Nastavení!$E$2,IF(DC5=Nastavení!$D$4,Nastavení!$E$4,IF(DC5=Nastavení!$D$5,Nastavení!$E$5,IF(DC5=Nastavení!$D$6,Nastavení!$E$6,IF(DC5=Nastavení!$D$7,Nastavení!$E$7,""))))))))))))))) ->  | DD3: =IF(DD5=Nastavení!$D$2,Nastavení!$E$2,IF(DD5=Nastavení!$D$4,Nastavení!$E$4,IF(DD5=Nastavení!$D$5,Nastavení!$E$5,IF(DD5=Nastavení!$D$6,Nastavení!$E$6,IF(DD5=Nastavení!$D$7,Nastavení!$E$7,IF(DE5=Nastavení!$D$2,Nastavení!$E$2,IF(DE5=Nastavení!$D$4,Nastavení!$E$4,IF(DE5=Nastavení!$D$5,Nastavení!$E$5,IF(DE5=Nastavení!$D$6,Nastavení!$E$6,IF(DE5=Nastavení!$D$7,Nastavení!$E$7,IF(DF5=Nastavení!$D$2,Nastavení!$E$2,IF(DF5=Nastavení!$D$4,Nastavení!$E$4,IF(DF5=Nastavení!$D$5,Nastavení!$E$5,IF(DF5=Nastavení!$D$6,Nastavení!$E$6,IF(DF5=Nastavení!$D$7,Nastavení!$E$7,""))))))))))))))) ->  | DG3: =IF(DG5=Nastavení!$D$2,Nastavení!$E$2,IF(DG5=Nastavení!$D$4,Nastavení!$E$4,IF(DG5=Nastavení!$D$5,Nastavení!$E$5,IF(DG5=Nastavení!$D$6,Nastavení!$E$6,IF(DG5=Nastavení!$D$7,Nastavení!$E$7,IF(DH5=Nastavení!$D$2,Nastavení!$E$2,IF(DH5=Nastavení!$D$4,Nastavení!$E$4,IF(DH5=Nastavení!$D$5,Nastavení!$E$5,IF(DH5=Nastavení!$D$6,Nastavení!$E$6,IF(DH5=Nastavení!$D$7,Nastavení!$E$7,IF(DI5=Nastavení!$D$2,Nastavení!$E$2,IF(DI5=Nastavení!$D$4,Nastavení!$E$4,IF(DI5=Nastavení!$D$5,Nastavení!$E$5,IF(DI5=Nastavení!$D$6,Nastavení!$E$6,IF(DI5=Nastavení!$D$7,Nastavení!$E$7,""))))))))))))))) ->  | DJ3: =IF(DJ5=Nastavení!$D$2,Nastavení!$E$2,IF(DJ5=Nastavení!$D$4,Nastavení!$E$4,IF(DJ5=Nastavení!$D$5,Nastavení!$E$5,IF(DJ5=Nastavení!$D$6,Nastavení!$E$6,IF(DJ5=Nastavení!$D$7,Nastavení!$E$7,IF(DK5=Nastavení!$D$2,Nastavení!$E$2,IF(DK5=Nastavení!$D$4,Nastavení!$E$4,IF(DK5=Nastavení!$D$5,Nastavení!$E$5,IF(DK5=Nastavení!$D$6,Nastavení!$E$6,IF(DK5=Nastavení!$D$7,Nastavení!$E$7,IF(DL5=Nastavení!$D$2,Nastavení!$E$2,IF(DL5=Nastavení!$D$4,Nastavení!$E$4,IF(DL5=Nastavení!$D$5,Nastavení!$E$5,IF(DL5=Nastavení!$D$6,Nastavení!$E$6,IF(DL5=Nastavení!$D$7,Nastavení!$E$7,""))))))))))))))) ->  | DM3: =IF(DM5=Nastavení!$D$2,Nastavení!$E$2,IF(DM5=Nastavení!$D$4,Nastavení!$E$4,IF(DM5=Nastavení!$D$5,Nastavení!$E$5,IF(DM5=Nastavení!$D$6,Nastavení!$E$6,IF(DM5=Nastavení!$D$7,Nastavení!$E$7,IF(DN5=Nastavení!$D$2,Nastavení!$E$2,IF(DN5=Nastavení!$D$4,Nastavení!$E$4,IF(DN5=Nastavení!$D$5,Nastavení!$E$5,IF(DN5=Nastavení!$D$6,Nastavení!$E$6,IF(DN5=Nastavení!$D$7,Nastavení!$E$7,IF(DO5=Nastavení!$D$2,Nastavení!$E$2,IF(DO5=Nastavení!$D$4,Nastavení!$E$4,IF(DO5=Nastavení!$D$5,Nastavení!$E$5,IF(DO5=Nastavení!$D$6,Nastavení!$E$6,IF(DO5=Nastavení!$D$7,Nastavení!$E$7,""))))))))))))))) ->  | DP3: =IF(DP5=Nastavení!$D$2,Nastavení!$E$2,IF(DP5=Nastavení!$D$4,Nastavení!$E$4,IF(DP5=Nastavení!$D$5,Nastavení!$E$5,IF(DP5=Nastavení!$D$6,Nastavení!$E$6,IF(DP5=Nastavení!$D$7,Nastavení!$E$7,IF(DQ5=Nastavení!$D$2,Nastavení!$E$2,IF(DQ5=Nastavení!$D$4,Nastavení!$E$4,IF(DQ5=Nastavení!$D$5,Nastavení!$E$5,IF(DQ5=Nastavení!$D$6,Nastavení!$E$6,IF(DQ5=Nastavení!$D$7,Nastavení!$E$7,IF(DR5=Nastavení!$D$2,Nastavení!$E$2,IF(DR5=Nastavení!$D$4,Nastavení!$E$4,IF(DR5=Nastavení!$D$5,Nastavení!$E$5,IF(DR5=Nastavení!$D$6,Nastavení!$E$6,IF(DR5=Nastavení!$D$7,Nastavení!$E$7,""))))))))))))))) ->  | DS3: =IF(DS5=Nastavení!$D$2,Nastavení!$E$2,IF(DS5=Nastavení!$D$4,Nastavení!$E$4,IF(DS5=Nastavení!$D$5,Nastavení!$E$5,IF(DS5=Nastavení!$D$6,Nastavení!$E$6,IF(DS5=Nastavení!$D$7,Nastavení!$E$7,IF(DT5=Nastavení!$D$2,Nastavení!$E$2,IF(DT5=Nastavení!$D$4,Nastavení!$E$4,IF(DT5=Nastavení!$D$5,Nastavení!$E$5,IF(DT5=Nastavení!$D$6,Nastavení!$E$6,IF(DT5=Nastavení!$D$7,Nastavení!$E$7,IF(DU5=Nastavení!$D$2,Nastavení!$E$2,IF(DU5=Nastavení!$D$4,Nastavení!$E$4,IF(DU5=Nastavení!$D$5,Nastavení!$E$5,IF(DU5=Nastavení!$D$6,Nastavení!$E$6,IF(DU5=Nastavení!$D$7,Nastavení!$E$7,""))))))))))))))) ->  | DV3: =IF(DV5=Nastavení!$D$2,Nastavení!$E$2,IF(DV5=Nastavení!$D$4,Nastavení!$E$4,IF(DV5=Nastavení!$D$5,Nastavení!$E$5,IF(DV5=Nastavení!$D$6,Nastavení!$E$6,IF(DV5=Nastavení!$D$7,Nastavení!$E$7,IF(DW5=Nastavení!$D$2,Nastavení!$E$2,IF(DW5=Nastavení!$D$4,Nastavení!$E$4,IF(DW5=Nastavení!$D$5,Nastavení!$E$5,IF(DW5=Nastavení!$D$6,Nastavení!$E$6,IF(DW5=Nastavení!$D$7,Nastavení!$E$7,IF(DX5=Nastavení!$D$2,Nastavení!$E$2,IF(DX5=Nastavení!$D$4,Nastavení!$E$4,IF(DX5=Nastavení!$D$5,Nastavení!$E$5,IF(DX5=Nastavení!$D$6,Nastavení!$E$6,IF(DX5=Nastavení!$D$7,Nastavení!$E$7,""))))))))))))))) ->  | DY3: =IF(DY5=Nastavení!$D$2,Nastavení!$E$2,IF(DY5=Nastavení!$D$4,Nastavení!$E$4,IF(DY5=Nastavení!$D$5,Nastavení!$E$5,IF(DY5=Nastavení!$D$6,Nastavení!$E$6,IF(DY5=Nastavení!$D$7,Nastavení!$E$7,IF(DZ5=Nastavení!$D$2,Nastavení!$E$2,IF(DZ5=Nastavení!$D$4,Nastavení!$E$4,IF(DZ5=Nastavení!$D$5,Nastavení!$E$5,IF(DZ5=Nastavení!$D$6,Nastavení!$E$6,IF(DZ5=Nastavení!$D$7,Nastavení!$E$7,IF(EA5=Nastavení!$D$2,Nastavení!$E$2,IF(EA5=Nastavení!$D$4,Nastavení!$E$4,IF(EA5=Nastavení!$D$5,Nastavení!$E$5,IF(EA5=Nastavení!$D$6,Nastavení!$E$6,IF(EA5=Nastavení!$D$7,Nastavení!$E$7,""))))))))))))))) ->  | EB3: =IF(EB5=Nastavení!$D$2,Nastavení!$E$2,IF(EB5=Nastavení!$D$4,Nastavení!$E$4,IF(EB5=Nastavení!$D$5,Nastavení!$E$5,IF(EB5=Nastavení!$D$6,Nastavení!$E$6,IF(EB5=Nastavení!$D$7,Nastavení!$E$7,IF(EC5=Nastavení!$D$2,Nastavení!$E$2,IF(EC5=Nastavení!$D$4,Nastavení!$E$4,IF(EC5=Nastavení!$D$5,Nastavení!$E$5,IF(EC5=Nastavení!$D$6,Nastavení!$E$6,IF(EC5=Nastavení!$D$7,Nastavení!$E$7,IF(ED5=Nastavení!$D$2,Nastavení!$E$2,IF(ED5=Nastavení!$D$4,Nastavení!$E$4,IF(ED5=Nastavení!$D$5,Nastavení!$E$5,IF(ED5=Nastavení!$D$6,Nastavení!$E$6,IF(ED5=Nastavení!$D$7,Nastavení!$E$7,""))))))))))))))) ->  | EE3: =IF(EE5=Nastavení!$D$2,Nastavení!$E$2,IF(EE5=Nastavení!$D$4,Nastavení!$E$4,IF(EE5=Nastavení!$D$5,Nastavení!$E$5,IF(EE5=Nastavení!$D$6,Nastavení!$E$6,IF(EE5=Nastavení!$D$7,Nastavení!$E$7,IF(EF5=Nastavení!$D$2,Nastavení!$E$2,IF(EF5=Nastavení!$D$4,Nastavení!$E$4,IF(EF5=Nastavení!$D$5,Nastavení!$E$5,IF(EF5=Nastavení!$D$6,Nastavení!$E$6,IF(EF5=Nastavení!$D$7,Nastavení!$E$7,IF(EG5=Nastavení!$D$2,Nastavení!$E$2,IF(EG5=Nastavení!$D$4,Nastavení!$E$4,IF(EG5=Nastavení!$D$5,Nastavení!$E$5,IF(EG5=Nastavení!$D$6,Nastavení!$E$6,IF(EG5=Nastavení!$D$7,Nastavení!$E$7,""))))))))))))))) ->  | EH3: =IF(EH5=Nastavení!$D$2,Nastavení!$E$2,IF(EH5=Nastavení!$D$4,Nastavení!$E$4,IF(EH5=Nastavení!$D$5,Nastavení!$E$5,IF(EH5=Nastavení!$D$6,Nastavení!$E$6,IF(EH5=Nastavení!$D$7,Nastavení!$E$7,IF(EI5=Nastavení!$D$2,Nastavení!$E$2,IF(EI5=Nastavení!$D$4,Nastavení!$E$4,IF(EI5=Nastavení!$D$5,Nastavení!$E$5,IF(EI5=Nastavení!$D$6,Nastavení!$E$6,IF(EI5=Nastavení!$D$7,Nastavení!$E$7,IF(EJ5=Nastavení!$D$2,Nastavení!$E$2,IF(EJ5=Nastavení!$D$4,Nastavení!$E$4,IF(EJ5=Nastavení!$D$5,Nastavení!$E$5,IF(EJ5=Nastavení!$D$6,Nastavení!$E$6,IF(EJ5=Nastavení!$D$7,Nastavení!$E$7,""))))))))))))))) ->  | EK3: =IF(EK5=Nastavení!$D$2,Nastavení!$E$2,IF(EK5=Nastavení!$D$4,Nastavení!$E$4,IF(EK5=Nastavení!$D$5,Nastavení!$E$5,IF(EK5=Nastavení!$D$6,Nastavení!$E$6,IF(EK5=Nastavení!$D$7,Nastavení!$E$7,IF(EL5=Nastavení!$D$2,Nastavení!$E$2,IF(EL5=Nastavení!$D$4,Nastavení!$E$4,IF(EL5=Nastavení!$D$5,Nastavení!$E$5,IF(EL5=Nastavení!$D$6,Nastavení!$E$6,IF(EL5=Nastavení!$D$7,Nastavení!$E$7,IF(EM5=Nastavení!$D$2,Nastavení!$E$2,IF(EM5=Nastavení!$D$4,Nastavení!$E$4,IF(EM5=Nastavení!$D$5,Nastavení!$E$5,IF(EM5=Nastavení!$D$6,Nastavení!$E$6,IF(EM5=Nastavení!$D$7,Nastavení!$E$7,""))))))))))))))) ->  | EN3: =IF(EN5=Nastavení!$D$2,Nastavení!$E$2,IF(EN5=Nastavení!$D$4,Nastavení!$E$4,IF(EN5=Nastavení!$D$5,Nastavení!$E$5,IF(EN5=Nastavení!$D$6,Nastavení!$E$6,IF(EN5=Nastavení!$D$7,Nastavení!$E$7,IF(EO5=Nastavení!$D$2,Nastavení!$E$2,IF(EO5=Nastavení!$D$4,Nastavení!$E$4,IF(EO5=Nastavení!$D$5,Nastavení!$E$5,IF(EO5=Nastavení!$D$6,Nastavení!$E$6,IF(EO5=Nastavení!$D$7,Nastavení!$E$7,IF(EP5=Nastavení!$D$2,Nastavení!$E$2,IF(EP5=Nastavení!$D$4,Nastavení!$E$4,IF(EP5=Nastavení!$D$5,Nastavení!$E$5,IF(EP5=Nastavení!$D$6,Nastavení!$E$6,IF(EP5=Nastavení!$D$7,Nastavení!$E$7,""))))))))))))))) ->  | EQ3: =IF(EQ5=Nastavení!$D$2,Nastavení!$E$2,IF(EQ5=Nastavení!$D$4,Nastavení!$E$4,IF(EQ5=Nastavení!$D$5,Nastavení!$E$5,IF(EQ5=Nastavení!$D$6,Nastavení!$E$6,IF(EQ5=Nastavení!$D$7,Nastavení!$E$7,IF(ER5=Nastavení!$D$2,Nastavení!$E$2,IF(ER5=Nastavení!$D$4,Nastavení!$E$4,IF(ER5=Nastavení!$D$5,Nastavení!$E$5,IF(ER5=Nastavení!$D$6,Nastavení!$E$6,IF(ER5=Nastavení!$D$7,Nastavení!$E$7,IF(ES5=Nastavení!$D$2,Nastavení!$E$2,IF(ES5=Nastavení!$D$4,Nastavení!$E$4,IF(ES5=Nastavení!$D$5,Nastavení!$E$5,IF(ES5=Nastavení!$D$6,Nastavení!$E$6,IF(ES5=Nastavení!$D$7,Nastavení!$E$7,""))))))))))))))) ->  | ET3: =IF(ET5=Nastavení!$D$2,Nastavení!$E$2,IF(ET5=Nastavení!$D$4,Nastavení!$E$4,IF(ET5=Nastavení!$D$5,Nastavení!$E$5,IF(ET5=Nastavení!$D$6,Nastavení!$E$6,IF(ET5=Nastavení!$D$7,Nastavení!$E$7,IF(EU5=Nastavení!$D$2,Nastavení!$E$2,IF(EU5=Nastavení!$D$4,Nastavení!$E$4,IF(EU5=Nastavení!$D$5,Nastavení!$E$5,IF(EU5=Nastavení!$D$6,Nastavení!$E$6,IF(EU5=Nastavení!$D$7,Nastavení!$E$7,IF(EV5=Nastavení!$D$2,Nastavení!$E$2,IF(EV5=Nastavení!$D$4,Nastavení!$E$4,IF(EV5=Nastavení!$D$5,Nastavení!$E$5,IF(EV5=Nastavení!$D$6,Nastavení!$E$6,IF(EV5=Nastavení!$D$7,Nastavení!$E$7,""))))))))))))))) ->  | EW3: =IF(EW5=Nastavení!$D$2,Nastavení!$E$2,IF(EW5=Nastavení!$D$4,Nastavení!$E$4,IF(EW5=Nastavení!$D$5,Nastavení!$E$5,IF(EW5=Nastavení!$D$6,Nastavení!$E$6,IF(EW5=Nastavení!$D$7,Nastavení!$E$7,IF(EX5=Nastavení!$D$2,Nastavení!$E$2,IF(EX5=Nastavení!$D$4,Nastavení!$E$4,IF(EX5=Nastavení!$D$5,Nastavení!$E$5,IF(EX5=Nastavení!$D$6,Nastavení!$E$6,IF(EX5=Nastavení!$D$7,Nastavení!$E$7,IF(EY5=Nastavení!$D$2,Nastavení!$E$2,IF(EY5=Nastavení!$D$4,Nastavení!$E$4,IF(EY5=Nastavení!$D$5,Nastavení!$E$5,IF(EY5=Nastavení!$D$6,Nastavení!$E$6,IF(EY5=Nastavení!$D$7,Nastavení!$E$7,""))))))))))))))) ->  | EZ3: =IF(EZ5=Nastavení!$D$2,Nastavení!$E$2,IF(EZ5=Nastavení!$D$4,Nastavení!$E$4,IF(EZ5=Nastavení!$D$5,Nastavení!$E$5,IF(EZ5=Nastavení!$D$6,Nastavení!$E$6,IF(EZ5=Nastavení!$D$7,Nastavení!$E$7,IF(FA5=Nastavení!$D$2,Nastavení!$E$2,IF(FA5=Nastavení!$D$4,Nastavení!$E$4,IF(FA5=Nastavení!$D$5,Nastavení!$E$5,IF(FA5=Nastavení!$D$6,Nastavení!$E$6,IF(FA5=Nastavení!$D$7,Nastavení!$E$7,IF(FB5=Nastavení!$D$2,Nastavení!$E$2,IF(FB5=Nastavení!$D$4,Nastavení!$E$4,IF(FB5=Nastavení!$D$5,Nastavení!$E$5,IF(FB5=Nastavení!$D$6,Nastavení!$E$6,IF(FB5=Nastavení!$D$7,Nastavení!$E$7,""))))))))))))))) ->  | FC3: =IF(FC5=Nastavení!$D$2,Nastavení!$E$2,IF(FC5=Nastavení!$D$4,Nastavení!$E$4,IF(FC5=Nastavení!$D$5,Nastavení!$E$5,IF(FC5=Nastavení!$D$6,Nastavení!$E$6,IF(FC5=Nastavení!$D$7,Nastavení!$E$7,IF(FD5=Nastavení!$D$2,Nastavení!$E$2,IF(FD5=Nastavení!$D$4,Nastavení!$E$4,IF(FD5=Nastavení!$D$5,Nastavení!$E$5,IF(FD5=Nastavení!$D$6,Nastavení!$E$6,IF(FD5=Nastavení!$D$7,Nastavení!$E$7,IF(FE5=Nastavení!$D$2,Nastavení!$E$2,IF(FE5=Nastavení!$D$4,Nastavení!$E$4,IF(FE5=Nastavení!$D$5,Nastavení!$E$5,IF(FE5=Nastavení!$D$6,Nastavení!$E$6,IF(FE5=Nastavení!$D$7,Nastavení!$E$7,""))))))))))))))) ->  | FF3: =IF(FF5=Nastavení!$D$2,Nastavení!$E$2,IF(FF5=Nastavení!$D$4,Nastavení!$E$4,IF(FF5=Nastavení!$D$5,Nastavení!$E$5,IF(FF5=Nastavení!$D$6,Nastavení!$E$6,IF(FF5=Nastavení!$D$7,Nastavení!$E$7,IF(FG5=Nastavení!$D$2,Nastavení!$E$2,IF(FG5=Nastavení!$D$4,Nastavení!$E$4,IF(FG5=Nastavení!$D$5,Nastavení!$E$5,IF(FG5=Nastavení!$D$6,Nastavení!$E$6,IF(FG5=Nastavení!$D$7,Nastavení!$E$7,IF(FH5=Nastavení!$D$2,Nastavení!$E$2,IF(FH5=Nastavení!$D$4,Nastavení!$E$4,IF(FH5=Nastavení!$D$5,Nastavení!$E$5,IF(FH5=Nastavení!$D$6,Nastavení!$E$6,IF(FH5=Nastavení!$D$7,Nastavení!$E$7,""))))))))))))))) ->  | FI3: =IF(FI5=Nastavení!$D$2,Nastavení!$E$2,IF(FI5=Nastavení!$D$4,Nastavení!$E$4,IF(FI5=Nastavení!$D$5,Nastavení!$E$5,IF(FI5=Nastavení!$D$6,Nastavení!$E$6,IF(FI5=Nastavení!$D$7,Nastavení!$E$7,IF(FJ5=Nastavení!$D$2,Nastavení!$E$2,IF(FJ5=Nastavení!$D$4,Nastavení!$E$4,IF(FJ5=Nastavení!$D$5,Nastavení!$E$5,IF(FJ5=Nastavení!$D$6,Nastavení!$E$6,IF(FJ5=Nastavení!$D$7,Nastavení!$E$7,IF(FK5=Nastavení!$D$2,Nastavení!$E$2,IF(FK5=Nastavení!$D$4,Nastavení!$E$4,IF(FK5=Nastavení!$D$5,Nastavení!$E$5,IF(FK5=Nastavení!$D$6,Nastavení!$E$6,IF(FK5=Nastavení!$D$7,Nastavení!$E$7,""))))))))))))))) ->  | FL3: =IF(FL5=Nastavení!$D$2,Nastavení!$E$2,IF(FL5=Nastavení!$D$4,Nastavení!$E$4,IF(FL5=Nastavení!$D$5,Nastavení!$E$5,IF(FL5=Nastavení!$D$6,Nastavení!$E$6,IF(FL5=Nastavení!$D$7,Nastavení!$E$7,IF(FM5=Nastavení!$D$2,Nastavení!$E$2,IF(FM5=Nastavení!$D$4,Nastavení!$E$4,IF(FM5=Nastavení!$D$5,Nastavení!$E$5,IF(FM5=Nastavení!$D$6,Nastavení!$E$6,IF(FM5=Nastavení!$D$7,Nastavení!$E$7,IF(FN5=Nastavení!$D$2,Nastavení!$E$2,IF(FN5=Nastavení!$D$4,Nastavení!$E$4,IF(FN5=Nastavení!$D$5,Nastavení!$E$5,IF(FN5=Nastavení!$D$6,Nastavení!$E$6,IF(FN5=Nastavení!$D$7,Nastavení!$E$7,""))))))))))))))) ->  | FO3: =IF(FO5=Nastavení!$D$2,Nastavení!$E$2,IF(FO5=Nastavení!$D$4,Nastavení!$E$4,IF(FO5=Nastavení!$D$5,Nastavení!$E$5,IF(FO5=Nastavení!$D$6,Nastavení!$E$6,IF(FO5=Nastavení!$D$7,Nastavení!$E$7,IF(FP5=Nastavení!$D$2,Nastavení!$E$2,IF(FP5=Nastavení!$D$4,Nastavení!$E$4,IF(FP5=Nastavení!$D$5,Nastavení!$E$5,IF(FP5=Nastavení!$D$6,Nastavení!$E$6,IF(FP5=Nastavení!$D$7,Nastavení!$E$7,IF(FQ5=Nastavení!$D$2,Nastavení!$E$2,IF(FQ5=Nastavení!$D$4,Nastavení!$E$4,IF(FQ5=Nastavení!$D$5,Nastavení!$E$5,IF(FQ5=Nastavení!$D$6,Nastavení!$E$6,IF(FQ5=Nastavení!$D$7,Nastavení!$E$7,""))))))))))))))) ->  | FR3: =IF(FR5=Nastavení!$D$2,Nastavení!$E$2,IF(FR5=Nastavení!$D$4,Nastavení!$E$4,IF(FR5=Nastavení!$D$5,Nastavení!$E$5,IF(FR5=Nastavení!$D$6,Nastavení!$E$6,IF(FR5=Nastavení!$D$7,Nastavení!$E$7,IF(FS5=Nastavení!$D$2,Nastavení!$E$2,IF(FS5=Nastavení!$D$4,Nastavení!$E$4,IF(FS5=Nastavení!$D$5,Nastavení!$E$5,IF(FS5=Nastavení!$D$6,Nastavení!$E$6,IF(FS5=Nastavení!$D$7,Nastavení!$E$7,IF(FT5=Nastavení!$D$2,Nastavení!$E$2,IF(FT5=Nastavení!$D$4,Nastavení!$E$4,IF(FT5=Nastavení!$D$5,Nastavení!$E$5,IF(FT5=Nastavení!$D$6,Nastavení!$E$6,IF(FT5=Nastavení!$D$7,Nastavení!$E$7,""))))))))))))))) ->  | FU3: =IF(FU5=Nastavení!$D$2,Nastavení!$E$2,IF(FU5=Nastavení!$D$4,Nastavení!$E$4,IF(FU5=Nastavení!$D$5,Nastavení!$E$5,IF(FU5=Nastavení!$D$6,Nastavení!$E$6,IF(FU5=Nastavení!$D$7,Nastavení!$E$7,IF(FV5=Nastavení!$D$2,Nastavení!$E$2,IF(FV5=Nastavení!$D$4,Nastavení!$E$4,IF(FV5=Nastavení!$D$5,Nastavení!$E$5,IF(FV5=Nastavení!$D$6,Nastavení!$E$6,IF(FV5=Nastavení!$D$7,Nastavení!$E$7,IF(FW5=Nastavení!$D$2,Nastavení!$E$2,IF(FW5=Nastavení!$D$4,Nastavení!$E$4,IF(FW5=Nastavení!$D$5,Nastavení!$E$5,IF(FW5=Nastavení!$D$6,Nastavení!$E$6,IF(FW5=Nastavení!$D$7,Nastavení!$E$7,""))))))))))))))) ->  | FX3: =IF(FX5=Nastavení!$D$2,Nastavení!$E$2,IF(FX5=Nastavení!$D$4,Nastavení!$E$4,IF(FX5=Nastavení!$D$5,Nastavení!$E$5,IF(FX5=Nastavení!$D$6,Nastavení!$E$6,IF(FX5=Nastavení!$D$7,Nastavení!$E$7,IF(FY5=Nastavení!$D$2,Nastavení!$E$2,IF(FY5=Nastavení!$D$4,Nastavení!$E$4,IF(FY5=Nastavení!$D$5,Nastavení!$E$5,IF(FY5=Nastavení!$D$6,Nastavení!$E$6,IF(FY5=Nastavení!$D$7,Nastavení!$E$7,IF(FZ5=Nastavení!$D$2,Nastavení!$E$2,IF(FZ5=Nastavení!$D$4,Nastavení!$E$4,IF(FZ5=Nastavení!$D$5,Nastavení!$E$5,IF(FZ5=Nastavení!$D$6,Nastavení!$E$6,IF(FZ5=Nastavení!$D$7,Nastavení!$E$7,""))))))))))))))) ->  | GA3: =IF(GA5=Nastavení!$D$2,Nastavení!$E$2,IF(GA5=Nastavení!$D$4,Nastavení!$E$4,IF(GA5=Nastavení!$D$5,Nastavení!$E$5,IF(GA5=Nastavení!$D$6,Nastavení!$E$6,IF(GA5=Nastavení!$D$7,Nastavení!$E$7,IF(GB5=Nastavení!$D$2,Nastavení!$E$2,IF(GB5=Nastavení!$D$4,Nastavení!$E$4,IF(GB5=Nastavení!$D$5,Nastavení!$E$5,IF(GB5=Nastavení!$D$6,Nastavení!$E$6,IF(GB5=Nastavení!$D$7,Nastavení!$E$7,IF(GC5=Nastavení!$D$2,Nastavení!$E$2,IF(GC5=Nastavení!$D$4,Nastavení!$E$4,IF(GC5=Nastavení!$D$5,Nastavení!$E$5,IF(GC5=Nastavení!$D$6,Nastavení!$E$6,IF(GC5=Nastavení!$D$7,Nastavení!$E$7,""))))))))))))))) ->  | GD3: =IF(GD5=Nastavení!$D$2,Nastavení!$E$2,IF(GD5=Nastavení!$D$4,Nastavení!$E$4,IF(GD5=Nastavení!$D$5,Nastavení!$E$5,IF(GD5=Nastavení!$D$6,Nastavení!$E$6,IF(GD5=Nastavení!$D$7,Nastavení!$E$7,IF(GE5=Nastavení!$D$2,Nastavení!$E$2,IF(GE5=Nastavení!$D$4,Nastavení!$E$4,IF(GE5=Nastavení!$D$5,Nastavení!$E$5,IF(GE5=Nastavení!$D$6,Nastavení!$E$6,IF(GE5=Nastavení!$D$7,Nastavení!$E$7,IF(GF5=Nastavení!$D$2,Nastavení!$E$2,IF(GF5=Nastavení!$D$4,Nastavení!$E$4,IF(GF5=Nastavení!$D$5,Nastavení!$E$5,IF(GF5=Nastavení!$D$6,Nastavení!$E$6,IF(GF5=Nastavení!$D$7,Nastavení!$E$7,""))))))))))))))) ->  | GG3: =IF(GG5=Nastavení!$D$2,Nastavení!$E$2,IF(GG5=Nastavení!$D$4,Nastavení!$E$4,IF(GG5=Nastavení!$D$5,Nastavení!$E$5,IF(GG5=Nastavení!$D$6,Nastavení!$E$6,IF(GG5=Nastavení!$D$7,Nastavení!$E$7,IF(GH5=Nastavení!$D$2,Nastavení!$E$2,IF(GH5=Nastavení!$D$4,Nastavení!$E$4,IF(GH5=Nastavení!$D$5,Nastavení!$E$5,IF(GH5=Nastavení!$D$6,Nastavení!$E$6,IF(GH5=Nastavení!$D$7,Nastavení!$E$7,IF(GI5=Nastavení!$D$2,Nastavení!$E$2,IF(GI5=Nastavení!$D$4,Nastavení!$E$4,IF(GI5=Nastavení!$D$5,Nastavení!$E$5,IF(GI5=Nastavení!$D$6,Nastavení!$E$6,IF(GI5=Nastavení!$D$7,Nastavení!$E$7,""))))))))))))))) ->  | GJ3: =IF(GJ5=Nastavení!$D$2,Nastavení!$E$2,IF(GJ5=Nastavení!$D$4,Nastavení!$E$4,IF(GJ5=Nastavení!$D$5,Nastavení!$E$5,IF(GJ5=Nastavení!$D$6,Nastavení!$E$6,IF(GJ5=Nastavení!$D$7,Nastavení!$E$7,IF(GK5=Nastavení!$D$2,Nastavení!$E$2,IF(GK5=Nastavení!$D$4,Nastavení!$E$4,IF(GK5=Nastavení!$D$5,Nastavení!$E$5,IF(GK5=Nastavení!$D$6,Nastavení!$E$6,IF(GK5=Nastavení!$D$7,Nastavení!$E$7,IF(GL5=Nastavení!$D$2,Nastavení!$E$2,IF(GL5=Nastavení!$D$4,Nastavení!$E$4,IF(GL5=Nastavení!$D$5,Nastavení!$E$5,IF(GL5=Nastavení!$D$6,Nastavení!$E$6,IF(GL5=Nastavení!$D$7,Nastavení!$E$7,""))))))))))))))) ->  | GM3: =IF(GM5=Nastavení!$D$2,Nastavení!$E$2,IF(GM5=Nastavení!$D$4,Nastavení!$E$4,IF(GM5=Nastavení!$D$5,Nastavení!$E$5,IF(GM5=Nastavení!$D$6,Nastavení!$E$6,IF(GM5=Nastavení!$D$7,Nastavení!$E$7,IF(GN5=Nastavení!$D$2,Nastavení!$E$2,IF(GN5=Nastavení!$D$4,Nastavení!$E$4,IF(GN5=Nastavení!$D$5,Nastavení!$E$5,IF(GN5=Nastavení!$D$6,Nastavení!$E$6,IF(GN5=Nastavení!$D$7,Nastavení!$E$7,IF(GO5=Nastavení!$D$2,Nastavení!$E$2,IF(GO5=Nastavení!$D$4,Nastavení!$E$4,IF(GO5=Nastavení!$D$5,Nastavení!$E$5,IF(GO5=Nastavení!$D$6,Nastavení!$E$6,IF(GO5=Nastavení!$D$7,Nastavení!$E$7,""))))))))))))))) ->  | GP3: =IF(GP5=Nastavení!$D$2,Nastavení!$E$2,IF(GP5=Nastavení!$D$4,Nastavení!$E$4,IF(GP5=Nastavení!$D$5,Nastavení!$E$5,IF(GP5=Nastavení!$D$6,Nastavení!$E$6,IF(GP5=Nastavení!$D$7,Nastavení!$E$7,IF(GQ5=Nastavení!$D$2,Nastavení!$E$2,IF(GQ5=Nastavení!$D$4,Nastavení!$E$4,IF(GQ5=Nastavení!$D$5,Nastavení!$E$5,IF(GQ5=Nastavení!$D$6,Nastavení!$E$6,IF(GQ5=Nastavení!$D$7,Nastavení!$E$7,IF(GR5=Nastavení!$D$2,Nastavení!$E$2,IF(GR5=Nastavení!$D$4,Nastavení!$E$4,IF(GR5=Nastavení!$D$5,Nastavení!$E$5,IF(GR5=Nastavení!$D$6,Nastavení!$E$6,IF(GR5=Nastavení!$D$7,Nastavení!$E$7,""))))))))))))))) ->  | GS3: =IF(GS5=Nastavení!$D$2,Nastavení!$E$2,IF(GS5=Nastavení!$D$4,Nastavení!$E$4,IF(GS5=Nastavení!$D$5,Nastavení!$E$5,IF(GS5=Nastavení!$D$6,Nastavení!$E$6,IF(GS5=Nastavení!$D$7,Nastavení!$E$7,IF(GT5=Nastavení!$D$2,Nastavení!$E$2,IF(GT5=Nastavení!$D$4,Nastavení!$E$4,IF(GT5=Nastavení!$D$5,Nastavení!$E$5,IF(GT5=Nastavení!$D$6,Nastavení!$E$6,IF(GT5=Nastavení!$D$7,Nastavení!$E$7,IF(GU5=Nastavení!$D$2,Nastavení!$E$2,IF(GU5=Nastavení!$D$4,Nastavení!$E$4,IF(GU5=Nastavení!$D$5,Nastavení!$E$5,IF(GU5=Nastavení!$D$6,Nastavení!$E$6,IF(GU5=Nastavení!$D$7,Nastavení!$E$7,""))))))))))))))) ->  | GV3: =IF(GV5=Nastavení!$D$2,Nastavení!$E$2,IF(GV5=Nastavení!$D$4,Nastavení!$E$4,IF(GV5=Nastavení!$D$5,Nastavení!$E$5,IF(GV5=Nastavení!$D$6,Nastavení!$E$6,IF(GV5=Nastavení!$D$7,Nastavení!$E$7,IF(GW5=Nastavení!$D$2,Nastavení!$E$2,IF(GW5=Nastavení!$D$4,Nastavení!$E$4,IF(GW5=Nastavení!$D$5,Nastavení!$E$5,IF(GW5=Nastavení!$D$6,Nastavení!$E$6,IF(GW5=Nastavení!$D$7,Nastavení!$E$7,IF(GX5=Nastavení!$D$2,Nastavení!$E$2,IF(GX5=Nastavení!$D$4,Nastavení!$E$4,IF(GX5=Nastavení!$D$5,Nastavení!$E$5,IF(GX5=Nastavení!$D$6,Nastavení!$E$6,IF(GX5=Nastavení!$D$7,Nastavení!$E$7,""))))))))))))))) ->  | GY3: =IF(GY5=Nastavení!$D$2,Nastavení!$E$2,IF(GY5=Nastavení!$D$4,Nastavení!$E$4,IF(GY5=Nastavení!$D$5,Nastavení!$E$5,IF(GY5=Nastavení!$D$6,Nastavení!$E$6,IF(GY5=Nastavení!$D$7,Nastavení!$E$7,IF(GZ5=Nastavení!$D$2,Nastavení!$E$2,IF(GZ5=Nastavení!$D$4,Nastavení!$E$4,IF(GZ5=Nastavení!$D$5,Nastavení!$E$5,IF(GZ5=Nastavení!$D$6,Nastavení!$E$6,IF(GZ5=Nastavení!$D$7,Nastavení!$E$7,IF(HA5=Nastavení!$D$2,Nastavení!$E$2,IF(HA5=Nastavení!$D$4,Nastavení!$E$4,IF(HA5=Nastavení!$D$5,Nastavení!$E$5,IF(HA5=Nastavení!$D$6,Nastavení!$E$6,IF(HA5=Nastavení!$D$7,Nastavení!$E$7,""))))))))))))))) ->  | HB3: =IF(HB5=Nastavení!$D$2,Nastavení!$E$2,IF(HB5=Nastavení!$D$4,Nastavení!$E$4,IF(HB5=Nastavení!$D$5,Nastavení!$E$5,IF(HB5=Nastavení!$D$6,Nastavení!$E$6,IF(HB5=Nastavení!$D$7,Nastavení!$E$7,IF(HC5=Nastavení!$D$2,Nastavení!$E$2,IF(HC5=Nastavení!$D$4,Nastavení!$E$4,IF(HC5=Nastavení!$D$5,Nastavení!$E$5,IF(HC5=Nastavení!$D$6,Nastavení!$E$6,IF(HC5=Nastavení!$D$7,Nastavení!$E$7,IF(HD5=Nastavení!$D$2,Nastavení!$E$2,IF(HD5=Nastavení!$D$4,Nastavení!$E$4,IF(HD5=Nastavení!$D$5,Nastavení!$E$5,IF(HD5=Nastavení!$D$6,Nastavení!$E$6,IF(HD5=Nastavení!$D$7,Nastavení!$E$7,""))))))))))))))) ->  | HE3: =IF(HE5=Nastavení!$D$2,Nastavení!$E$2,IF(HE5=Nastavení!$D$4,Nastavení!$E$4,IF(HE5=Nastavení!$D$5,Nastavení!$E$5,IF(HE5=Nastavení!$D$6,Nastavení!$E$6,IF(HE5=Nastavení!$D$7,Nastavení!$E$7,IF(HF5=Nastavení!$D$2,Nastavení!$E$2,IF(HF5=Nastavení!$D$4,Nastavení!$E$4,IF(HF5=Nastavení!$D$5,Nastavení!$E$5,IF(HF5=Nastavení!$D$6,Nastavení!$E$6,IF(HF5=Nastavení!$D$7,Nastavení!$E$7,IF(HG5=Nastavení!$D$2,Nastavení!$E$2,IF(HG5=Nastavení!$D$4,Nastavení!$E$4,IF(HG5=Nastavení!$D$5,Nastavení!$E$5,IF(HG5=Nastavení!$D$6,Nastavení!$E$6,IF(HG5=Nastavení!$D$7,Nastavení!$E$7,""))))))))))))))) ->  | HH3: =IF(HH5=Nastavení!$D$2,Nastavení!$E$2,IF(HH5=Nastavení!$D$4,Nastavení!$E$4,IF(HH5=Nastavení!$D$5,Nastavení!$E$5,IF(HH5=Nastavení!$D$6,Nastavení!$E$6,IF(HH5=Nastavení!$D$7,Nastavení!$E$7,IF(HI5=Nastavení!$D$2,Nastavení!$E$2,IF(HI5=Nastavení!$D$4,Nastavení!$E$4,IF(HI5=Nastavení!$D$5,Nastavení!$E$5,IF(HI5=Nastavení!$D$6,Nastavení!$E$6,IF(HI5=Nastavení!$D$7,Nastavení!$E$7,IF(HJ5=Nastavení!$D$2,Nastavení!$E$2,IF(HJ5=Nastavení!$D$4,Nastavení!$E$4,IF(HJ5=Nastavení!$D$5,Nastavení!$E$5,IF(HJ5=Nastavení!$D$6,Nastavení!$E$6,IF(HJ5=Nastavení!$D$7,Nastavení!$E$7,""))))))))))))))) ->  | HK3: =IF(HK5=Nastavení!$D$2,Nastavení!$E$2,IF(HK5=Nastavení!$D$4,Nastavení!$E$4,IF(HK5=Nastavení!$D$5,Nastavení!$E$5,IF(HK5=Nastavení!$D$6,Nastavení!$E$6,IF(HK5=Nastavení!$D$7,Nastavení!$E$7,IF(HL5=Nastavení!$D$2,Nastavení!$E$2,IF(HL5=Nastavení!$D$4,Nastavení!$E$4,IF(HL5=Nastavení!$D$5,Nastavení!$E$5,IF(HL5=Nastavení!$D$6,Nastavení!$E$6,IF(HL5=Nastavení!$D$7,Nastavení!$E$7,IF(HM5=Nastavení!$D$2,Nastavení!$E$2,IF(HM5=Nastavení!$D$4,Nastavení!$E$4,IF(HM5=Nastavení!$D$5,Nastavení!$E$5,IF(HM5=Nastavení!$D$6,Nastavení!$E$6,IF(HM5=Nastavení!$D$7,Nastavení!$E$7,""))))))))))))))) ->  | HN3: =IF(HN5=Nastavení!$D$2,Nastavení!$E$2,IF(HN5=Nastavení!$D$4,Nastavení!$E$4,IF(HN5=Nastavení!$D$5,Nastavení!$E$5,IF(HN5=Nastavení!$D$6,Nastavení!$E$6,IF(HN5=Nastavení!$D$7,Nastavení!$E$7,IF(HO5=Nastavení!$D$2,Nastavení!$E$2,IF(HO5=Nastavení!$D$4,Nastavení!$E$4,IF(HO5=Nastavení!$D$5,Nastavení!$E$5,IF(HO5=Nastavení!$D$6,Nastavení!$E$6,IF(HO5=Nastavení!$D$7,Nastavení!$E$7,IF(HP5=Nastavení!$D$2,Nastavení!$E$2,IF(HP5=Nastavení!$D$4,Nastavení!$E$4,IF(HP5=Nastavení!$D$5,Nastavení!$E$5,IF(HP5=Nastavení!$D$6,Nastavení!$E$6,IF(HP5=Nastavení!$D$7,Nastavení!$E$7,""))))))))))))))) ->  | HQ3: =IF(HQ5=Nastavení!$D$2,Nastavení!$E$2,IF(HQ5=Nastavení!$D$4,Nastavení!$E$4,IF(HQ5=Nastavení!$D$5,Nastavení!$E$5,IF(HQ5=Nastavení!$D$6,Nastavení!$E$6,IF(HQ5=Nastavení!$D$7,Nastavení!$E$7,IF(HR5=Nastavení!$D$2,Nastavení!$E$2,IF(HR5=Nastavení!$D$4,Nastavení!$E$4,IF(HR5=Nastavení!$D$5,Nastavení!$E$5,IF(HR5=Nastavení!$D$6,Nastavení!$E$6,IF(HR5=Nastavení!$D$7,Nastavení!$E$7,IF(HS5=Nastavení!$D$2,Nastavení!$E$2,IF(HS5=Nastavení!$D$4,Nastavení!$E$4,IF(HS5=Nastavení!$D$5,Nastavení!$E$5,IF(HS5=Nastavení!$D$6,Nastavení!$E$6,IF(HS5=Nastavení!$D$7,Nastavení!$E$7,""))))))))))))))) ->  | HT3: =IF(HT5=Nastavení!$D$2,Nastavení!$E$2,IF(HT5=Nastavení!$D$4,Nastavení!$E$4,IF(HT5=Nastavení!$D$5,Nastavení!$E$5,IF(HT5=Nastavení!$D$6,Nastavení!$E$6,IF(HT5=Nastavení!$D$7,Nastavení!$E$7,IF(HU5=Nastavení!$D$2,Nastavení!$E$2,IF(HU5=Nastavení!$D$4,Nastavení!$E$4,IF(HU5=Nastavení!$D$5,Nastavení!$E$5,IF(HU5=Nastavení!$D$6,Nastavení!$E$6,IF(HU5=Nastavení!$D$7,Nastavení!$E$7,IF(HV5=Nastavení!$D$2,Nastavení!$E$2,IF(HV5=Nastavení!$D$4,Nastavení!$E$4,IF(HV5=Nastavení!$D$5,Nastavení!$E$5,IF(HV5=Nastavení!$D$6,Nastavení!$E$6,IF(HV5=Nastavení!$D$7,Nastavení!$E$7,""))))))))))))))) ->  | HW3: =IF(HW5=Nastavení!$D$2,Nastavení!$E$2,IF(HW5=Nastavení!$D$4,Nastavení!$E$4,IF(HW5=Nastavení!$D$5,Nastavení!$E$5,IF(HW5=Nastavení!$D$6,Nastavení!$E$6,IF(HW5=Nastavení!$D$7,Nastavení!$E$7,IF(HX5=Nastavení!$D$2,Nastavení!$E$2,IF(HX5=Nastavení!$D$4,Nastavení!$E$4,IF(HX5=Nastavení!$D$5,Nastavení!$E$5,IF(HX5=Nastavení!$D$6,Nastavení!$E$6,IF(HX5=Nastavení!$D$7,Nastavení!$E$7,IF(HY5=Nastavení!$D$2,Nastavení!$E$2,IF(HY5=Nastavení!$D$4,Nastavení!$E$4,IF(HY5=Nastavení!$D$5,Nastavení!$E$5,IF(HY5=Nastavení!$D$6,Nastavení!$E$6,IF(HY5=Nastavení!$D$7,Nastavení!$E$7,""))))))))))))))) ->  | HZ3: =IF(HZ5=Nastavení!$D$2,Nastavení!$E$2,IF(HZ5=Nastavení!$D$4,Nastavení!$E$4,IF(HZ5=Nastavení!$D$5,Nastavení!$E$5,IF(HZ5=Nastavení!$D$6,Nastavení!$E$6,IF(HZ5=Nastavení!$D$7,Nastavení!$E$7,IF(IA5=Nastavení!$D$2,Nastavení!$E$2,IF(IA5=Nastavení!$D$4,Nastavení!$E$4,IF(IA5=Nastavení!$D$5,Nastavení!$E$5,IF(IA5=Nastavení!$D$6,Nastavení!$E$6,IF(IA5=Nastavení!$D$7,Nastavení!$E$7,IF(IB5=Nastavení!$D$2,Nastavení!$E$2,IF(IB5=Nastavení!$D$4,Nastavení!$E$4,IF(IB5=Nastavení!$D$5,Nastavení!$E$5,IF(IB5=Nastavení!$D$6,Nastavení!$E$6,IF(IB5=Nastavení!$D$7,Nastavení!$E$7,""))))))))))))))) ->  | IC3: =IF(IC5=Nastavení!$D$2,Nastavení!$E$2,IF(IC5=Nastavení!$D$4,Nastavení!$E$4,IF(IC5=Nastavení!$D$5,Nastavení!$E$5,IF(IC5=Nastavení!$D$6,Nastavení!$E$6,IF(IC5=Nastavení!$D$7,Nastavení!$E$7,IF(ID5=Nastavení!$D$2,Nastavení!$E$2,IF(ID5=Nastavení!$D$4,Nastavení!$E$4,IF(ID5=Nastavení!$D$5,Nastavení!$E$5,IF(ID5=Nastavení!$D$6,Nastavení!$E$6,IF(ID5=Nastavení!$D$7,Nastavení!$E$7,IF(IE5=Nastavení!$D$2,Nastavení!$E$2,IF(IE5=Nastavení!$D$4,Nastavení!$E$4,IF(IE5=Nastavení!$D$5,Nastavení!$E$5,IF(IE5=Nastavení!$D$6,Nastavení!$E$6,IF(IE5=Nastavení!$D$7,Nastavení!$E$7,""))))))))))))))) ->  | IF3: =IF(IF5=Nastavení!$D$2,Nastavení!$E$2,IF(IF5=Nastavení!$D$4,Nastavení!$E$4,IF(IF5=Nastavení!$D$5,Nastavení!$E$5,IF(IF5=Nastavení!$D$6,Nastavení!$E$6,IF(IF5=Nastavení!$D$7,Nastavení!$E$7,IF(IG5=Nastavení!$D$2,Nastavení!$E$2,IF(IG5=Nastavení!$D$4,Nastavení!$E$4,IF(IG5=Nastavení!$D$5,Nastavení!$E$5,IF(IG5=Nastavení!$D$6,Nastavení!$E$6,IF(IG5=Nastavení!$D$7,Nastavení!$E$7,IF(IH5=Nastavení!$D$2,Nastavení!$E$2,IF(IH5=Nastavení!$D$4,Nastavení!$E$4,IF(IH5=Nastavení!$D$5,Nastavení!$E$5,IF(IH5=Nastavení!$D$6,Nastavení!$E$6,IF(IH5=Nastavení!$D$7,Nastavení!$E$7,""))))))))))))))) -> 
C4: =Nastavení!D3-2 -> 2021 | O4: =C4+1 -> 2022 | AA4: =O4+1 -> 2023 | AM4: =AA4+1 -> 2024 | AY4: =AM4+1 -> 2025 | BK4: =AY4+1 -> 2026 | BW4: =BK4+1 -> 2027 | CI4: =BW4+1 -> 2028 | CU4: =CI4+1 -> 2029 | DG4: =CU4+1 -> 2030 | DS4: =DG4+1 -> 2031 | EE4: =DS4+1 -> 2032 | EQ4: =EE4+1 -> 2033 | FC4: =EQ4+1 -> 2034 | FO4: =FC4+1 -> 2035 | GA4: =FO4+1 -> 2036 | GM4: =GA4+1 -> 2037 | GY4: =GM4+1 -> 2038 | HK4: =GY4+1 -> 2039 | HW4: =HK4+1 -> 2040
C5: =DATE(C4,1,1) -> 2021-01-01 | D5: =DATE(C4,2,1) -> 2021-02-01 | E5: =DATE(C4,3,1) -> 2021-03-01 | F5: =DATE(C4,4,1) -> 2021-04-01 | G5: =DATE(C4,5,1) -> 2021-05-01 | H5: =DATE(C4,6,1) -> 2021-06-01 | I5: =DATE(C4,7,1) -> 2021-07-01 | J5: =DATE(C4,8,1) -> 2021-08-01 | K5: =DATE(C4,9,1) -> 2021-09-01 | L5: =DATE(C4,10,1) -> 2021-10-01 | M5: =DATE(C4,11,1) -> 2021-11-01 | N5: =DATE(C4,12,1) -> 2021-12-01 | O5: =DATE(O4,1,1) -> 2022-01-01 | P5: =DATE(O4,2,1) -> 2022-02-01 | Q5: =DATE(O4,3,1) -> 2022-03-01 | R5: =DATE(O4,4,1) -> 2022-04-01 | S5: =DATE(O4,5,1) -> 2022-05-01 | T5: =DATE(O4,6,1) -> 2022-06-01 | U5: =DATE(O4,7,1) -> 2022-07-01 | V5: =DATE(O4,8,1) -> 2022-08-01 | W5: =DATE(O4,9,1) -> 2022-09-01 | X5: =DATE(O4,10,1) -> 2022-10-01 | Y5: =DATE(O4,11,1) -> 2022-11-01 | Z5: =DATE(O4,12,1) -> 2022-12-01 | AA5: =DATE(AA4,1,1) -> 2023-01-01 | AB5: =DATE(AA4,2,1) -> 2023-02-01 | AC5: =DATE(AA4,3,1) -> 2023-03-01 | AD5: =DATE(AA4,4,1) -> 2023-04-01 | AE5: =DATE(AA4,5,1) -> 2023-05-01 | AF5: =DATE(AA4,6,1) -> 2023-06-01 | AG5: =DATE(AA4,7,1) -> 2023-07-01 | AH5: =DATE(AA4,8,1) -> 2023-08-01 | AI5: =DATE(AA4,9,1) -> 2023-09-01 | AJ5: =DATE(AA4,10,1) -> 2023-10-01 | AK5: =DATE(AA4,11,1) -> 2023-11-01 | AL5: =DATE(AA4,12,1) -> 2023-12-01 | AM5: =DATE(AM4,1,1) -> 2024-01-01 | AN5: =DATE(AM4,2,1) -> 2024-02-01 | AO5: =DATE(AM4,3,1) -> 2024-03-01 | AP5: =DATE(AM4,4,1) -> 2024-04-01 | AQ5: =DATE(AM4,5,1) -> 2024-05-01 | AR5: =DATE(AM4,6,1) -> 2024-06-01 | AS5: =DATE(AM4,7,1) -> 2024-07-01 | AT5: =DATE(AM4,8,1) -> 2024-08-01 | AU5: =DATE(AM4,9,1) -> 2024-09-01 | AV5: =DATE(AM4,10,1) -> 2024-10-01 | AW5: =DATE(AM4,11,1) -> 2024-11-01 | AX5: =DATE(AM4,12,1) -> 2024-12-01 | AY5: =DATE(AY4,1,1) -> 2025-01-01 | AZ5: =DATE(AY4,2,1) -> 2025-02-01 | BA5: =DATE(AY4,3,1) -> 2025-03-01 | BB5: =DATE(AY4,4,1) -> 2025-04-01 | BC5: =DATE(AY4,5,1) -> 2025-05-01 | BD5: =DATE(AY4,6,1) -> 2025-06-01 | BE5: =DATE(AY4,7,1) -> 2025-07-01 | BF5: =DATE(AY4,8,1) -> 2025-08-01 | BG5: =DATE(AY4,9,1) -> 2025-09-01 | BH5: =DATE(AY4,10,1) -> 2025-10-01 | BI5: =DATE(AY4,11,1) -> 2025-11-01 | BJ5: =DATE(AY4,12,1) -> 2025-12-01 | BK5: =DATE(BK4,1,1) -> 2026-01-01 | BL5: =DATE(BK4,2,1) -> 2026-02-01 | BM5: =DATE(BK4,3,1) -> 2026-03-01 | BN5: =DATE(BK4,4,1) -> 2026-04-01 | BO5: =DATE(BK4,5,1) -> 2026-05-01 | BP5: =DATE(BK4,6,1) -> 2026-06-01 | BQ5: =DATE(BK4,7,1) -> 2026-07-01 | BR5: =DATE(BK4,8,1) -> 2026-08-01 | BS5: =DATE(BK4,9,1) -> 2026-09-01 | BT5: =DATE(BK4,10,1) -> 2026-10-01 | BU5: =DATE(BK4,11,1) -> 2026-11-01 | BV5: =DATE(BK4,12,1) -> 2026-12-01 | BW5: =DATE(BW4,1,1) -> 2027-01-01 | BX5: =DATE(BW4,2,1) -> 2027-02-01 | BY5: =DATE(BW4,3,1) -> 2027-03-01 | BZ5: =DATE(BW4,4,1) -> 2027-04-01 | CA5: =DATE(BW4,5,1) -> 2027-05-01 | CB5: =DATE(BW4,6,1) -> 2027-06-01 | CC5: =DATE(BW4,7,1) -> 2027-07-01 | CD5: =DATE(BW4,8,1) -> 2027-08-01 | CE5: =DATE(BW4,9,1) -> 2027-09-01 | CF5: =DATE(BW4,10,1) -> 2027-10-01 | CG5: =DATE(BW4,11,1) -> 2027-11-01 | CH5: =DATE(BW4,12,1) -> 2027-12-01 | CI5: =DATE(CI4,1,1) -> 2028-01-01 | CJ5: =DATE(CI4,2,1) -> 2028-02-01 | CK5: =DATE(CI4,3,1) -> 2028-03-01 | CL5: =DATE(CI4,4,1) -> 2028-04-01 | CM5: =DATE(CI4,5,1) -> 2028-05-01 | CN5: =DATE(CI4,6,1) -> 2028-06-01 | CO5: =DATE(CI4,7,1) -> 2028-07-01 | CP5: =DATE(CI4,8,1) -> 2028-08-01 | CQ5: =DATE(CI4,9,1) -> 2028-09-01 | CR5: =DATE(CI4,10,1) -> 2028-10-01 | CS5: =DATE(CI4,11,1) -> 2028-11-01 | CT5: =DATE(CI4,12,1) -> 2028-12-01 | CU5: =DATE(CU4,1,1) -> 2029-01-01 | CV5: =DATE(CU4,2,1) -> 2029-02-01 | CW5: =DATE(CU4,3,1) -> 2029-03-01 | CX5: =DATE(CU4,4,1) -> 2029-04-01 | CY5: =DATE(CU4,5,1) -> 2029-05-01 | CZ5: =DATE(CU4,6,1) -> 2029-06-01 | DA5: =DATE(CU4,7,1) -> 2029-07-01 | DB5: =DATE(CU4,8,1) -> 2029-08-01 | DC5: =DATE(CU4,9,1) -> 2029-09-01 | DD5: =DATE(CU4,10,1) -> 2029-10-01 | DE5: =DATE(CU4,11,1) -> 2029-11-01 | DF5: =DATE(CU4,12,1) -> 2029-12-01 | DG5: =DATE(DG4,1,1) -> 2030-01-01 | DH5: =DATE(DG4,2,1) -> 2030-02-01 | DI5: =DATE(DG4,3,1) -> 2030-03-01 | DJ5: =DATE(DG4,4,1) -> 2030-04-01 | DK5: =DATE(DG4,5,1) -> 2030-05-01 | DL5: =DATE(DG4,6,1) -> 2030-06-01 | DM5: =DATE(DG4,7,1) -> 2030-07-01 | DN5: =DATE(DG4,8,1) -> 2030-08-01 | DO5: =DATE(DG4,9,1) -> 2030-09-01 | DP5: =DATE(DG4,10,1) -> 2030-10-01 | DQ5: =DATE(DG4,11,1) -> 2030-11-01 | DR5: =DATE(DG4,12,1) -> 2030-12-01 | DS5: =DATE(DS4,1,1) -> 2031-01-01 | DT5: =DATE(DS4,2,1) -> 2031-02-01 | DU5: =DATE(DS4,3,1) -> 2031-03-01 | DV5: =DATE(DS4,4,1) -> 2031-04-01 | DW5: =DATE(DS4,5,1) -> 2031-05-01 | DX5: =DATE(DS4,6,1) -> 2031-06-01 | DY5: =DATE(DS4,7,1) -> 2031-07-01 | DZ5: =DATE(DS4,8,1) -> 2031-08-01 | EA5: =DATE(DS4,9,1) -> 2031-09-01 | EB5: =DATE(DS4,10,1) -> 2031-10-01 | EC5: =DATE(DS4,11,1) -> 2031-11-01 | ED5: =DATE(DS4,12,1) -> 2031-12-01 | EE5: =DATE(EE4,1,1) -> 2032-01-01 | EF5: =DATE(EE4,2,1) -> 2032-02-01 | EG5: =DATE(EE4,3,1) -> 2032-03-01 | EH5: =DATE(EE4,4,1) -> 2032-04-01 | EI5: =DATE(EE4,5,1) -> 2032-05-01 | EJ5: =DATE(EE4,6,1) -> 2032-06-01 | EK5: =DATE(EE4,7,1) -> 2032-07-01 | EL5: =DATE(EE4,8,1) -> 2032-08-01 | EM5: =DATE(EE4,9,1) -> 2032-09-01 | EN5: =DATE(EE4,10,1) -> 2032-10-01 | EO5: =DATE(EE4,11,1) -> 2032-11-01 | EP5: =DATE(EE4,12,1) -> 2032-12-01 | EQ5: =DATE(EQ4,1,1) -> 2033-01-01 | ER5: =DATE(EQ4,2,1) -> 2033-02-01 | ES5: =DATE(EQ4,3,1) -> 2033-03-01 | ET5: =DATE(EQ4,4,1) -> 2033-04-01 | EU5: =DATE(EQ4,5,1) -> 2033-05-01 | EV5: =DATE(EQ4,6,1) -> 2033-06-01 | EW5: =DATE(EQ4,7,1) -> 2033-07-01 | EX5: =DATE(EQ4,8,1) -> 2033-08-01 | EY5: =DATE(EQ4,9,1) -> 2033-09-01 | EZ5: =DATE(EQ4,10,1) -> 2033-10-01 | FA5: =DATE(EQ4,11,1) -> 2033-11-01 | FB5: =DATE(EQ4,12,1) -> 2033-12-01 | FC5: =DATE(FC4,1,1) -> 2034-01-01 | FD5: =DATE(FC4,2,1) -> 2034-02-01 | FE5: =DATE(FC4,3,1) -> 2034-03-01 | FF5: =DATE(FC4,4,1) -> 2034-04-01 | FG5: =DATE(FC4,5,1) -> 2034-05-01 | FH5: =DATE(FC4,6,1) -> 2034-06-01 | FI5: =DATE(FC4,7,1) -> 2034-07-01 | FJ5: =DATE(FC4,8,1) -> 2034-08-01 | FK5: =DATE(FC4,9,1) -> 2034-09-01 | FL5: =DATE(FC4,10,1) -> 2034-10-01 | FM5: =DATE(FC4,11,1) -> 2034-11-01 | FN5: =DATE(FC4,12,1) -> 2034-12-01 | FO5: =DATE(FO4,1,1) -> 2035-01-01 | FP5: =DATE(FO4,2,1) -> 2035-02-01 | FQ5: =DATE(FO4,3,1) -> 2035-03-01 | FR5: =DATE(FO4,4,1) -> 2035-04-01 | FS5: =DATE(FO4,5,1) -> 2035-05-01 | FT5: =DATE(FO4,6,1) -> 2035-06-01 | FU5: =DATE(FO4,7,1) -> 2035-07-01 | FV5: =DATE(FO4,8,1) -> 2035-08-01 | FW5: =DATE(FO4,9,1) -> 2035-09-01 | FX5: =DATE(FO4,10,1) -> 2035-10-01 | FY5: =DATE(FO4,11,1) -> 2035-11-01 | FZ5: =DATE(FO4,12,1) -> 2035-12-01 | GA5: =DATE(GA4,1,1) -> 2036-01-01 | GB5: =DATE(GA4,2,1) -> 2036-02-01 | GC5: =DATE(GA4,3,1) -> 2036-03-01 | GD5: =DATE(GA4,4,1) -> 2036-04-01 | GE5: =DATE(GA4,5,1) -> 2036-05-01 | GF5: =DATE(GA4,6,1) -> 2036-06-01 | GG5: =DATE(GA4,7,1) -> 2036-07-01 | GH5: =DATE(GA4,8,1) -> 2036-08-01 | GI5: =DATE(GA4,9,1) -> 2036-09-01 | GJ5: =DATE(GA4,10,1) -> 2036-10-01 | GK5: =DATE(GA4,11,1) -> 2036-11-01 | GL5: =DATE(GA4,12,1) -> 2036-12-01 | GM5: =DATE(GM4,1,1) -> 2037-01-01 | GN5: =DATE(GM4,2,1) -> 2037-02-01 | GO5: =DATE(GM4,3,1) -> 2037-03-01 | GP5: =DATE(GM4,4,1) -> 2037-04-01 | GQ5: =DATE(GM4,5,1) -> 2037-05-01 | GR5: =DATE(GM4,6,1) -> 2037-06-01 | GS5: =DATE(GM4,7,1) -> 2037-07-01 | GT5: =DATE(GM4,8,1) -> 2037-08-01 | GU5: =DATE(GM4,9,1) -> 2037-09-01 | GV5: =DATE(GM4,10,1) -> 2037-10-01 | GW5: =DATE(GM4,11,1) -> 2037-11-01 | GX5: =DATE(GM4,12,1) -> 2037-12-01 | GY5: =DATE(GY4,1,1) -> 2038-01-01 | GZ5: =DATE(GY4,2,1) -> 2038-02-01 | HA5: =DATE(GY4,3,1) -> 2038-03-01 | HB5: =DATE(GY4,4,1) -> 2038-04-01 | HC5: =DATE(GY4,5,1) -> 2038-05-01 | HD5: =DATE(GY4,6,1) -> 2038-06-01 | HE5: =DATE(GY4,7,1) -> 2038-07-01 | HF5: =DATE(GY4,8,1) -> 2038-08-01 | HG5: =DATE(GY4,9,1) -> 2038-09-01 | HH5: =DATE(GY4,10,1) -> 2038-10-01 | HI5: =DATE(GY4,11,1) -> 2038-11-01 | HJ5: =DATE(GY4,12,1) -> 2038-12-01 | HK5: =DATE(HK4,1,1) -> 2039-01-01 | HL5: =DATE(HK4,2,1) -> 2039-02-01 | HM5: =DATE(HK4,3,1) -> 2039-03-01 | HN5: =DATE(HK4,4,1) -> 2039-04-01 | HO5: =DATE(HK4,5,1) -> 2039-05-01 | HP5: =DATE(HK4,6,1) -> 2039-06-01 | HQ5: =DATE(HK4,7,1) -> 2039-07-01 | HR5: =DATE(HK4,8,1) -> 2039-08-01 | HS5: =DATE(HK4,9,1) -> 2039-09-01 | HT5: =DATE(HK4,10,1) -> 2039-10-01 | HU5: =DATE(HK4,11,1) -> 2039-11-01 | HV5: =DATE(HK4,12,1) -> 2039-12-01 | HW5: =DATE(HW4,1,1) -> 2040-01-01 | HX5: =DATE(HW4,2,1) -> 2040-02-01 | HY5: =DATE(HW4,3,1) -> 2040-03-01 | HZ5: =DATE(HW4,4,1) -> 2040-04-01 | IA5: =DATE(HW4,5,1) -> 2040-05-01 | IB5: =DATE(HW4,6,1) -> 2040-06-01 | IC5: =DATE(HW4,7,1) -> 2040-07-01 | ID5: =DATE(HW4,8,1) -> 2040-08-01 | IE5: =DATE(HW4,9,1) -> 2040-09-01 | IF5: =DATE(HW4,10,1) -> 2040-10-01 | IG5: =DATE(HW4,11,1) -> 2040-11-01 | IH5: =DATE(HW4,12,1) -> 2040-12-01

Sheet INA
A1: Značka | B1: Název | C1: Druh
A2: ČOS 051616 | B2: Termionologie pro bezporuchovost a udržovatelnost | C2: ČOS
A3: ČOS 051632 | B3: Průvodní a provozní dokumentace pro vojenskou techniku a materiál | C3: ČOS
A4: ČOS 051633 | B4: Učební pomůcky pro pozemní vojenskou techniku | C4: ČOS
A5: ČOS 051655 | B5: Etapy a procesy životního cyklu systémů NATO | C5: ČOS
A6: ČOS 051659 | B6: Pokyny NATO pro analýzu nákladů životního cyklu | C6: ČOS
A7: ČOS 051662 | B7: Příručka pro postupné plánování vyzbrojování | C7: ČOS
A8: Děl-1-20 | B8: Ohrožené prostory. | C8: P
A9: Log-2-4 | B9: Vojskové opravy pozemní vojenské techniky. | C9: P
A10: MP | B10: Metodické pokyny pro tvorbu SdP | C10: P
A11: N NGŠ | B11: N NGŠ k pplánování a provádění PVPŠ | C11: N NGŠ
A12: NVMO 16/2017 | B12: Rezervy majetku v působnosti MO | C12: NVMO
A13: NVMO 2/2018 | B13: Provozování pozemní vojenské techniky | C13: NVMO
A14: NVMO 38/2014 | B14: Normy vojenského materiálu pro předepisování do tabulek počtů | C14: NVMO
A15: NVMO 41/2010 | B15: Vzdělávací a výcvikové aktivity v rezortu MO | C15: NVMO
A16: NVMO 5/2013 | B16: Výcviková a školící zařízení organizačních celků rezortu MO | C16: NVMO
A17: NVMO 60/2017 | B17: O jednotném postupu při úplatném nybývání majetku, služeb a stavebních prací vv rezoru MO | C17: NVMO
A18: MO 15835/2019-3416 | B18: Odborné pokyny majetkového hospodáře pro provozování pozemní techniky v rezortu MO. | C18: P
A19: RMO | B19: Organizační řád MO vydaný jako služební předpis Státního tajemníka v Ministerstvu obrany | C19: RMO
A20: RMO 1/2017 | B20: O přípravě návrhů, posuzování a schvalování vnitřních předpisů a Věstníku MO | C20: RMO
A21: RMO 14/2013 | B21: Ochrana utajovaných informací v rezortu MO | C21: RMO
A22: RMO 2/2019 | B22: Zásady tvorby systémizovaných míst | C22: RMO
A23: RMO 61/2017 | B23: Koncepční dokumenty MO | C23: RMO
A24: RMO 66/2012 | B24: Plánování činnosti a rozvoje vojsk v rezortu MO | C24: RMO
A25: STANAG AEP | B25: STANAG AEP | C25: ČOS
A26: Pub | B26: Vojenské publikace pro výcvik (obecně) | C26: Pub
A27: Všeob-P-5 | B27: Parky vojenské techniky v působnosti MO a provoz v nich | C27: P
A28: Vševojsk-10-1 | B28: Pravidla vedení provozní dokumentace výzbroje a ostatní techniky | C28: P
A29: Vševojsk-10-6 | B29: Učební a výcviková základna | C29: P
A30: Vševojsk-1-1 | B30: Povinnosti funkcionářů a jednotek pozemního vojska Čs. armády | C30: P
A31: Vševojsk-16-3 | B31: Systemizace technologických zařízení pracovišť, dílen a opraven pro údržbu pozemní vojenské techniky | C31: P
A32: Vševojsk-17-2 | B32: Plánování a hodnocení přípravy vojsk AČR | C32: P
A33: Vševojsk-4-2 | B33: Osnovy střeleb z ručních zbraní a zbraní bojových vozidel | C33: P
A34: Vyhláška 100/2018 Sb. | B34: Vyhláška o technické způsobilosti a pravidelných technických prohlídkách vojenských vozidel | C34: V
A35: Vyhláška 154/2011 Sb. | B35: Vyhláška o vojenské letecké technice | C35: V
A36: Vyhláška 273/1999 Sb. | B36: Vyhláška vojenské technické zařízení | C36: V
A37: Vyhláška 275/1999 Sb. | B37: Vyhláška kategorie vojenských plavidel, technická způsobilost | C37: V
A38: Zákon č. 219/2000 Sb. | B38: Zákon o majetku ČR a jejím vystupovánmím v právních vztazích | C38: Z
A39: Zákon č. 219/1999 Sb. | B39: Zákon o ozbrojených silách ČR | C39: Z
A40: Zákon č. 258/2000 Sb. | B40: Zákon o ochraně veřejného zdraví | C40: Z
A41: Zákon č. 309/2000 Sb. | B41: Zákon o obranné standardizaci, katagolizaci a státního ověřování jakosti … | C41: Z
A42: Zákon č. 309/2006 Sb. | B42: Zákon o zajištění dalších podmínek bezpečnosti a ochrany zdraví při práci | C42: Z
A43: Zákon č. 361/2000 Sb. | B43: Zákon o provozu na pozemních komunikacích | C43: Z
A44: Koncepce | B44: Koncepční materiály | C44: K
A45: Let-1-1 | B45: Předpis pro létání | C45: P
A46: Let-1-4 | B46: Inženýrská letecká služba | C46: P
A47: Let-1-11 | B47: Letecký zkušební provoz | C47: P
A48: RMO 21/2018 | B48: O zajištění kybernetické bezpečnosti v rezortu MO | C48: RMO
A49: NVMO 111/2013 | B49: Kryptografická ochrana utajovaných informací v rezortu MO | C49: NVMO
A50: NVMO 85/2013 | B50: Bezpečnost informačních a komunikačních systémů a elektronických zařízení nakládajících s utajovanými informacemi v rezortu MO | C50: NVMO
A51: NVMO 20/2013 | B51: Bezpečnost informačních a komunikačních systémů a elektronických zařízení, které nakládají s určenými neutajovanými informacemi v rezortu MO | C51: NVMO

Sheet Data_zdroj (hidden)
K1: 1 | L1: 2 | M1: 3 | N1: 4 | O1: 5 | P1: 6 | Q1: 7 | R1: 8 | S1: 9 | T1: 10 | U1: 11 | V1: 12 | W1: 13 | X1: 14 | Y1: 15 | Z1: 16 | AA1: 17 | AB1: 18 | AC1: 19 | AD1: 20 | AE1: 21 | AF1: 22 | AG1: 23 | AH1: 24 | AI1: 25 | AJ1: 26 | AK1: 27 | AL1: 28 | AM1: 29 | AN1: 30 | AO1: 31 | AP1: 32 | AQ1: 33 | AR1: 34 | AS1: 35 | AT1: 36 | AU1: 37 | AV1: 38 | AW1: 39 | AX1: 40 | AY1: 41 | AZ1: 42 | BA1: 43 | BB1: 44 | BC1: 45 | BD1: 46 | BE1: 47 | BF1: 48 | BG1: 49 | BH1: 50 | BI1: 51 | BJ1: 52 | BK1: 53 | BL1: 54 | BM1: 55 | BN1: 56 | BO1: 57 | BP1: 58 | BQ1: 59 | BR1: 60 | BS1: 61 | BT1: 62 | BU1: 63 | BV1: 64 | BW1: 65 | BX1: 66 | BY1: 67 | BZ1: 68 | CA1: 69 | CB1: 70 | CC1: 71 | CD1: 72 | CE1: 73 | CF1: 74 | CG1: 75 | CH1: 76 | CI1: 77 | CJ1: 78 | CK1: 79 | CL1: 80 | CM1: 81 | CN1: 82 | CO1: 83 | CP1: 84 | CQ1: 85 | CR1: 86 | CS1: 87 | CT1: 88 | CU1: 89 | CV1: 90 | CW1: 91 | CX1: 92 | CY1: 93 | CZ1: 94 | DA1: 95 | DB1: 96 | DC1: 97 | DD1: 98 | DE1: 99 | DF1: 100
B2: před akvizicí | C2: akvizice | D2: po akvizici | E2: Oblast | F2: Činnost | G2: Úkol | H2: FO | I2: Legislativa | J2: Do kdy provést | K2: ČOS 051616 Termionologie pro bezporuchovost a udržovatelnost | L2: ČOS 051632 Průvodní a provozní dokumentace pro vojenskou techniku a materiál | M2: ČOS 051633 Učební pomůcky pro pozemní vojenskou techniku | N2: ČOS 051655 Etapy a procesy životního cyklu systémů NATO | O2: ČOS 051659 Pokyny NATO pro analýzu nákladů životního cyklu | P2: ČOS 051662 Příručka pro postupné plánování vyzbrojování | Q2: Děl-1-20 Ohrožené prostory. | R2: Log-2-4 Vojskové opravy pozemní vojenské techniky. | S2: MP Metodické pokyny pro tvorbu SdP | T2: N NGŠ N NGŠ k pplánování a provádění PVPŠ | U2: NVMO 16/2017 Rezervy majetku v působnosti MO | V2: NVMO 2/2018 Provozování pozemní vojenské techniky | W2: NVMO 38/2014 Normy vojenského materiálu pro předepisování do tabulek počtů | X2: NVMO 41/2010 Vzdělávací a výcvikové aktivity v rezortu MO | Y2: NVMO 5/2013 Výcviková a školící zařízení organizačních celků rezortu MO | Z2: NVMO 60/2017 O jednotném postupu při úplatném nybývání majetku, služeb a stavebních prací vv rezoru MO | AA2: MO 15835/2019-3416 Odborné pokyny majetkového hospodáře pro provozování pozemní techniky v rezortu MO. | AB2: RMO Organizační řád MO vydaný jako služební předpis Státního tajemníka v Ministerstvu obrany | AC2: RMO 1/2017 O přípravě návrhů, posuzování a schvalování vnitřních předpisů a Věstníku MO | AD2: RMO 14/2013 Ochrana utajovaných informací v rezortu MO | AE2: RMO 2/2019 Zásady tvorby systémizovaných míst | AF2: RMO 61/2017 Koncepční dokumenty MO | AG2: RMO 66/2012 Plánování činnosti a rozvoje vojsk v rezortu MO | AH2: STANAG AEP STANAG AEP | AI2: Pub Vojenské publikace pro výcvik (obecně) | AJ2: Všeob-P-5 Parky vojenské techniky v působnosti MO a provoz v nich | AK2: Vševojsk-10-1 Pravidla vedení provozní dokumentace výzbroje a ostatní techniky | AL2: Vševojsk-10-6 Učební a výcviková základna | AM2: Vševojsk-1-1 Povinnosti funkcionářů a jednotek pozemního vojska Čs. armády | AN2: Vševojsk-16-3 Systemizace technologických zařízení pracovišť, dílen a opraven pro údržbu pozemní vojenské techniky | AO2: Vševojsk-17-2 Plánování a hodnocení přípravy vojsk AČR | AP2: Vševojsk-4-2 Osnovy střeleb z ručních zbraní a zbraní bojových vozidel | AQ2: Vyhláška 100/2018 Sb. Vyhláška o technické způsobilosti a pravidelných technických prohlídkách vojenských vozidel | AR2: Vyhláška 154/2011 Sb. Vyhláška o vojenské letecké technice | AS2: Vyhláška 273/1999 Sb. Vyhláška vojenské technické zařízení | AT2: Vyhláška 275/1999 Sb. Vyhláška kategorie vojenských plavidel, technická způsobilost | AU2: Zákon č. 219/2000 Sb. Zákon o majetku ČR a jejím vystupovánmím v právních vztazích | AV2: Zákon č. 219/1999 Sb. Zákon o ozbrojených silách ČR | AW2: Zákon č. 258/2000 Sb. Zákon o ochraně veřejného zdraví | AX2: Zákon č. 309/2000 Sb. Zákon o obranné standardizaci, katagolizaci a státního ověřování jakosti … | AY2: Zákon č. 309/2006 Sb. Zákon o zajištění dalších podmínek bezpečnosti a ochrany zdraví při práci | AZ2: Zákon č. 361/2000 Sb. Zákon o provozu na pozemních komunikacích | BA2: Koncepce Koncepční materiály | BB2: Let-1-1 Předpis pro létání | BC2: Let-1-4 Inženýrská letecká služba | BD2: Let-1-11 Letecký zkušební provoz | BE2: RMO 21/2018 O zajištění kybernetické bezpečnosti v rezortu MO | BF2: NVMO 111/2013 Kryptografická ochrana utajovaných informací v rezortu MO | BG2: NVMO 85/2013 Bezpečnost informačních a komunikačních systémů a elektronických zařízení nakládajících s utajovanými informacemi v rezortu MO | BH2: NVMO 20/2013 Bezpečnost informačních a komunikačních systémů a elektronických zařízení, které nakládají s určenými neutajovanými informacemi v rezortu MO
B3: x | E3: Doktríny | F3: Provedení aktualizace Doktrín | G3: Navrhnout systémové a organizační změny tvorby doktrín. | I3: RMO 61/2017 Koncepční dokumenty MO; Koncepce Koncepční materiály | J3: -50 | AF3: x | BA3: x | DG3: 2
B4: x | E4: Doktríny | F4: Provedení aktualizace Doktrín | G4: Provést analýzu doktríny AČR a případně navrhnout její změnu. | I4: RMO 61/2017 Koncepční dokumenty MO; Koncepce Koncepční materiály | J4: -50 | AF4: x | BA4: x | DG4: 2
B5: x | E5: Doktríny | F5: Provedení aktualizace Doktrín | G5: Provést analýzu doktríny druhu vojska (služby) a případně navrhnout její změnu. | I5: RMO 61/2017 Koncepční dokumenty MO; Koncepce Koncepční materiály | J5: -50 | AF5: x | BA5: x | DG5: 2
B6: x | E6: Doktríny | F6: Provedení aktualizace Plánu vydávání (novelizací, revizí) vojenských předpisů a publikací | G6: Aktualizovat Plány tvorby voj. předpisů a publikací, stanovit priority. | I6: RMO 1/2017 O přípravě návrhů, posuzování a schvalování vnitřních předpisů a Věstníku MO | J6: -50 | AC6: x | DG6: 1
C7: x | E7: Doktríny | F7: Provedení aktualizace Plánu vydávání (novelizací, revizí) vojenských předpisů a publikací | G7: Aktualizovat nebo vydat nový předpis "Popis a provoz" | H7: M | I7: ČOS 051632 Průvodní a provozní dokumentace pro vojenskou techniku a materiál; Zákon č. 219/1999 Sb. Zákon o ozbrojených silách ČR | J7: -12 | L7: x | AV7: x | DG7: 2
B8: x | E8: Doktríny | F8: Provedení aktualizace Plánu vydávání (novelizací, revizí) vojenských předpisů a publikací | G8: Zapracovat požadavek na zpracování výcvikové dokumentace do specifikace | H8: T | I8: ČOS 051632 Průvodní a provozní dokumentace pro vojenskou techniku a materiál; Pub Vojenské publikace pro výcvik (obecně); Vševojsk-4-2 Osnovy střeleb z ručních zbraní a zbraní bojových vozidel | J8: -50 | L8: x | AI8: x | AP8: x | DG8: 3
C9: x | E9: Doktríny | F9: Provedení aktualizace Plánu vydávání (novelizací, revizí) vojenských předpisů a publikací | G9: Aktualizovat nebo vydat nový předpis pro výcvik s technikou. | H9: T | I9: ČOS 051633 Učební pomůcky pro pozemní vojenskou techniku; Pub Vojenské publikace pro výcvik (obecně); Vševojsk-4-2 Osnovy střeleb z ručních zbraní a zbraní bojových vozidel; Zákon č. 219/1999 Sb. Zákon o ozbrojených silách ČR | J9: -12 | M9: x | AI9: x | AP9: x | AV9: x | DG9: 4
C10: x | E10: Doktríny | F10: Provedení aktualizace Plánu vydávání (novelizací, revizí) vojenských předpisů a publikací | G10: Aktualizovat nebo vydat nový předpis pro výcvik s využitím STT. | H10: T | I10: Pub Vojenské publikace pro výcvik (obecně); Vševojsk-4-2 Osnovy střeleb z ručních zbraní a zbraní bojových vozidel | J10: -12 | AI10: x | AP10: x | DG10: 2
B11: x | E11: Doktríny | F11: Provedení aktualizace Plánu vydávání (novelizací, revizí) vojenských předpisů a publikací | G11: Zapracovat požadavek na zpracování průvodní a provozní dokumentace dle ČOS 051632 do specifikace. | H11: M | J11: -50 | DG11: 0
C12: x | E12: Doktríny | F12: Provedení aktualizace Plánu vydávání (novelizací, revizí) vojenských předpisů a publikací | G12: Aktualizovat nebo vydat nový předpis pro logistickou podporu (tzv. průvodní dokumentace dle ČOS). | H12: M | I12: ČOS 051632 Průvodní a provozní dokumentace pro vojenskou techniku a materiál; NVMO 2/2018 Provozování pozemní vojenské techniky; MO 15835/2019-3416 Odborné pokyny majetkového hospodáře pro provozování pozemní techniky v rezortu MO.; STANAG AEP STANAG AEP ; Vševojsk-10-1 Pravidla vedení provozní dokumentace výzbroje a ostatní techniky; Vyhláška 100/2018 Sb. Vyhláška o technické způsobilosti a pravidelných technických prohlídkách vojenských vozidel; Vyhláška 154/2011 Sb. Vyhláška o vojenské letecké technice; Vyhláška 273/1999 Sb. Vyhláška vojenské technické zařízení; Vyhláška 275/1999 Sb. Vyhláška kategorie vojenských plavidel, technická způsobilost | J12: -12 | L12: x | V12: x | AA12: x | AH12: x | AK12: x | AQ12: x | AR12: x | AS12: x | AT12: x | DG12: 9
C13: x | E13: Doktríny | F13: Provedení aktualizace Plánu vydávání (novelizací, revizí) vojenských předpisů a publikací | G13: Aktualizovat nebo vydat předpisy KIS. | H13: M | I13: RMO 1/2017 O přípravě návrhů, posuzování a schvalování vnitřních předpisů a Věstníku MO | J13: -12 | AC13: x | DG13: 1
D14: x | E14: Doktríny | F14: Provedení aktualizace Plánu vydávání (novelizací, revizí) vojenských předpisů a publikací | G14: Aktualizovat nebo vydat Stálé operační postupy. | I14: Zákon č. 219/1999 Sb. Zákon o ozbrojených silách ČR; Koncepce Koncepční materiály | J14: 12 | AV14: x | BA14: x | DG14: 2
B15: x | E15: Doktríny | F15: Provedení aktualizace Plánu vydávání (novelizací, revizí) vojenských předpisů a publikací | G15: Definovat požadavky na splnění OUI a následné zapracování do specifikace. | I15: NVMO 60/2017 O jednotném postupu při úplatném nybývání majetku, služeb a stavebních prací vv rezoru MO; RMO 14/2013 Ochrana utajovaných informací v rezortu MO | J15: -50 | Z15: x | AD15: x | DG15: 2
B16: x | E16: Doktríny | F16: Provedení aktualizace Plánu vydávání (novelizací, revizí) vojenských předpisů a publikací | G16: Definovat požadavky na stanovené (vyžadované) certifikace a následné zapracování požadavků do specifikace. | I16: NVMO 60/2017 O jednotném postupu při úplatném nybývání majetku, služeb a stavebních prací vv rezoru MO; Pub Vojenské publikace pro výcvik (obecně); Vyhláška 154/2011 Sb. Vyhláška o vojenské letecké technice; Let-1-1 Předpis pro létání; Let-1-4 Inženýrská letecká služba; Let-1-11 Letecký zkušební provoz; RMO 21/2018 O zajištění kybernetické bezpečnosti v rezortu MO; NVMO 111/2013 Kryptografická ochrana utajovaných informací v rezortu MO; NVMO 85/2013 Bezpečnost informačních a komunikačních systémů a elektronických zařízení nakládajících s utajovanými informacemi v rezortu MO; NVMO 20/2013 Bezpečnost informačních a komunikačních systémů a elektronických zařízení, které nakládají s určenými neutajovanými informacemi v rezortu MO | J16: -50 | Z16: x | AI16: x | AR16: x | BB16: x | BC16: x | BD16: x | BE16: x | BF16: x | BG16: x | BH16: x | DG16: 10
B17: x | E17: Doktríny | F17: Provedení aktualizace Plánu vydávání (novelizací, revizí) vojenských předpisů a publikací | G17: Zapracovat požadavek na stanovení tatkticko-technických parametrů výcvikových prostorů do specifikace. | H17: T | I17: Děl-1-20 Ohrožené prostory.; NVMO 41/2010 Vzdělávací a výcvikové aktivity v rezortu MO; NVMO 5/2013 Výcviková a školící zařízení organizačních celků rezortu MO; NVMO 60/2017 O jednotném postupu při úplatném nybývání majetku, služeb a stavebních prací vv rezoru MO; Vševojsk-10-6 Učební a výcviková základna | J17: -50 | Q17: x | X17: x | Y17: x | Z17: x | AL17: x | DG17: 5
C18: x | E18: Doktríny | F18: Provedení aktualizace Plánu vydávání (novelizací, revizí) vojenských předpisů a publikací | G18: Aktualizovat stanovenou dokumentaci učebně výcvikových zařízení (ohrožené prostory, normy cvičišť,…) | H18: T | I18: Děl-1-20 Ohrožené prostory.; NVMO 41/2010 Vzdělávací a výcvikové aktivity v rezortu MO; NVMO 5/2013 Výcviková a školící zařízení organizačních celků rezortu MO; Vševojsk-10-6 Učební a výcviková základna | J18: -12 | Q18: x | X18: x | Y18: x | AL18: x | DG18: 4
C19: x | E19: Doktríny | F19: Provedení aktualizace Plánu vydávání (novelizací, revizí) vojenských předpisů a publikací | G19: Na základě výběru rozvojového projektu provést analýzu Organizace (jednotky, útvaru, …) a navrhnout její změny. | H19: O | I19: RMO Organizační řád MO vydaný jako služební předpis Státního tajemníka v Ministerstvu obrany | J19: -12 | AB19: x | DG19: 1
C20: x | E20: Doktríny | F20: Provedení aktualizace Plánu vydávání (novelizací, revizí) vojenských předpisů a publikací | G20: Na základě vybrané výzbroje (techniky) provést analýzu funkčních náplní a navrhnout jejich aktualizaci. | H20: O | I20: RMO 1/2017 O přípravě návrhů, posuzování a schvalování vnitřních předpisů a Věstníku MO | J20: -12 | AC20: x | DG20: 1
C21: x | E21: Doktríny | F21: Provedení aktualizace jiných právních předpisů (zákony, vyhlášky, ČSN, ČOS, STANAG,…) | G21: Na základě výsledků technického vývoje provést analýzu Zákona o majetku státu a majetku ozbrojených sil a navrhnout jejich novelizace | H21: M | I21: Zákon č. 219/2000 Sb. Zákon o majetku ČR a jejím vystupovánmím v právních vztazích; Zákon č. 219/1999 Sb. Zákon o ozbrojených silách ČR | J21: -12 | AU21: x | AV21: x | DG21: 2
C22: X | E22: Doktríny | F22: Provedení aktualizace jiných právních předpisů (zákony, vyhlášky, ČSN, ČOS, STANAG,…) | G22: Na základě výsledků technického vývoje provést analýzu Vyhlášek v gesci MO ČR a případně navrhnout jejich novelizaci | H22: M | I22: Vyhláška 100/2018 Sb. Vyhláška o technické způsobilosti a pravidelných technických prohlídkách vojenských vozidel; Vyhláška 154/2011 Sb. Vyhláška o vojenské letecké technice; Vyhláška 273/1999 Sb. Vyhláška vojenské technické zařízení; Vyhláška 275/1999 Sb. Vyhláška kategorie vojenských plavidel, technická způsobilost | J22: -12 | AQ22: x | AR22: x | AS22: x | AT22: x | DG22: 4
C23: X | E23: Doktríny | F23: Provedení aktualizace jiných právních předpisů (zákony, vyhlášky, ČSN, ČOS, STANAG,…) | G23: Na základě výsledků technického vývoje provést analýzu ČOS, STANAG a případně navrhnout jejich novelizaci. | I23: ČOS 051616 Termionologie pro bezporuchovost a udržovatelnost; ČOS 051632 Průvodní a provozní dokumentace pro vojenskou techniku a materiál; ČOS 051633 Učební pomůcky pro pozemní vojenskou techniku; ČOS 051655 Etapy a procesy životního cyklu systémů NATO; ČOS 051659 Pokyny NATO pro analýzu nákladů životního cyklu; ČOS 051662 Příručka pro postupné plánování vyzbrojování; Zákon č. 309/2000 Sb. Zákon o obranné standardizaci, katagolizaci a státního ověřování jakosti … | J23: -12 | K23: x | L23: x | M23: x | N23: x | O23: x | P23: x | AX23: x | DG23: 7
C24: x | E24: Organizace | F24: Organizační změny v závislosti na nově pořizovanou techniku | G24: Na základě výběru rozvojového projektu provést analýzu organizačních struktur základního stupně (družstvo, četa, rota) a případně navrhnout jejich změny. | I24: RMO 2/2019 Zásady tvorby systémizovaných míst | J24: -12 | AE24: x | DG24: 1
C25: x | E25: Organizace | F25: Organizační změny v závislosti na nově pořizovanou techniku | G25: Provést analýzu organizační struktury příslušného útvaru nebo příslušných útvarů AČR a případně navrhnout jeho nebo jejich změny. | I25: RMO 2/2019 Zásady tvorby systémizovaných míst | J25: -12 | AE25: x | DG25: 1
C26: x | E26: Organizace | F26: Organizační změny v závislosti na nově pořizovanou techniku | G26: Provést analýzu organizačních struktur AČR a případně navrhnout jejich změny. | I26: RMO 2/2019 Zásady tvorby systémizovaných míst | J26: -12 | AE26: x | DG26: 1
C27: x | E27: Organizace | F27: Organizační změny v závislosti na nově pořizovanou techniku | G27: Provést analýzu organizačních struktur jednotek pro výcvik a případně navrhnout jejich změny. | I27: NVMO 41/2010 Vzdělávací a výcvikové aktivity v rezortu MO; NVMO 5/2013 Výcviková a školící zařízení organizačních celků rezortu MO; RMO 2/2019 Zásady tvorby systémizovaných míst | J27: -12 | X27: x | Y27: x | AE27: x | DG27: 3
C28: x | E28: Organizace | F28: Organizační změny v závislosti na nově pořizovanou techniku | G28: Provést analýzu organizačních struktur jednotek pro školení SW a případně navrhnout jejich změny. | I28: NVMO 41/2010 Vzdělávací a výcvikové aktivity v rezortu MO; NVMO 5/2013 Výcviková a školící zařízení organizačních celků rezortu MO; RMO 2/2019 Zásady tvorby systémizovaných míst | J28: -12 | X28: x | Y28: x | AE28: x | DG28: 3
C29: x | E29: Organizace | F29: Organizační změny v závislosti na nově pořizovanou techniku | G29: Provést analýzu organizačních struktur jednotek včetně bojového zabezpečení a bojové podpory a případně navrhnout jejich změny. | H29: M | I29: ČOS 051655 Etapy a procesy životního cyklu systémů NATO; ČOS 051662 Příručka pro postupné plánování vyzbrojování; Log-2-4 Vojskové opravy pozemní vojenské techniky.; NVMO 41/2010 Vzdělávací a výcvikové aktivity v rezortu MO; NVMO 5/2013 Výcviková a školící zařízení organizačních celků rezortu MO; RMO 2/2019 Zásady tvorby systémizovaných míst | J29: -12 | N29: x | P29: x | R29: x | X29: x | Y29: x | AE29: x | DG29: 6
C30: x | E30: Organizace | F30: Organizační změny v závislosti na nově pořizovanou techniku | G30: Navrhnout organizační změny za účelem podpory koncepčního rozvoje, výzkumu, vývoje a inovací. | I30: RMO 2/2019 Zásady tvorby systémizovaných míst; Koncepce Koncepční materiály | J30: -12 | AE30: x | BA30: x | DG30: 2
C31: x | E31: Organizace | F31: Organizační změny v závislosti na nově pořizovanou techniku | G31: Realizovat organizační změny vydáním OMDZ. | I31: RMO 2/2019 Zásady tvorby systémizovaných míst; Koncepce Koncepční materiály | J31: -12 | AE31: x | BA31: x | DG31: 2
C32: x | E32: Organizace | F32: Organizační změny v závislosti na nově pořizovanou techniku | G32: Navrhnout a provést aktualizace odpovědností v Organizačním řádu velitelství/jednotek. | H32: D | I32: RMO Organizační řád MO vydaný jako služební předpis Státního tajemníka v Ministerstvu obrany | J32: -12 | AB32: x | DG32: 1
B33: x | E33: Výcvik | F33: Modernizace nebo výstavba učební a výcvikové základny | G33: Plánovat údržbu a rozvoj posádkového cvičiště a následné zapracování do projektové dokumentace (specifikace). | I33: MP Metodické pokyny pro tvorbu SdP; RMO 66/2012 Plánování činnosti a rozvoje vojsk v rezortu MO; Vševojsk-17-2 Plánování a hodnocení přípravy vojsk AČR | J33: -30 | S33: x | AG33: x | AO33: x | DG33: 3
B34: x | E34: Výcvik | F34: Modernizace nebo výstavba učební a výcvikové základny | G34: Plánovat údržbu a rozvoj VA-VeV a následné zapracování do projektové dokumentace (specifikace). | I34: MP Metodické pokyny pro tvorbu SdP; RMO 66/2012 Plánování činnosti a rozvoje vojsk v rezortu MO; Vševojsk-17-2 Plánování a hodnocení přípravy vojsk AČR | J34: -30 | S34: x | AG34: x | AO34: x | DG34: 3
B35: x | E35: Výcvik | F35: Modernizace nebo výstavba učební a výcvikové základny | G35: Plánovat údržbu a rozvoj SOVZ a následné zapracování do projektové dokumentace (specifikace). | I35: MP Metodické pokyny pro tvorbu SdP; NVMO 41/2010 Vzdělávací a výcvikové aktivity v rezortu MO; NVMO 5/2013 Výcviková a školící zařízení organizačních celků rezortu MO; RMO 66/2012 Plánování činnosti a rozvoje vojsk v rezortu MO; Vševojsk-17-2 Plánování a hodnocení přípravy vojsk AČR | J35: -30 | S35: x | X35: x | Y35: x | AG35: x | AO35: x | DG35: 5
B36: x | E36: Výcvik | F36: Modernizace nebo výstavba učební a výcvikové základny | G36: Plánovat údržbu a rozvoj školících zařízení KIS - školení SW a následné zapracování do projektové dokumentace (specifikace). | I36: MP Metodické pokyny pro tvorbu SdP; NVMO 41/2010 Vzdělávací a výcvikové aktivity v rezortu MO; NVMO 5/2013 Výcviková a školící zařízení organizačních celků rezortu MO; NVMO 60/2017 O jednotném postupu při úplatném nybývání majetku, služeb a stavebních prací vv rezoru MO; RMO 66/2012 Plánování činnosti a rozvoje vojsk v rezortu MO; Vševojsk-17-2 Plánování a hodnocení přípravy vojsk AČR | J36: -30 | S36: x | X36: x | Y36: x | Z36: x | AG36: x | AO36: x | DG36: 6
B37: x | E37: Výcvik | F37: Modernizace nebo výstavba učební a výcvikové základny | G37: Plánovat údržbu a rozvoj CSTT a následné zapracování do projektové dokumentace (specifikace). | I37: MP Metodické pokyny pro tvorbu SdP; NVMO 41/2010 Vzdělávací a výcvikové aktivity v rezortu MO; NVMO 5/2013 Výcviková a školící zařízení organizačních celků rezortu MO; NVMO 60/2017 O jednotném postupu při úplatném nybývání majetku, služeb a stavebních prací vv rezoru MO; RMO 66/2012 Plánování činnosti a rozvoje vojsk v rezortu MO; Vševojsk-17-2 Plánování a hodnocení přípravy vojsk AČR | J37: -30 | S37: x | X37: x | Y37: x | Z37: x | AG37: x | AO37: x | DG37: 6
B38: x | E38: Výcvik | F38: Dokumentace výcviku | G38: Aktualizovat nebo vydat novou dokumentaci pro školení řidičů, osádek, technického personálu. | I38: ČOS 051633 Učební pomůcky pro pozemní vojenskou techniku; MP Metodické pokyny pro tvorbu SdP; NVMO 2/2018 Provozování pozemní vojenské techniky; NVMO 41/2010 Vzdělávací a výcvikové aktivity v rezortu MO; RMO 1/2017 O přípravě návrhů, posuzování a schvalování vnitřních předpisů a Věstníku MO; RMO 66/2012 Plánování činnosti a rozvoje vojsk v rezortu MO; Zákon č. 258/2000 Sb. Zákon o ochraně veřejného zdraví; Zákon č. 309/2000 Sb. Zákon o obranné standardizaci, katagolizaci a státního ověřování jakosti …; Zákon č. 309/2006 Sb. Zákon o zajištění dalších podmínek bezpečnosti a ochrany zdraví při práci; Zákon č. 361/2000 Sb. Zákon o provozu na pozemních komunikacích | J38: -30 | M38: x | S38: x | V38: x | X38: x | AC38: x | AG38: x | AW38: x | AX38: x | AY38: x | AZ38: x | DG38: 10
B39: x | E39: Výcvik | F39: Úvodní školení s dodávkou prvního kusu | G39: Zapracovat požadavek na školení instruktorů výcviku osádek a technického personálu do specifikace. | I39: ČOS 051633 Učební pomůcky pro pozemní vojenskou techniku; NVMO 2/2018 Provozování pozemní vojenské techniky; NVMO 41/2010 Vzdělávací a výcvikové aktivity v rezortu MO; RMO 1/2017 O přípravě návrhů, posuzování a schvalování vnitřních předpisů a Věstníku MO; RMO 66/2012 Plánování činnosti a rozvoje vojsk v rezortu MO; Zákon č. 258/2000 Sb. Zákon o ochraně veřejného zdraví; Zákon č. 309/2000 Sb. Zákon o obranné standardizaci, katagolizaci a státního ověřování jakosti …; Zákon č. 309/2006 Sb. Zákon o zajištění dalších podmínek bezpečnosti a ochrany zdraví při práci | J39: -30 | M39: x | V39: x | X39: x | AC39: x | AG39: x | AW39: x | AX39: x | AY39: x | DG39: 8
B40: x | E40: Výcvik | F40: Úvodní školení s dodávkou prvního kusu | G40: Zapracovat požadavek na školení a výcvik prvních osádek a prvního technického personálu do specifikace. | I40: ČOS 051633 Učební pomůcky pro pozemní vojenskou techniku; NVMO 2/2018 Provozování pozemní vojenské techniky; NVMO 41/2010 Vzdělávací a výcvikové aktivity v rezortu MO; RMO 1/2017 O přípravě návrhů, posuzování a schvalování vnitřních předpisů a Věstníku MO; RMO 66/2012 Plánování činnosti a rozvoje vojsk v rezortu MO; Zákon č. 258/2000 Sb. Zákon o ochraně veřejného zdraví; Zákon č. 309/2000 Sb. Zákon o obranné standardizaci, katagolizaci a státního ověřování jakosti …; Zákon č. 309/2006 Sb. Zákon o zajištění dalších podmínek bezpečnosti a ochrany zdraví při práci | J40: -30 | M40: x | V40: x | X40: x | AC40: x | AG40: x | AW40: x | AX40: x | AY40: x | DG40: 8
B41: x | E41: Výcvik | F41: Předpokládaný záměr rozsahu používání | G41: Stanovit roční proběh v km (lehký/střední/těžký terén), případně jiný faktor dle daného rozvojového projektu. | H41: M | I41: ČOS 051659 Pokyny NATO pro analýzu nákladů životního cyklu; NVMO 2/2018 Provozování pozemní vojenské techniky; NVMO 41/2010 Vzdělávací a výcvikové aktivity v rezortu MO; RMO 66/2012 Plánování činnosti a rozvoje vojsk v rezortu MO; Pub Vojenské publikace pro výcvik (obecně) | J41: -30 | O41: x | V41: x | X41: x | AG41: x | AI41: x | DG41: 5
B42: x | E42: Výcvik | F42: Předpokládaný záměr rozsahu používání | G42: Stanovit roční počet výstřelů po druzích a typech. | H42: M | I42: ČOS 051659 Pokyny NATO pro analýzu nákladů životního cyklu; NVMO 2/2018 Provozování pozemní vojenské techniky; NVMO 41/2010 Vzdělávací a výcvikové aktivity v rezortu MO; RMO 66/2012 Plánování činnosti a rozvoje vojsk v rezortu MO; Pub Vojenské publikace pro výcvik (obecně) | J42: -30 | O42: x | V42: x | X42: x | AG42: x | AI42: x | DG42: 5
B43: x | E43: Výcvik | F43: Předpokládaný záměr rozsahu používání | G43: Definovat další provozní ukazatele (nabíjecí cyklus, provozní hodiny, motohodiny,…). | H43: M | I43: ČOS 051659 Pokyny NATO pro analýzu nákladů životního cyklu; NVMO 2/2018 Provozování pozemní vojenské techniky; RMO 66/2012 Plánování činnosti a rozvoje vojsk v rezortu MO; Pub Vojenské publikace pro výcvik (obecně) | J43: -30 | O43: x | V43: x | AG43: x | AI43: x | DG43: 4
C44: x | E44: Výcvik | F44: Aktualizace dokumentace pro hodnocení bojové připravenosti jednotek | G44: Aktualizovat dokumentaci pro hopdnocení bojové připravenosti jednotek systémem CREVAL. | H44: D | I44: Pub Vojenské publikace pro výcvik (obecně); Koncepce Koncepční materiály | J44: -12 | AI44: x | BA44: x | DG44: 2
C45: x | E45: Výcvik | F45: Aktualizace dokumentace pro hodnocení bojové připravenosti jednotek | G45: Aktualizovat dokumentaci pro hopdnocení bojové připravenosti jednotek systémem TACEVAL. | H45: D | I45: Pub Vojenské publikace pro výcvik (obecně); Koncepce Koncepční materiály | J45: -12 | AI45: x | BA45: x | DG45: 2
C46: x | E46: Výcvik | F46: Systém přípravy a výcviku jednotek | G46: Navrhovat úpravy systému přípravy a výcviku jednotek a úpravy výcvikových cyklů k dosažení (udržení) operačních schopností. | I46: NVMO 41/2010 Vzdělávací a výcvikové aktivity v rezortu MO | J46: -12 | X46: x | DG46: 1
C47: x | E47: Výcvik | F47: Systém přípravy a výcviku jednotek | G47: Navrhovat úpravu systému přípravy a výcviku jednotek a úpravy výcvikových cyklů při přípravě do operace, pro plnění stanoveného úkolu. | I47: NVMO 41/2010 Vzdělávací a výcvikové aktivity v rezortu MO | J47: -12 | X47: x | DG47: 1
C48: x | E48: Výcvik | F48: Systém přípravy a výcviku jednotek | G48: Aktualizovat výcvikovou dokumentaci s využitím simulace, zavádění nového typu výcviku na základě nových technologií. | H48: D | I48: ČOS 051633 Učební pomůcky pro pozemní vojenskou techniku; NVMO 41/2010 Vzdělávací a výcvikové aktivity v rezortu MO; Pub Vojenské publikace pro výcvik (obecně) | J48: -12 | M48: x | X48: x | AI48: x | DG48: 3
C49: x | E49: Materiál | F49: Udržitelnost | G49: Na základě analýzy opravárenských schopností navrhnout změny pro jejich dostatečnost - organizační změny. | H49: O | I49: ČOS 051616 Termionologie pro bezporuchovost a udržovatelnost; ČOS 051655 Etapy a procesy životního cyklu systémů NATO; Log-2-4 Vojskové opravy pozemní vojenské techniky.; RMO 66/2012 Plánování činnosti a rozvoje vojsk v rezortu MO; Koncepce Koncepční materiály | J49: -12 | K49: x | N49: x | R49: x | AG49: x | BA49: x | DG49: 5
C50: x | E50: Materiál | F50: Udržitelnost | G50: Na základě analýzy opravárenských schopností navrhnout změny pro jejich dostatečnost - nákup služby. | I50: ČOS 051616 Termionologie pro bezporuchovost a udržovatelnost; ČOS 051655 Etapy a procesy životního cyklu systémů NATO; Log-2-4 Vojskové opravy pozemní vojenské techniky.; RMO 66/2012 Plánování činnosti a rozvoje vojsk v rezortu MO; Koncepce Koncepční materiály | J50: -12 | K50: x | N50: x | R50: x | AG50: x | BA50: x | DG50: 5
B51: x | E51: Materiál | F51: Udržitelnost | G51: Do specifikace zapracovat požadavek na vytvoření Normy náhradních dílů a na pořízení jedné takovéto soupravy. | I51: ČOS 051616 Termionologie pro bezporuchovost a udržovatelnost; Log-2-4 Vojskové opravy pozemní vojenské techniky.; NVMO 16/2017 Rezervy majetku v působnosti MO; RMO 66/2012 Plánování činnosti a rozvoje vojsk v rezortu MO; Koncepce Koncepční materiály | J51: -36 | K51: x | R51: x | U51: x | AG51: x | BA51: x | DG51: 5
C52: x | E52: Materiál | F52: Udržitelnost | G52: Do SdP zapracovat požadavek na tvorbu zásob nové výzbroje a techniky po celý životní cyklus. | I52: ČOS 051616 Termionologie pro bezporuchovost a udržovatelnost; ČOS 051655 Etapy a procesy životního cyklu systémů NATO; NVMO 16/2017 Rezervy majetku v působnosti MO; RMO 66/2012 Plánování činnosti a rozvoje vojsk v rezortu MO; Koncepce Koncepční materiály | J52: -12 | K52: x | N52: x | U52: x | AG52: x | BA52: x | DG52: 5
D53: x | E53: Materiál | F53: Udržitelnost | G53: V SdP aktualizovat požadavek na tvorbu zásob nové výzbroje a techniky po celý životní cyklus. | I53: ČOS 051616 Termionologie pro bezporuchovost a udržovatelnost; ČOS 051655 Etapy a procesy životního cyklu systémů NATO; NVMO 16/2017 Rezervy majetku v působnosti MO; RMO 66/2012 Plánování činnosti a rozvoje vojsk v rezortu MO; Koncepce Koncepční materiály | J53: 6 | K53: x | N53: x | U53: x | AG53: x | BA53: x | DG53: 5
C54: x | E54: Materiál | F54: Udržení schopnosti | G54: Do SdP zapracovat požadavek na údržbu a doplňování zásob nové výzbroje a techniky po celý její životní cyklus. | I54: ČOS 051616 Termionologie pro bezporuchovost a udržovatelnost; ČOS 051632 Průvodní a provozní dokumentace pro vojenskou techniku a materiál; ČOS 051655 Etapy a procesy životního cyklu systémů NATO; Log-2-4 Vojskové opravy pozemní vojenské techniky.; NVMO 16/2017 Rezervy majetku v působnosti MO; RMO 66/2012 Plánování činnosti a rozvoje vojsk v rezortu MO; Koncepce Koncepční materiály | J54: -12 | K54: x | L54: x | N54: x | R54: x | U54: x | AG54: x | BA54: x | DG54: 7
D55: x | E55: Materiál | F55: Udržení schopnosti | G55: V SdP aktualizovat požadavek na údržbu a doplňování zásob nové výzbroje a techniky po celý její životní cyklus. | I55: ČOS 051616 Termionologie pro bezporuchovost a udržovatelnost; ČOS 051632 Průvodní a provozní dokumentace pro vojenskou techniku a materiál; ČOS 051655 Etapy a procesy životního cyklu systémů NATO; Log-2-4 Vojskové opravy pozemní vojenské techniky.; NVMO 16/2017 Rezervy majetku v působnosti MO; RMO 66/2012 Plánování činnosti a rozvoje vojsk v rezortu MO; Koncepce Koncepční materiály | J55: 6 | K55: x | L55: x | N55: x | R55: x | U55: x | AG55: x | BA55: x | DG55: 7
C56: x | E56: Materiál | F56: Udržení schopnosti | G56: Do specifikace zapracovat požadavek na pořízení mechanizačních dílenských prostředků (MDP). | I56: ČOS 051616 Termionologie pro bezporuchovost a udržovatelnost; ČOS 051632 Průvodní a provozní dokumentace pro vojenskou techniku a materiál; ČOS 051655 Etapy a procesy životního cyklu systémů NATO; Log-2-4 Vojskové opravy pozemní vojenské techniky.; RMO 66/2012 Plánování činnosti a rozvoje vojsk v rezortu MO; Vševojsk-16-3 Systemizace technologických zařízení pracovišť, dílen a opraven pro údržbu pozemní vojenské techniky; Koncepce Koncepční materiály | J56: -12 | K56: x | L56: x | N56: x | R56: x | AG56: x | AN56: x | BA56: x | DG56: 7
C57: x | E57: Materiál | F57: Udržení schopnosti | G57: Do specifikace zapracovat požadavek na pořízení nebo modernizaci evakuačních, vyprošťovacích a mobilních dílenských prostředků. | I57: ČOS 051616 Termionologie pro bezporuchovost a udržovatelnost; ČOS 051632 Průvodní a provozní dokumentace pro vojenskou techniku a materiál; ČOS 051655 Etapy a procesy životního cyklu systémů NATO; Log-2-4 Vojskové opravy pozemní vojenské techniky.; NVMO 38/2014 Normy vojenského materiálu pro předepisování do tabulek počtů; RMO 66/2012 Plánování činnosti a rozvoje vojsk v rezortu MO; Koncepce Koncepční materiály | J57: -12 | K57: x | L57: x | N57: x | R57: x | W57: x | AG57: x | BA57: x | DG57: 7
C58: x | E58: Materiál | F58: Udržení schopnosti | G58: Do SdP zapracovat požadavky na údržbu a obměnu vojenské výzbroje a vojenské techniky (naplnění životního cyklu). | I58: ČOS 051616 Termionologie pro bezporuchovost a udržovatelnost; ČOS 051632 Průvodní a provozní dokumentace pro vojenskou techniku a materiál; RMO 66/2012 Plánování činnosti a rozvoje vojsk v rezortu MO; Koncepce Koncepční materiály | J58: -12 | K58: x | L58: x | AG58: x | BA58: x | DG58: 4
D59: x | E59: Materiál | F59: Udržení schopnosti | G59: V SdP aktualizovat požadavky na údržbu a obměnu vojenské výzbroje a vojenské techniky (naplnění životního cyklu). | I59: ČOS 051616 Termionologie pro bezporuchovost a udržovatelnost; ČOS 051632 Průvodní a provozní dokumentace pro vojenskou techniku a materiál; RMO 66/2012 Plánování činnosti a rozvoje vojsk v rezortu MO; Koncepce Koncepční materiály | J59: 6 | K59: x | L59: x | AG59: x | BA59: x | DG59: 4
C60: x | E60: Materiál | F60: Udržení schopnosti | G60: Do SdP zapracovat požadavky na údržbu a obměnu zařízení a techniky UVZ a STT (naplnění životního cyklu). | H60: T | I60: ČOS 051616 Termionologie pro bezporuchovost a udržovatelnost; ČOS 051632 Průvodní a provozní dokumentace pro vojenskou techniku a materiál; RMO 66/2012 Plánování činnosti a rozvoje vojsk v rezortu MO; Koncepce Koncepční materiály | J60: -12 | K60: x | L60: x | AG60: x | BA60: x | DG60: 4
D61: x | E61: Materiál | F61: Udržení schopnosti | G61: V SdP aktualizovat požadavky na údržbu a obměnu zařízení a techniky UVZ a STT (naplnění životního cyklu). | H61: T | I61: ČOS 051616 Termionologie pro bezporuchovost a udržovatelnost; ČOS 051632 Průvodní a provozní dokumentace pro vojenskou techniku a materiál; RMO 66/2012 Plánování činnosti a rozvoje vojsk v rezortu MO; Koncepce Koncepční materiály | J61: 6 | K61: x | L61: x | AG61: x | BA61: x | DG61: 4
D62: x | E62: Materiál | F62: Rozvoj schopnosti | G62: Vyčlenit finanční prostředky pro zabezpečení životního cyklu nové výzbroje a techniky (pořízení MDP, ND, školení personálu, údržby a oprav). | I62: ČOS 051616 Termionologie pro bezporuchovost a udržovatelnost; ČOS 051632 Průvodní a provozní dokumentace pro vojenskou techniku a materiál; RMO 66/2012 Plánování činnosti a rozvoje vojsk v rezortu MO; Koncepce Koncepční materiály | J62: 24 | K62: x | L62: x | AG62: x | BA62: x | DG62: 4
C63: x | E63: Materiál | F63: Rozvoj schopnosti | G63: Plánovat (rozpočtovat) finanční prostředky pro zabezpečení nákladů na vojskové zkoušky a certifikaci (NUKIB, ODVL SŘO MO, …) | I63: ČOS 051616 Termionologie pro bezporuchovost a udržovatelnost; ČOS 051632 Průvodní a provozní dokumentace pro vojenskou techniku a materiál; ČOS 051655 Etapy a procesy životního cyklu systémů NATO; RMO 66/2012 Plánování činnosti a rozvoje vojsk v rezortu MO; Koncepce Koncepční materiály; Let-1-1 Předpis pro létání; Let-1-4 Inženýrská letecká služba; Let-1-11 Letecký zkušební provoz; RMO 21/2018 O zajištění kybernetické bezpečnosti v rezortu MO; NVMO 111/2013 Kryptografická ochrana utajovaných informací v rezortu MO; NVMO 85/2013 Bezpečnost informačních a komunikačních systémů a elektronických zařízení nakládajících s utajovanými informacemi v rezortu MO; NVMO 20/2013 Bezpečnost informačních a komunikačních systémů a elektronických zařízení, které nakládají s určenými neutajovanými informacemi v rezortu MO | J63: -12 | K63: x | L63: x | N63: x | AG63: x | BA63: x | BB63: x | BC63: x | BD63: x | BE63: x | BF63: x | BG63: x | BH63: x | DG63: 12
D64: x | E64: Materiál | F64: Rozvoj schopnosti | G64: Vyčlenit finanční prostředky pro zabezpečení nákladů na vojskové zkoušky a certifikaci | I64: ČOS 051616 Termionologie pro bezporuchovost a udržovatelnost; ČOS 051632 Průvodní a provozní dokumentace pro vojenskou techniku a materiál; ČOS 051655 Etapy a procesy životního cyklu systémů NATO; RMO 66/2012 Plánování činnosti a rozvoje vojsk v rezortu MO; Koncepce Koncepční materiály | J64: 6 | K64: x | L64: x | N64: x | AG64: x | BA64: x | DG64: 5
D65: x | E65: Materiál | F65: Rozvoj schopnosti | G65: Aktualizovat Koncepci rozvoje materiálního zabezpečení (logistiky, KIS, zdr.). | H65: D | I65: ČOS 051616 Termionologie pro bezporuchovost a udržovatelnost; ČOS 051632 Průvodní a provozní dokumentace pro vojenskou techniku a materiál; ČOS 051655 Etapy a procesy životního cyklu systémů NATO; RMO 61/2017 Koncepční dokumenty MO; RMO 66/2012 Plánování činnosti a rozvoje vojsk v rezortu MO; Koncepce Koncepční materiály | J65: 12 | K65: x | L65: x | N65: x | AF65: x | AG65: x | BA65: x | DG65: 6
C66: x | E66: Materiál | F66: Rozvoj schopnosti | G66: Aktualizovat předpisy, pomůcek a postupů pro materiální zabezpečení. | H66: D | I66: ČOS 051616 Termionologie pro bezporuchovost a udržovatelnost; ČOS 051632 Průvodní a provozní dokumentace pro vojenskou techniku a materiál; ČOS 051655 Etapy a procesy životního cyklu systémů NATO; RMO 66/2012 Plánování činnosti a rozvoje vojsk v rezortu MO; Koncepce Koncepční materiály; Let-1-1 Předpis pro létání; Let-1-4 Inženýrská letecká služba; Let-1-11 Letecký zkušební provoz; RMO 21/2018 O zajištění kybernetické bezpečnosti v rezortu MO; NVMO 111/2013 Kryptografická ochrana utajovaných informací v rezortu MO; NVMO 85/2013 Bezpečnost informačních a komunikačních systémů a elektronických zařízení nakládajících s utajovanými informacemi v rezortu MO; NVMO 20/2013 Bezpečnost informačních a komunikačních systémů a elektronických zařízení, které nakládají s určenými neutajovanými informacemi v rezortu MO | J66: -12 | K66: x | L66: x | N66: x | AG66: x | BA66: x | BB66: x | BC66: x | BD66: x | BE66: x | BF66: x | BG66: x | BH66: x | DG66: 12
D67: x | E67: Materiál | F67: Rozvoj schopnosti | G67: Zpracovat předpisy, pomůcek a postupů pro materiální zabezpečení. | H67: D | I67: ČOS 051616 Termionologie pro bezporuchovost a udržovatelnost; ČOS 051632 Průvodní a provozní dokumentace pro vojenskou techniku a materiál; ČOS 051655 Etapy a procesy životního cyklu systémů NATO; RMO 66/2012 Plánování činnosti a rozvoje vojsk v rezortu MO; Koncepce Koncepční materiály | J67: 18 | K67: x | L67: x | N67: x | AG67: x | BA67: x | DG67: 5
B68: x | E68: Leadership | F68: Udržení a rozvoj schopnosti | G68: Do specifikace zapracovat požadavek na implementaci/integraci stávajících prostředků SVŘ nebo na přizpůsobení stávajícího SW. | H68: M | I68: ČOS 051616 Termionologie pro bezporuchovost a udržovatelnost; ČOS 051632 Průvodní a provozní dokumentace pro vojenskou techniku a materiál; ČOS 051655 Etapy a procesy životního cyklu systémů NATO; NVMO 60/2017 O jednotném postupu při úplatném nybývání majetku, služeb a stavebních prací vv rezoru MO; RMO 66/2012 Plánování činnosti a rozvoje vojsk v rezortu MO; Koncepce Koncepční materiály | J68: -36 | K68: x | L68: x | N68: x | Z68: x | AG68: x | BA68: x | DG68: 6
C69: x | E69: Leadership | F69: Udržení a rozvoj schopnosti | G69: Při pořizování nové výzbroje a techniky zabezpečit implementaci do stávajícího SVŘ. | H69: M | I69: Koncepce Koncepční materiály | J69: -12 | BA69: x | DG69: 1
C70: x | E70: Leadership | F70: Udržení a rozvoj schopnosti | G70: Zabezpečit rozvoj prostředků systému velení a řízení včetně implementace do zavedené vojenské výzbroje a techniky. | H70: M | I70: Koncepce Koncepční materiály | J70: -12 | BA70: x | DG70: 1
B71: x | E71: Interoperabilita | F71: Udržení a rozvoj schopnosti | G71: Zabezpečit interoperabilitu se systémy NATO. | H71: M | I71: Koncepce Koncepční materiály | J71: -36 | BA71: x | DG71: 1
C72: x | E72: Výcvik | F72: Udržení a rozvoj schopnosti | G72: Plánovat přípravu personálu v oblasti velení a řízení. | H72: T, P | I72: N NGŠ N NGŠ k pplánování a provádění PVPŠ; NVMO 41/2010 Vzdělávací a výcvikové aktivity v rezortu MO; NVMO 5/2013 Výcviková a školící zařízení organizačních celků rezortu MO; RMO 1/2017 O přípravě návrhů, posuzování a schvalování vnitřních předpisů a Věstníku MO; Pub Vojenské publikace pro výcvik (obecně) | J72: -12 | T72: x | X72: x | Y72: x | AC72: x | AI72: x | DG72: 5
D73: x | E73: Výcvik | F73: Udržení a rozvoj schopnosti | G73: Zajistit přípravu personálu v oblasti velení a řízení. | H73: T, P | I73: N NGŠ N NGŠ k pplánování a provádění PVPŠ; NVMO 41/2010 Vzdělávací a výcvikové aktivity v rezortu MO; NVMO 5/2013 Výcviková a školící zařízení organizačních celků rezortu MO; RMO 1/2017 O přípravě návrhů, posuzování a schvalování vnitřních předpisů a Věstníku MO; Pub Vojenské publikace pro výcvik (obecně) | J73: 12 | T73: x | X73: x | Y73: x | AC73: x | AI73: x | DG73: 5
C74: x | E74: Materiál | F74: Udržení schopnosti | G74: Plánovat informační podporu plánování, provedení a vyhodnocování využívání vzdušného prostoru UVZ (SVOZ) | I74: MP Metodické pokyny pro tvorbu SdP; NVMO 41/2010 Vzdělávací a výcvikové aktivity v rezortu MO; NVMO 5/2013 Výcviková a školící zařízení organizačních celků rezortu MO | J74: -12 | S74: x | X74: x | Y74: x | DG74: 3
D75: x | E75: Materiál | F75: Udržení schopnosti | G75: Zabezpečit informační podporu plánování, provedení a vyhodnocování využívání vzdušného prostoru UVZ (SVOZ) | I75: MP Metodické pokyny pro tvorbu SdP; NVMO 41/2010 Vzdělávací a výcvikové aktivity v rezortu MO; NVMO 5/2013 Výcviková a školící zařízení organizačních celků rezortu MO | J75: 12 | S75: x | X75: x | Y75: x | DG75: 3
C76: x | E76: Leadership | F76: Udržení a rozvoj schopnosti | G76: Plánovat informační podporu plánování, provedení a vyhodnocování UVZ. | H76: M | I76: ČOS 051633 Učební pomůcky pro pozemní vojenskou techniku; Vševojsk-10-1 Pravidla vedení provozní dokumentace výzbroje a ostatní techniky; Vševojsk-10-6 Učební a výcviková základna | J76: -12 | M76: x | AK76: x | AL76: x | DG76: 3
D77: x | E77: Leadership | F77: Udržení a rozvoj schopnosti | G77: Zabezpečit informační podporu plánování, provedení a vyhodnocování UVZ. | H77: M | I77: ČOS 051633 Učební pomůcky pro pozemní vojenskou techniku; Vševojsk-10-1 Pravidla vedení provozní dokumentace výzbroje a ostatní techniky; Vševojsk-10-6 Učební a výcviková základna | J77: 12 | M77: x | AK77: x | AL77: x | DG77: 3
C78: x | E78: Výcvik | F78: Udržení a rozvoj schopnosti | G78: Aktualizovat pomůcky, předpisy a směrnice pro přípravu velitelů a štábů. | H78: D | I78: ČOS 051633 Učební pomůcky pro pozemní vojenskou techniku; RMO 1/2017 O přípravě návrhů, posuzování a schvalování vnitřních předpisů a Věstníku MO | J78: -12 | M78: x | AC78: x | DG78: 2
D79: x | E79: Výcvik | F79: Udržení a rozvoj schopnosti | G79: Zpracovat pomůcky, předpisy a směrnice pro přípravu velitelů a štábů. | H79: D | I79: ČOS 051633 Učební pomůcky pro pozemní vojenskou techniku; RMO 1/2017 O přípravě návrhů, posuzování a schvalování vnitřních předpisů a Věstníku MO | J79: 18 | M79: x | AC79: x | DG79: 2
B80: x | E80: Leadership | F80: Udržení a rozvoj schopnosti | G80: Aktualizovat Koncepci výstavby systému velení a řízení AČR. | H80: D | I80: RMO 61/2017 Koncepční dokumenty MO; Koncepce Koncepční materiály | J80: -36 | AF80: x | BA80: x | DG80: 2
D81: x | E81: Personál | F81: Udržení a rozvoj schopnosti | G81: Zpracovat nebo aktualizovat popis jednotlivých systemizovaných míst. | H81: O | I81: RMO Organizační řád MO vydaný jako služební předpis Státního tajemníka v Ministerstvu obrany; RMO 2/2019 Zásady tvorby systémizovaných míst; Vševojsk-1-1 Povinnosti funkcionářů a jednotek pozemního vojska Čs. armády | J81: 18 | AB81: x | AE81: x | AM81: x | DG81: 3
B82: x | E82: Personál | F82: Udržení a rozvoj schopnosti | G82: Do specifikace zapracovat požadavek na prvotní vyškolení personálu (osádek a instruktorů). | H82: T, M | I82: ČOS 051655 Etapy a procesy životního cyklu systémů NATO; NVMO 60/2017 O jednotném postupu při úplatném nybývání majetku, služeb a stavebních prací vv rezoru MO; Vševojsk-10-6 Učební a výcviková základna; Vševojsk-1-1 Povinnosti funkcionářů a jednotek pozemního vojska Čs. armády; Vševojsk-17-2 Plánování a hodnocení přípravy vojsk AČR; Vševojsk-4-2 Osnovy střeleb z ručních zbraní a zbraní bojových vozidel | J82: -36 | N82: x | Z82: x | AL82: x | AM82: x | AO82: x | AP82: x | DG82: 6
C83: x | E83: Personál | F83: Udržení a rozvoj schopnosti | G83: Plánovat přípravu instruktorů. | H83: T | I83: Vševojsk-10-6 Učební a výcviková základna; Vševojsk-1-1 Povinnosti funkcionářů a jednotek pozemního vojska Čs. armády; Vševojsk-17-2 Plánování a hodnocení přípravy vojsk AČR; Vševojsk-4-2 Osnovy střeleb z ručních zbraní a zbraní bojových vozidel | J83: -12 | AL83: x | AM83: x | AO83: x | AP83: x | DG83: 4
D84: x | E84: Personál | F84: Udržení a rozvoj schopnosti | G84: Zabezpečit přípravu instruktorů. | H84: T | I84: Vševojsk-10-6 Učební a výcviková základna; Vševojsk-1-1 Povinnosti funkcionářů a jednotek pozemního vojska Čs. armády; Vševojsk-17-2 Plánování a hodnocení přípravy vojsk AČR; Vševojsk-4-2 Osnovy střeleb z ručních zbraní a zbraní bojových vozidel | J84: 12 | AL84: x | AM84: x | AO84: x | AP84: x | DG84: 4
C85: x | E85: Personál | F85: Udržení a rozvoj schopnosti | G85: Plánovat přípravu pedagogického sboru vojenského školství a školících zařízení. | H85: T | I85: ČOS 051633 Učební pomůcky pro pozemní vojenskou techniku; Vševojsk-10-6 Učební a výcviková základna; Vševojsk-1-1 Povinnosti funkcionářů a jednotek pozemního vojska Čs. armády; Vševojsk-17-2 Plánování a hodnocení přípravy vojsk AČR | J85: -12 | M85: x | AL85: x | AM85: x | AO85: x | DG85: 4
D86: x | E86: Personál | F86: Udržení a rozvoj schopnosti | G86: Připravit pedagogický sbor vojenského školství a školících zařízení. | H86: T | I86: ČOS 051633 Učební pomůcky pro pozemní vojenskou techniku; Vševojsk-10-6 Učební a výcviková základna; Vševojsk-1-1 Povinnosti funkcionářů a jednotek pozemního vojska Čs. armády; Vševojsk-17-2 Plánování a hodnocení přípravy vojsk AČR | J86: 12 | M86: x | AL86: x | AM86: x | AO86: x | DG86: 4
C87: x | E87: Personál | F87: Udržení a rozvoj schopnosti | G87: Plánovat zavedení nových metod přípravy personálu na základě nových technologií. | H87: T | I87: ČOS 051633 Učební pomůcky pro pozemní vojenskou techniku; Vševojsk-10-6 Učební a výcviková základna; Vševojsk-1-1 Povinnosti funkcionářů a jednotek pozemního vojska Čs. armády; Vševojsk-17-2 Plánování a hodnocení přípravy vojsk AČR | J87: -12 | M87: x | AL87: x | AM87: x | AO87: x | DG87: 4
D88: x | E88: Personál | F88: Udržení a rozvoj schopnosti | G88: Zavést nové metody přípravy personálu na základě nových technologií. | H88: T | I88: ČOS 051633 Učební pomůcky pro pozemní vojenskou techniku; Vševojsk-10-6 Učební a výcviková základna; Vševojsk-1-1 Povinnosti funkcionářů a jednotek pozemního vojska Čs. armády; Vševojsk-17-2 Plánování a hodnocení přípravy vojsk AČR | J88: 18 | M88: x | AL88: x | AM88: x | AO88: x | DG88: 4
C89: x | E89: Personál | F89: Udržení a rozvoj schopnosti | G89: Aktualizovat popis jednotlivých systemizovaných míst. | H89: O, D | I89: RMO 2/2019 Zásady tvorby systémizovaných míst | J89: -12 | AE89: x | DG89: 1
D90: x | E90: Personál | F90: Udržení a rozvoj schopnosti | G90: Zpracovat popis jednotlivých systemizovaných míst. | H90: O, D | I90: RMO 2/2019 Zásady tvorby systémizovaných míst | J90: 12 | AE90: x | DG90: 1
D91: x | E91: Personál | F91: Udržení a rozvoj schopnosti | G91: Provést nábor personálu při zavádění nové výzbroje a techniky. | H91: O | I91: N NGŠ N NGŠ k pplánování a provádění PVPŠ; NVMO 41/2010 Vzdělávací a výcvikové aktivity v rezortu MO | J91: 18 | T91: x | X91: x | DG91: 2
C92: x | E92: Infrastruktura | F92: Služební a pobytové zóny | G92: Plánovat zabezpečení dostatečné kapacity služebních a pobytových zón. | H92: O | I92: N NGŠ N NGŠ k pplánování a provádění PVPŠ; NVMO 41/2010 Vzdělávací a výcvikové aktivity v rezortu MO | J92: -12 | T92: x | X92: x | DG92: 2
D93: x | E93: Infrastruktura | F93: Služební a pobytové zóny | G93: Zabezpečit dostatečné kapacity služebních a pobytových zón. | H93: O | I93: N NGŠ N NGŠ k pplánování a provádění PVPŠ; NVMO 41/2010 Vzdělávací a výcvikové aktivity v rezortu MO | J93: 12 | T93: x | X93: x | DG93: 2
D94: x | E94: Infrastruktura | F94: Služební a pobytové zóny | G94: Provést údržbu stávajících prostorů služebních a pobytových zón. | I94: ČOS 051655 Etapy a procesy životního cyklu systémů NATO; Log-2-4 Vojskové opravy pozemní vojenské techniky.; Zákon č. 219/2000 Sb. Zákon o majetku ČR a jejím vystupovánmím v právních vztazích | J94: 12 | N94: x | R94: x | AU94: x | DG94: 3
C95: x | E95: Infrastruktura | F95: Služební a pobytové zóny | G95: Plánovat modernizaci stávajících prostor na zaváděné nové technologie. | H95: M | I95: ČOS 051655 Etapy a procesy životního cyklu systémů NATO; Zákon č. 219/2000 Sb. Zákon o majetku ČR a jejím vystupovánmím v právních vztazích | J95: -12 | N95: x | AU95: x | DG95: 2
D96: x | E96: Infrastruktura | F96: Služební a pobytové zóny | G96: Modernizovat stávající prostory na zaváděné nové technologie. | H96: M | I96: ČOS 051655 Etapy a procesy životního cyklu systémů NATO; Zákon č. 219/2000 Sb. Zákon o majetku ČR a jejím vystupovánmím v právních vztazích | J96: 18 | N96: x | AU96: x | DG96: 2
C97: x | E97: Infrastruktura | F97: Zabezpečení vojenského majetku | G97: Plánovat údržbu garážových stání. | H97: M | I97: ČOS 051655 Etapy a procesy životního cyklu systémů NATO; RMO 66/2012 Plánování činnosti a rozvoje vojsk v rezortu MO; Všeob-P-5 Parky vojenské techniky v působnosti MO a provoz v nich; Zákon č. 219/2000 Sb. Zákon o majetku ČR a jejím vystupovánmím v právních vztazích | J97: -12 | N97: x | AG97: x | AJ97: x | AU97: x | DG97: 4
D98: x | E98: Infrastruktura | F98: Zabezpečení vojenského majetku | G98: Provést údržbu garážových stání. | H98: M | I98: ČOS 051655 Etapy a procesy životního cyklu systémů NATO; RMO 66/2012 Plánování činnosti a rozvoje vojsk v rezortu MO; Všeob-P-5 Parky vojenské techniky v působnosti MO a provoz v nich; Zákon č. 219/2000 Sb. Zákon o majetku ČR a jejím vystupovánmím v právních vztazích | J98: 18 | N98: x | AG98: x | AJ98: x | AU98: x | DG98: 4
C99: x | E99: Infrastruktura | F99: Zabezpečení vojenského majetku | G99: Plánovat údržbu skladových prostorů. | H99: M | I99: ČOS 051655 Etapy a procesy životního cyklu systémů NATO; RMO 66/2012 Plánování činnosti a rozvoje vojsk v rezortu MO; Všeob-P-5 Parky vojenské techniky v působnosti MO a provoz v nich; Zákon č. 219/2000 Sb. Zákon o majetku ČR a jejím vystupovánmím v právních vztazích | J99: -12 | N99: x | AG99: x | AJ99: x | AU99: x | DG99: 4
D100: x | E100: Infrastruktura | F100: Zabezpečení vojenského majetku | G100: Provést údržbu skladových prostorů. | H100: M | I100: ČOS 051655 Etapy a procesy životního cyklu systémů NATO; RMO 66/2012 Plánování činnosti a rozvoje vojsk v rezortu MO; Všeob-P-5 Parky vojenské techniky v působnosti MO a provoz v nich; Zákon č. 219/2000 Sb. Zákon o majetku ČR a jejím vystupovánmím v právních vztazích | J100: 18 | N100: x | AG100: x | AJ100: x | AU100: x | DG100: 4
C101: x | E101: Infrastruktura | F101: Zabezpečení vojenského majetku | G101: Plánovat údržbu prostorů pro ošetřování, údržbu a opravy vojenského majetku. | H101: M | I101: ČOS 051655 Etapy a procesy životního cyklu systémů NATO; RMO 66/2012 Plánování činnosti a rozvoje vojsk v rezortu MO; Všeob-P-5 Parky vojenské techniky v působnosti MO a provoz v nich; Zákon č. 219/2000 Sb. Zákon o majetku ČR a jejím vystupovánmím v právních vztazích | J101: -12 | N101: x | AG101: x | AJ101: x | AU101: x | DG101: 4
D102: x | E102: Infrastruktura | F102: Zabezpečení vojenského majetku | G102: Provést údržbu prostorů pro ošetřování, údržbu a opravy vojenského majetku. | H102: M | I102: ČOS 051655 Etapy a procesy životního cyklu systémů NATO; RMO 66/2012 Plánování činnosti a rozvoje vojsk v rezortu MO; Všeob-P-5 Parky vojenské techniky v působnosti MO a provoz v nich; Zákon č. 219/2000 Sb. Zákon o majetku ČR a jejím vystupovánmím v právních vztazích | J102: 18 | N102: x | AG102: x | AJ102: x | AU102: x | DG102: 4
B103: x | E103: Infrastruktura | F103: Zabezpečení vojenského majetku | G103: Zapracovat požadavky do specifikace pro AHNM na rekonstrukci nebo výstavbu potřebné infrastruktury pro nově pořizovaný vojenský majetek. | H103: M | I103: ČOS 051655 Etapy a procesy životního cyklu systémů NATO; RMO 66/2012 Plánování činnosti a rozvoje vojsk v rezortu MO; Všeob-P-5 Parky vojenské techniky v působnosti MO a provoz v nich; Zákon č. 219/2000 Sb. Zákon o majetku ČR a jejím vystupovánmím v právních vztazích | J103: -45 | N103: x | AG103: x | AJ103: x | AU103: x | DG103: 4
C104: x | E104: Infrastruktura | F104: Učebně výcviková zařízení, SOVZ, STT | G104: Vyčlenit finanční prostředky na zabezpečení údržby a rozvoje prostorů pro výcvik. | H104: T | I104: RMO 66/2012 Plánování činnosti a rozvoje vojsk v rezortu MO; Zákon č. 219/2000 Sb. Zákon o majetku ČR a jejím vystupovánmím v právních vztazích | J104: -12 | AG104: x | AU104: x | DG104: 2
D105: x | E105: Infrastruktura | F105: Učebně výcviková zařízení, SOVZ, STT | G105: Realizovat údržbu a rozvoj prostorů pro výcvik. | H105: T | I105: RMO 66/2012 Plánování činnosti a rozvoje vojsk v rezortu MO; Zákon č. 219/2000 Sb. Zákon o majetku ČR a jejím vystupovánmím v právních vztazích | J105: 24 | AG105: x | AU105: x | DG105: 2
C106: x | E106: Infrastruktura | F106: Učebně výcviková zařízení, SOVZ, STT | G106: Plánovat modernizaci prostorů pro výcvik na moderní systémy simulace. | H106: T | I106: RMO 66/2012 Plánování činnosti a rozvoje vojsk v rezortu MO; Zákon č. 219/2000 Sb. Zákon o majetku ČR a jejím vystupovánmím v právních vztazích; Koncepce Koncepční materiály | J106: -12 | AG106: x | AU106: x | BA106: x | DG106: 3
D107: x | E107: Infrastruktura | F107: Učebně výcviková zařízení, SOVZ, STT | G107: Zabezpečit modernizaci prostorů pro výcvik na moderní systémy simulace. | H107: T | I107: RMO 66/2012 Plánování činnosti a rozvoje vojsk v rezortu MO; Zákon č. 219/2000 Sb. Zákon o majetku ČR a jejím vystupovánmím v právních vztazích; Koncepce Koncepční materiály | J107: 24 | AG107: x | AU107: x | BA107: x | DG107: 3
C108: x | E108: Infrastruktura | F108: Učebně výcviková zařízení, SOVZ, STT | G108: Plánovat údržbu a rozvoj ubytovacích kapacit ve VÚ. | H108: T | I108: ČOS 051655 Etapy a procesy životního cyklu systémů NATO; RMO 66/2012 Plánování činnosti a rozvoje vojsk v rezortu MO; Zákon č. 219/2000 Sb. Zákon o majetku ČR a jejím vystupovánmím v právních vztazích; Koncepce Koncepční materiály | J108: -12 | N108: x | AG108: x | AU108: x | BA108: x | DG108: 4
D109: x | E109: Infrastruktura | F109: Učebně výcviková zařízení, SOVZ, STT | G109: Provést údržbu a rozvoj ubytovacích kapacit ve VÚ. | H109: T | I109: ČOS 051655 Etapy a procesy životního cyklu systémů NATO; RMO 66/2012 Plánování činnosti a rozvoje vojsk v rezortu MO; Zákon č. 219/2000 Sb. Zákon o majetku ČR a jejím vystupovánmím v právních vztazích; Koncepce Koncepční materiály | J109: 18 | N109: x | AG109: x | AU109: x | BA109: x | DG109: 4
C110: x | E110: Infrastruktura | F110: Učebně výcviková zařízení, SOVZ, STT | G110: Plánovat údržbu a rozvoj technického zázemí pro výcvik ve vojenských újezdech a na posádkových cvičištích. | I110: ČOS 051655 Etapy a procesy životního cyklu systémů NATO; RMO 66/2012 Plánování činnosti a rozvoje vojsk v rezortu MO; Zákon č. 219/2000 Sb. Zákon o majetku ČR a jejím vystupovánmím v právních vztazích | J110: -12 | N110: x | AG110: x | AU110: x | DG110: 3
D111: x | E111: Infrastruktura | F111: Učebně výcviková zařízení, SOVZ, STT | G111: Provést údržbu a rozvoj technického zázemí pro výcvik ve vojenských újezdech a na posádkových cvičištích. | I111: ČOS 051655 Etapy a procesy životního cyklu systémů NATO; RMO 66/2012 Plánování činnosti a rozvoje vojsk v rezortu MO; Zákon č. 219/2000 Sb. Zákon o majetku ČR a jejím vystupovánmím v právních vztazích | J111: 18 | N111: x | AG111: x | AU111: x | DG111: 3
C112: x | E112: Infrastruktura | F112: Učebně výcviková zařízení, SOVZ, STT | G112: Plánovat údržbu a rozvoj objektů vojenského školství. | H112: T | I112: ČOS 051655 Etapy a procesy životního cyklu systémů NATO; RMO 66/2012 Plánování činnosti a rozvoje vojsk v rezortu MO; Zákon č. 219/2000 Sb. Zákon o majetku ČR a jejím vystupovánmím v právních vztazích | J112: -12 | N112: x | AG112: x | AU112: x | DG112: 3
D113: x | E113: Infrastruktura | F113: Učebně výcviková zařízení, SOVZ, STT | G113: Provést údržbu a rozvoj objektů vojenského školství. | H113: T | I113: ČOS 051655 Etapy a procesy životního cyklu systémů NATO; RMO 66/2012 Plánování činnosti a rozvoje vojsk v rezortu MO; Zákon č. 219/2000 Sb. Zákon o majetku ČR a jejím vystupovánmím v právních vztazích | J113: 18 | N113: x | AG113: x | AU113: x | DG113: 3
C114: x | E114: Infrastruktura | F114: Učebně výcviková zařízení, SOVZ, STT | G114: Plánovat údržbu a rozvoj vojenských školících zařízení. | I114: ČOS 051655 Etapy a procesy životního cyklu systémů NATO; RMO 66/2012 Plánování činnosti a rozvoje vojsk v rezortu MO; Zákon č. 219/2000 Sb. Zákon o majetku ČR a jejím vystupovánmím v právních vztazích | J114: -12 | N114: x | AG114: x | AU114: x | DG114: 3
D115: x | E115: Infrastruktura | F115: Učebně výcviková zařízení, SOVZ, STT | G115: Provést údržbu a rozvoj vojenských školících zařízení. | I115: ČOS 051655 Etapy a procesy životního cyklu systémů NATO; RMO 66/2012 Plánování činnosti a rozvoje vojsk v rezortu MO; Zákon č. 219/2000 Sb. Zákon o majetku ČR a jejím vystupovánmím v právních vztazích | J115: 24 | N115: x | AG115: x | AU115: x | DG115: 3
B116: x | E116: Interoperabilita | F116: Systém velení a řízení | G116: Do specifikace zapracovat požadavek na zabezpečení interoperability prostředků SVŘ v rámci jednotlivých druhů vojsk. | I116: ČOS 051662 Příručka pro postupné plánování vyzbrojování | J116: -45 | P116: x | DG116: 1
C117: x | E117: Interoperabilita | F117: Systém velení a řízení | G117: Kontrolovat zabezpečení interoperability prostředků SVŘ v rámci jednotlivých druhů vojsk. | I117: ČOS 051662 Příručka pro postupné plánování vyzbrojování | J117: -12 | P117: x | DG117: 1
D118: x | E118: Interoperabilita | F118: Systém velení a řízení | G118: Zabezpečit interoperabilitu prostředků SVŘ v rámci jednotlivých druhů vojsk. | I118: ČOS 051662 Příručka pro postupné plánování vyzbrojování | J118: 18 | P118: x | DG118: 1
B119: x | E119: Interoperabilita | F119: Systém velení a řízení | G119: Do specifikace zapracovat požadavek na interoperabilitu prostředků SVŘ mezi jednotlivými druhy vojsk. | I119: ČOS 051662 Příručka pro postupné plánování vyzbrojování | J119: -45 | P119: x | DG119: 1
C120: x | E120: Interoperabilita | F120: Systém velení a řízení | G120: Kontrolovat zabezpečení interoperability prostředků SVŘ mezi jednotlivými druhy vojsk. | I120: ČOS 051662 Příručka pro postupné plánování vyzbrojování | J120: -12 | P120: x | DG120: 1
D121: x | E121: Interoperabilita | F121: Systém velení a řízení | G121: Zabezpečit interoperabilitu prostředků SVŘ mezi jednotlivými druhy vojsk. | I121: ČOS 051662 Příručka pro postupné plánování vyzbrojování | J121: 18 | P121: x | DG121: 1
B122: x | E122: Interoperabilita | F122: Systém velení a řízení | G122: Do specifikace zapracovat požadavek na interoperabilitu prostředků SVŘ v rámci NATO. | I122: ČOS 051662 Příručka pro postupné plánování vyzbrojování | J122: -45 | P122: x | DG122: 1
C123: x | E123: Interoperabilita | F123: Systém velení a řízení | G123: Kontrolovat zabezpečení interoperability prostředků SVŘ v rámci NATO. | I123: ČOS 051662 Příručka pro postupné plánování vyzbrojování | J123: -12 | P123: x | DG123: 1
D124: x | E124: Interoperabilita | F124: Systém velení a řízení | G124: Zabezpečit interoperabilitu prostředků SVŘ v rámci NATO. | I124: ČOS 051662 Příručka pro postupné plánování vyzbrojování | J124: 18 | P124: x | DG124: 1
B125: x | E125: Interoperabilita | F125: Výzbroj a technika | G125: Zapracovat požadavky do specifikace na zabezpečení provozování nové VTM na jednotné palivo NATO. | H125: M | I125: ČOS 051662 Příručka pro postupné plánování vyzbrojování | J125: -36 | P125: x | DG125: 1
B126: x | E126: Interoperabilita | F126: Výzbroj a technika | G126: Zapracovat požadavky do specifikace na vyprošťovací prvky dle příslušných STANAGů a ČOSů. | H126: M | I126: ČOS 051662 Příručka pro postupné plánování vyzbrojování | J126: -36 | P126: x | DG126: 1
B127: x | E127: Interoperabilita | F127: Výzbroj a technika | G127: Zapracovat požadavky do specifikace na používání unifikované munice NATO. | H127: M | I127: ČOS 051662 Příručka pro postupné plánování vyzbrojování | J127: -36 | P127: x | DG127: 1
B128: x | E128: Interoperabilita | F128: Výzbroj a technika | G128: Zapracovat požadavek do specifikace na zabezpečení jednotné podvozkové platformy a jednotné logistiky s již zavedeným vojenským materiálem. | H128: M | I128: ČOS 051662 Příručka pro postupné plánování vyzbrojování | J128: -40 | P128: x | DG128: 1
D129: x | E129: Interoperabilita | F129: Doktríny | G129: Aktualizovat a implementovat STANAGy do národních předpisů. | H129: D | I129: ČOS 051662 Příručka pro postupné plánování vyzbrojování | J129: 24 | P129: x | DG129: 1
D130: x | E130: Interoperabilita | F130: UVZ, VVP, STT | G130: Aplikovat alianční předpisy a postupy do národních předpisů a postupů. | H130: T, D | I130: ČOS 051662 Příručka pro postupné plánování vyzbrojování | J130: 24 | P130: x | DG130: 1
B131: x | E131: Interoperabilita | F131: Udržení a rozvoj schopnosti | G131: Do specifikace zapracovat požadavek na interoperabilitu se systémy NATO. | H131: M, T, D | I131: ČOS 051662 Příručka pro postupné plánování vyzbrojování | J131: -40 | P131: x | DG131: 1
C132: x | E132: Interoperabilita | F132: Udržení a rozvoj schopnosti | G132: Kontrolovat zabezpečení interoperability se systémy NATO. | H132: M, T, D | I132: ČOS 051662 Příručka pro postupné plánování vyzbrojování | J132: -12 | P132: x | DG132: 1
D133: x | E133: Interoperabilita | F133: Udržení a rozvoj schopnosti | G133: Zabezpečit interoperabilitu se systémy NATO. | H133: M, T, D | I133: ČOS 051662 Příručka pro postupné plánování vyzbrojování | J133: 18 | P133: x | DG133: 1
K134: 21 | L134: 19 | M134: 14 | N134: 35 | O134: 4 | P134: 20 | Q134: 2 | R134: 9 | S134: 8 | T134: 5 | U134: 5 | V134: 7 | W134: 1 | X134: 23 | Y134: 12 | Z134: 7 | AA134: 1 | AB134: 3 | AC134: 10 | AD134: 1 | AE134: 11 | AF134: 5 | AG134: 50 | AH134: 1 | AI134: 12 | AJ134: 7 | AK134: 3 | AL134: 11 | AM134: 8 | AN134: 1 | AO134: 12 | AP134: 6 | AQ134: 2 | AR134: 3 | AS134: 2 | AT134: 2 | AU134: 23 | AV134: 4 | AW134: 3 | AX134: 4 | AY134: 3 | AZ134: 1 | BA134: 36 | BB134: 3 | BC134: 3 | BD134: 3 | BE134: 3 | BF134: 3 | BG134: 3 | BH134: 3
